Workbook

Sheet FLUXO ANUAL
B1: Centrais Elétricas Brasileiras S/A. - ELETROBRÁS
B2: Diretoria Financeira - DF
B3: Departamento de Administração de Capital de Giro - DFG
B4: Demonstrativo de Saldo da Conta de Comercialização da Energia Elétrica de Itaipu
B5: FLUXO DA CONTA DE COMERCIALIZAÇÃO DE ENERGIA ELÉTRICA DE ITAIPU - EXERCÍCIO DE 2015
B7: Data da Emissão:
B8: 2016-04-14
I11: Dólar do último dia do mês: | J11: 2.6623 | K11: Dólar do último dia do mês: | L11: 2.8782 | M11: Dólar do último dia do mês: | N11: 3.208 | O11: Dólar do último dia do mês: | P11: 2.9936 | Q11: Dólar do último dia do mês: | R11: 3.1788 | S11: Dólar do último dia do mês: | T11: 3.1026 | U11: Dólar do último dia do mês: | V11: 3.394 | W11: Dólar do último dia do mês: | X11: 3.6467 | Y11: Dólar do último dia do mês: | Z11: 3.9729 | AA11: Dólar do último dia do mês: | AB11: 3.8589 | AC11: Dólar do último dia do mês: | AD11: 3.8506 | AE11: Dólar do último dia do mês: | AF11: 3.9048
B12: SALDO ANTES DA INADIMPLÊNCIA EM 31/12/2014. ( A ) | C12: -1041113997 | D12: -2355127439 | E12: ---- | F12: ---- | G12: =C12 -> -1041113997 | H12: =D12 -> -2355127439 | I12: SALDO FINAL MÊS ANTERIOR | J12: SALDO FINAL MÊS ANTERIOR | K12: SALDO FINAL MÊS ANTERIOR | L12: SALDO FINAL MÊS ANTERIOR | M12: SALDO FINAL MÊS ANTERIOR | N12: SALDO FINAL MÊS ANTERIOR | O12: SALDO FINAL MÊS ANTERIOR | P12: SALDO FINAL MÊS ANTERIOR | Q12: SALDO FINAL MÊS ANTERIOR | R12: SALDO FINAL MÊS ANTERIOR | S12: SALDO FINAL MÊS ANTERIOR | T12: SALDO FINAL MÊS ANTERIOR | U12: SALDO FINAL MÊS ANTERIOR | V12: SALDO FINAL MÊS ANTERIOR | W12: SALDO FINAL MÊS ANTERIOR | X12: SALDO FINAL MÊS ANTERIOR | Y12: SALDO FINAL MÊS ANTERIOR | Z12: SALDO FINAL MÊS ANTERIOR | AA12: SALDO FINAL MÊS ANTERIOR | AB12: SALDO FINAL MÊS ANTERIOR | AC12: SALDO FINAL MÊS ANTERIOR | AD12: SALDO FINAL MÊS ANTERIOR | AE12: SALDO FINAL MÊS ANTERIOR | AF12: SALDO FINAL MÊS ANTERIOR
B13: SALDO ANTES DA INADIMPLÊNCIA EM: 31/08/2015 ( A ) | C13: ---- | D13: ---- | E13: =C60 -> -134882104 | F13: =D60 -> 1063028432 | G13: ---- | H13: ---- | I13: =C12 -> -1041113997 | J13: =D12 -> -2355127439 | K13: =I60 -> -933238149.5 | L13: -2068606561 | M13: -818331049.2 | N13: -1632902878 | O13: -712559240.6 | P13: -1084130688 | Q13: -583153803.7 | R13: -815994667.6 | S13: -456116115.6 | T13: -305689904.3 | U13: -347686694.6 | V13: -6175750.43 | W13: -241751421 | X13: 522600737.7 | Y13: -134882104 | Z13: 1063028432 | AA13: -27035496.13 | AB13: 1705947189 | AC13: 74525603.36 | AD13: 2029173591 | AE13: 153739205.8 | AF13: 2322160440
B14: NATUREZA DAS CONTAS | C14: VALORES REALIZADOS DE JANEIRO A AGOSTO/2015 EM US$ | D14: VALORES REALIZADOS DE JANEIRO A AGOSTO/2015 EM R$ | E14: VALORES PREVISTOS DE SETEMBRO A DEZEMBRO/2015 EM US$ | F14: VALORES PREVISTOS DE SETEMBRO A DEZEMBRO/2015 EM R$ | G14: TOTAIS DE JANEIRO A DEZEMBRO/2015 EM US$ | H14: TOTAIS DE JANEIRO A DEZEMBRO/2015 EM R$ | I14: JANEIRO/2015 EM US$ | J14: JANEIRO/2015 EM R$ | K14: FEVEREIRO/2015 EM US$ | L14: FEVEREIRO/2015 EM R$ | M14: MARÇO/2015 EM US$ | N14: MARÇO/2015 EM R$ | O14: ABRIL/2015 EM US$ | P14: ABRIL/2015 EM R$ | Q14: MAIO/2015 EM US$ | R14: MAIO/2015 EM R$ | S14: JUNHO/2015 EM US$ | T14: JUNHO/2015 EM R$ | U14: JULHO/2015 EM US$ | V14: JULHO/2015 EM R$ | W14: AGOSTO/2015 EM US$ | X14: AGOSTO/2015 EM R$ | Y14: SETEMBRO/2015 EM US$ | Z14: SETEMBRO/2015 EM R$ | AA14: OUTUBRO/2015 EM US$ | AB14: OUTUBRO/2015 EM R$ | AC14: NOVEMBRO/2015 EM US$ | AD14: NOVEMBRO/2015 EM R$ | AE14: DEZEMBRO/2015 EM US$ | AF14: DEZEMBRO/2015 EM R$
B18: 01 (+) Faturamento do Repasse da Energia | C18: =+I18+K18+M18+O18+Q18+S18+U18+W18 -> 3353012828 | D18: =+J18+L18+N18+P18+R18+T18+V18+X18 -> 1.046608912e+10 | E18: =+Y18+AA18+AC18+AE18 -> 1643101048 | F18: =+Z18+AB18+AD18+AF18 -> 6428169780 | G18: =+I18+K18+M18+O18+Q18+S18+U18+W18+Y18+AA18+AC18+AE18 -> 4996113876 | H18: =+J18+L18+N18+P18+R18+T18+V18+X18+Z18+AB18+AD18+AF18 -> 1.68942589e+10 | I18: 409062188.1 | J18: 1061925440 | K18: 409062188.1 | L18: 1175153854 | M18: 418198911.9 | N18: 1363370273 | O18: 418198911.9 | P18: 1228459304 | Q18: 422386726.1 | R18: 1340993378 | S18: 422193764.2 | T18: 1337822226 | U18: 427335788.1 | V18: 1428144636 | W18: =374721867.9+51852482.1 -> 426574350 | X18: =1341129565.26+189090446.49 -> 1530220012 | Y18: 423909411.9 | Z18: 1745319831 | AA18: 410965650 | AB18: 1616245708 | AC18: 406397288.1 | AD18: 1519885218 | AE18: 401828697.7 | AF18: 1546719023
B19: 02 (+) Juros referentes ao Repasse da Energia | C19: 2344677.244 | D19: 7300389.91 | E19: 4457562.16 | F19: 17194557.52 | G19: 6802239.404 | H19: 24494947.43 | I19: 108459.27 | J19: 290105.5 | K19: 64676.74 | L19: 182012.15 | M19: 37670.6 | N19: 117157.29 | O19: 71380.8 | P19: 224266.19 | Q19: 53358.29 | R19: 162516.82 | S19: =220743-179.11/T11 -> 220685.271 | T19: 692122.51 | U19: =1689000.18+(179.11/V11) -> 1689052.953 | V19: 5286367.57 | W19: 99393.32 | X19: 345841.88 | Y19: 97910.69 | Z19: 383157.82 | AA19: 3343687.88 | AB19: 12860783.36 | AC19: 341142.98 | AD19: 1277357.76 | AE19: 674820.61 | AF19: 2673258.58
B20: 03 (+) Juros contratuais do Repasse de ITAIPU sobre créditos renegociados | C20: 40232026.53 | D20: 124387082.7 | E20: 21681721.5 | F20: 86082912.15 | G20: 61913748.03 | H20: 210469994.8 | I20: =3611483.27+297476.03+(3925265.05/2.6623) -> 5383348.005 | J20: 14072923.39 | K20: 0 | L20: 0 | M20: =260291.53+201516.02+3378484.35+3494983.81+((3491729.94+3802439.76)/3.208) -> 9609019.382 | N20: 29691833.24 | O20: =185922.52+3611483.27+(4016775.66/2.9936) -> 5139193.49 | P20: 15171655.17 | Q20: =3648519.83+(4175311.9/3.1788) -> 4962006.649 | R20: 15773226.74 | S20: =3715839.78+(4153767.73/3.1026) -> 5054641.988 | T20: 15821942.18 | U20: =3494983.81+(4536557.79/V11) -> 4831624.29 | V20: 16216444.18 | W20: =3966044.81+4690195.62/3.6467 -> 5252192.73 | X20: 17639057.76 | Y20: =228987.66+3611483.27+(4475652.54/Z11) -> 4967016.411 | Z20: 20287639.45 | AA20: =3422171.64+211966.14+4476509.32/AB11 -> 4794185.804 | AB20: 20179328.68 | AC20: =3461004.8+850219.65+4264097.67/AD11 -> 5418609.707 | AD20: 20387645.99 | AE20: =5354948.2+4478654.79/AF11 -> 6501909.578 | AF20: 25228298.03
B21: 04 (+) Rendimento de aplicação financeira B.B. S/A | C21: 148.116996 | D21: 463.88 | E21: 847633.1312 | F21: 3263898.12 | G21: 847781.2482 | H21: 3264362 | I21: =J21/$J$11 -> 21.46264508 | J21: 57.14 | K21: =L21/$L$11 -> 15.56875825 | L21: 44.81 | M21: =N21/$N$11 -> 17.21321696 | N21: 55.22 | O21: =P21/$P$11 -> 17.66435061 | P21: 52.88 | Q21: =R21/R11 -> 18.14206619 | R21: 57.67 | S21: =T21/T11 -> 18.13640173 | T21: 56.27 | U21: =76.84/V11 -> 22.63995286 | V21: 76.84 | W21: =X21/X11 -> 17.2896043 | X21: 63.05 | Y21: =Z21/Z11 -> 10.50869642 | Z21: 41.75 | AA21: =AB21/AB11 -> 11.63284874 | AB21: 44.89 | AC21: =AD21/AD11 -> 847599.8624 | AD21: =39.3+3263728.73 -> 3263768.03 | AE21: =AF21/AF11 -> 11.12733047 | AF21: 43.45
B22: 05 (+) Devolução do bônus de ITAIPU | C22: 135.6298572 | D22: 400.52 | E22: 3.58403939 | F22: 13.91 | G22: 139.2138966 | H22: 414.43 | I22: =J22/$J$11 -> 33.90301619 | J22: 90.26 | K22: =L22/$L$11 -> 46.39705371 | L22: 133.54 | M22: =N22/$N$11 -> 21.52743142 | N22: 69.06 | O22: =P22/$P$11 -> 18.11531267 | P22: 54.23 | Q22: =R22/R11 -> 2.617339877 | R22: 8.32 | S22: =T22/T11 -> 2.771868755 | T22: 8.6 | U22: =V22/V11 -> 4.127872717 | V22: 14.01 | W22: =X22/X11 -> 6.169961883 | X22: 22.5 | Y22: =Z22/Z11 -> 0.8432127665 | Z22: 3.35 | AA22: =AB22/AB11 -> 0.7437352613 | AB22: 2.87 | AC22: =AD22/AD11 -> 1.997091362 | AD22: 7.69 | AE22: 0 | AF22: 0
B23: 06 (+) Liquidação CCEE - Venda de Energia | C23: =+I23+K23+M23+O23+Q23+S23+U23+W23 -> 26011556.58 | D23: 80045903.52 | E23: =+Y23+AA23+AC23+AE23 -> 2235148.604 | F23: 8880021.89 | G23: =+I23+K23+M23+O23+Q23+S23+U23+W23+Y23+AA23+AC23+AE23 -> 28246705.19 | H23: 88925925.41 | I23: 0 | J23: 0 | K23: =L23/L11 -> 2721816.403 | L23: 7833931.97 | M23: 0 | N23: 0 | O23: =P23/P11 -> 8535993.289 | P23: 25553349.51 | Q23: =R23/R11 -> 11596416.53 | R23: 36862688.88 | S23: =T23/T11 -> 3157330.355 | T23: 9795933.16 | U23: 0 | V23: 0 | W23: 0 | X23: 0 | Y23: =Z23/Z11 -> 2235148.604 | Z23: =8793931.35+86090.54 -> 8880021.89 | AA23: 0 | AB23: 0 | AC23: 0 | AD23: 0 | AE23: =+AF23/AB11 -> 0 | AF23: 0
B24: 07 (+) Rendimento Aplic. Financ.do Aporte de Garantias Liq.CCEE | C24: 1257270.014 | D24: 3461516.07 | E24: 0 | F24: 0 | G24: 1257270.014 | H24: 3461516.07 | I24: =J24/J11 -> 790420.3546 | J24: 2104336.11 | K24: =L24/L11 -> 406054.6731 | L24: 1168706.56 | M24: =N24/N11 -> 12246.81421 | N24: 39287.78 | O24: =P24/P11 -> 27750.05679 | P24: 83072.57 | Q24: =R24/R11 -> 20798.11564 | R24: 66113.05 | S24: 0 | T24: 0 | U24: 0 | V24: 0 | W24: 0 | X24: 0 | Y24: 0 | Z24: 0 | AA24: 0 | AB24: 0 | AC24: 0 | AD24: 0 | AE24: 0 | AF24: 0
B25: 08 (+) Liq. CCEE - Recuperação Inadimplência do Mês Anterior | C25: 0 | D25: 0 | E25: 1135407.144 | F25: 4371998.75 | G25: 1135407.144 | H25: 4371998.75 | I25: 0 | J25: 0 | K25: 0 | L25: 0 | M25: 0 | N25: 0 | O25: 0 | P25: 0 | Q25: 0 | R25: 0 | S25: 0 | T25: 0 | U25: 0 | V25: 0 | W25: 0 | X25: 0 | Y25: 0 | Z25: 0 | AA25: 0 | AB25: 0 | AC25: =AD25/AD11 -> 1135407.144 | AD25: 4371998.75 | AE25: 0 | AF25: 0
B26: 09 (-) Liq. CCEE - Inadimplência do Mês | C26: 0 | D26: 0 | E26: -1100455.272 | F26: -4371998.75 | G26: -1100455.272 | H26: -4371998.75 | I26: 0 | J26: 0 | K26: 0 | L26: 0 | M26: 0 | N26: 0 | O26: 0 | P26: 0 | Q26: 0 | R26: 0 | S26: 0 | T26: 0 | U26: 0 | V26: 0 | W26: 0 | X26: 0 | Y26: =Z26/Z11 -> -1100455.272 | Z26: -4371998.75 | AA26: 0 | AB26: 0 | AC26: 0 | AD26: 0 | AE26: 0 | AF26: 0
B27: 10 (-) Liquidação CCEE - Compra de Energia | C27: -11231189.35 | D27: -33609565.73 | E27: -13490629.71 | F27: -52289533.11 | G27: -24721819.05 | H27: -85899098.84 | I27: =J27/J11 -> -4434835.421 | J27: -11806862.34 | K27: 0 | L27: 0 | M27: =N27/N11 -> -6796353.925 | N27: -21802703.39 | O27: 0 | P27: 0 | Q27: 0 | R27: 0 | S27: 0 | T27: 0 | U27: 0 | V27: 0 | W27: 0 | X27: 0 | Y27: 0 | Z27: 0 | AA27: 0 | AB27: 0 | AC27: =AD27/AD11 -> -7171176.453 | AD27: =-23241333.3-4371998.75 -> -27613332.05 | AE27: =AF27/AF11 -> -6319453.252 | AF27: -24676201.06
B28: 11 (-) Multa de 2% Pelo Não Aporte das Garantias | C28: -3127200.736 | D28: -10032059.96 | E28: 0 | F28: 0 | G28: -3127200.736 | H28: -10032059.96 | I28: 0 | J28: 0 | K28: 0 | L28: 0 | M28: =N28/N11 -> -3127200.736 | N28: -10032059.96 | O28: 0 | P28: 0 | Q28: 0 | R28: 0 | S28: 0 | T28: 0 | U28: 0 | V28: 0 | W28: 0 | X28: 0 | Y28: 0 | Z28: 0 | AA28: 0 | AB28: 0 | AC28: 0 | AD28: 0 | AE28: 0 | AF28: 0
B29: 12 (-) Potência Contratada | C29: -1990695778 | D29: -6245005670 | E29: -974841575.8 | F29: -3799404526 | G29: -2965537354 | H29: -1.00444102e+10 | I29: -242091448.6 | J29: -644520063.6 | K29: -242556308 | L29: -698125565.7 | M29: -247710192.8 | N29: -794654298.5 | O29: -248244931.4 | P29: -743146026.6 | Q29: -250747000 | R29: -797074563.6 | S29: -252993236.6 | T29: -784936815.9 | U29: -253137763.6 | V29: -859149569.7 | W29: -253214897.4 | X29: -923398766.4 | Y29: -251236516 | Z29: -998137554.4 | AA29: -243964694.8 | AB29: =+AA29*$AB$11 -> -941435360.8 | AC29: -241108597.2 | AD29: -928412764.4 | AE29: -238531767.8 | AF29: -931418846.9
B30: 13 (-) Energia Cedida Vinculada | C30: -31194446.12 | D30: -98130195.33 | E30: -14947090.2 | F30: -58265071.15 | G30: -46141536.32 | H30: -156395266.5 | I30: -3763342.91 | J30: -10019147.83 | K30: -3399148.44 | L30: -9783429.04 | M30: -3956438 | N30: -12692253.1 | O30: -3828810.97 | P30: -11461928.52 | Q30: -4044939.92 | R30: -12858055.02 | S30: -3918784.79 | T30: -12158421.69 | U30: -4149533.09 | V30: -14083515.31 | W30: -4133448 | X30: -15073444.82 | Y30: -3945609.9 | Z30: -15675513.57 | AA30: -3803564.7 | AB30: =+AA30*$AB$11 -> -14677575.82 | AC30: -3587436.9 | AD30: -13813784.53 | AE30: -3610478.7 | AF30: -14098197.23
B31: 14 (-) Ajuste do dólar - Energia Cedida Vinculada | C31: -33638210.24 | D31: -109447806.3 | E31: -18445751.95 | F31: -59981896.2 | G31: -52083962.19 | H31: -169429702.5 | I31: -3822678.26 | J31: -12493659.36 | K31: -3822678.26 | L31: -12430585.17 | M31: -4273047.4 | N31: -13895095.54 | O31: -4273047.4 | P31: -13895095.54 | Q31: -4273047.4 | R31: -13895095.54 | S31: -4273047.4 | T31: -13895095.54 | U31: -4273047.4 | V31: -13895095.54 | W31: -4627616.72 | X31: -15048084.05 | Y31: -4627616.72 | Z31: -15048084.05 | AA31: -4562901.73 | AB31: -14837643.85 | AC31: -4627616.72 | AD31: -15048084.05 | AE31: -4627616.78 | AF31: -15048084.25
B32: 15 (-) Energia Cedida Não Vinculada | C32: -2107951.06 | D32: -6668209.51 | E32: -3236825.38 | F32: -12527511.67 | G32: -5344776.44 | H32: -19195721.18 | I32: -262909.19 | J32: -699943.14 | K32: -244491.87 | L32: -703696.5 | M32: -628500.58 | N32: -2016229.86 | O32: -91381.56 | P32: -273559.84 | Q32: -125808.16 | R32: -399918.98 | S32: 0 | T32: 0 | U32: -703940.16 | V32: -2389172.9 | W32: -50919.54 | X32: -185688.29 | Y32: -22756.06 | Z32: -90407.55 | AA32: -1139571.29 | AB32: =+AA32*$AB$11 -> -4397491.651 | AC32: -1123384.44 | AD32: -4325704.12 | AE32: -951113.59 | AF32: -3713908.35
B33: 16 (-) Royalties Energia Cedida Não Vinculada | C33: -13661577.64 | D33: -42983131.69 | E33: -12768741.59 | F33: -49495625.51 | G33: -26430319.23 | H33: -92478757.2 | I33: -1971193.61 | J33: -5247908.75 | K33: -1742353.24 | L33: -5014841.1 | M33: -3296424.49 | N33: -10574929.76 | O33: -926709.8 | P33: -2774198.46 | Q33: -948447.99 | R33: -3014926.47 | S33: -465646.29 | T33: -1444714.18 | U33: -3199800.08 | V33: -10860121.47 | W33: -1111002.14 | X33: -4051491.5 | Y33: -868993.88 | Z33: -3452425.79 | AA33: -4333182.14 | AB33: -16721316.56 | AC33: -4133617.77 | AD33: -15916908.59 | AE33: -3432947.8 | AF33: -13404974.57
B34: 17 (-) Ressarcimento Encargos Supervisão Não Vinculado | C34: -1050890.59 | D34: -3306394.74 | E34: -982210.89 | F34: -3807355.798 | G34: -2033101.48 | H34: -7113750.538 | I34: -151630.28 | J34: -403685.29 | K34: -134027.17 | L34: -385757 | M34: -253571.11 | N34: -813456.12 | O34: -71285.37 | P34: -213399.88 | Q34: -72957.54 | R34: -231917.43 | S34: -35818.95 | T34: -111131.87 | U34: -246138.47 | V34: -835393.97 | W34: -85461.7 | X34: -311653.18 | Y34: -66845.68 | Z34: -265571.2 | AA34: -333321.7 | AB34: -1286255.108 | AC34: -317970.6 | AD34: -1224377.59 | AE34: -264072.91 | AF34: -1031151.9
B35: 18 (-) Ajuste do dólar Energia Cedida Não Vinculada | C35: -3382723.52 | D35: -11013221.8 | E35: -64714.99 | F35: -210440.2 | G35: -3447438.51 | H35: -11223662 | I35: -804938.46 | J35: -2630780.37 | K35: -804938.46 | L35: -2617498.88 | M35: -354569.32 | N35: -1152988.51 | O35: -354569.32 | P35: -1152988.51 | Q35: -354569.32 | R35: -1152988.51 | S35: -354569.32 | T35: -1152988.51 | U35: -354569.32 | V35: -1152988.51 | W35: 0 | X35: 0 | Y35: 0 | Z35: 0 | AA35: -64714.99 | AB35: -210440.2 | AC35: 0 | AD35: =+AC35*$AB$11 -> 0 | AE35: 0 | AF35: =+AE35*$AB$11 -> 0
B36: 19 (-) Ajuste do dólar - Royalties | C36: -15173512.8 | D36: -49372524.33 | E36: -7586756.47 | F36: -24670614.7 | G36: -22760269.27 | H36: -74043139.03 | I36: -1896689.1 | J36: -6198948.99 | K36: -1896689.1 | L36: -6167653.62 | M36: -1896689.1 | N36: -6167653.62 | O36: -1896689.1 | P36: -6167653.62 | Q36: -1896689.1 | R36: -6167653.62 | S36: -1896689.1 | T36: -6167653.62 | U36: -1896689.1 | V36: -6167653.62 | W36: -1896689.1 | X36: -6167653.62 | Y36: -1896689.1 | Z36: -6167653.62 | AA36: -1896689.1 | AB36: -6167653.62 | AC36: -1896689.1 | AD36: -6167653.62 | AE36: -1896689.17 | AF36: -6167653.84
B37: 20 (-) Ajuste do dólar - Ressarcimento de Encargos | C37: -1167193.28 | D37: -3797886.45 | E37: -583596.66 | F37: -1897739.62 | G37: -1750789.94 | H37: -5695626.07 | I37: -145899.16 | J37: -476842.22 | K37: -145899.16 | L37: -474434.89 | M37: -145899.16 | N37: -474434.89 | O37: -145899.16 | P37: -474434.89 | Q37: -145899.16 | R37: -474434.89 | S37: -145899.16 | T37: -474434.89 | U37: -145899.16 | V37: -474434.89 | W37: -145899.16 | X37: -474434.89 | Y37: -145899.16 | Z37: -474434.89 | AA37: -145899.16 | AB37: -474434.89 | AC37: -145899.16 | AD37: -474434.89 | AE37: -145899.18 | AF37: -474434.95
B38: 21 (-) Juros da Potência Contratada, Energias Cedidas, Royalties, Ressarcimento e dos Ajustes do Dólar | C38: =+I38+K38+M38+O38+Q38+S38+U38+W38 -> -6772.95 | D38: =+J38+L38+N38+P38+R38+T38+V38+X38 -> -18232.11 | E38: =+Y38+AA38+AC38+AE38 -> 0 | F38: =+Z38+AB38+AD38+AF38 -> 0 | G38: =+I38+K38+M38+O38+Q38+S38+U38+W38+Y38+AA38+AC38+AE38 -> -6772.95 | H38: =+J38+L38+N38+P38+R38+T38+V38+X38+Z38+AB38+AD38+AF38 -> -18232.11 | I38: -6772.95 | J38: -18232.11 | K38: 0 | L38: 0 | M38: 0 | N38: 0 | O38: 0 | P38: 0 | Q38: 0 | R38: 0 | S38: 0 | T38: 0 | U38: 0 | V38: 0 | W38: 0 | X38: 0 | Y38: 0 | Z38: 0 | AA38: 0 | AB38: 0 | AC38: 0 | AD38: 0 | AE38: 0 | AF38: 0
B39: 22 (+/-) Juros Pagos dos Empréstimos Obtidos por ITAIPU Junto à ELETROBRAS e juros por atraso de transferência da CCEE | C39: =+I39+K39+M39+O39+Q39+S39+U39+W39 -> -56792946.04 | D39: =+J39+L39+N39+P39+R39+T39+V39+X39 -> -181894995.5 | E39: =+Y39+AA39+AC39+AE39 -> -54303294.48 | F39: =+Z39+AB39+AD39+AF39 -> -210817560.8 | G39: =+I39+K39+M39+O39+Q39+S39+U39+W39+Y39+AA39+AC39+AE39 -> -111096240.5 | H39: =+J39+L39+N39+P39+R39+T39+V39+X39+Z39+AB39+AD39+AF39 -> -392712556.3 | I39: =J39/J11 -> -6876898.114 | J39: -18308365.85 | K39: =L39/L11 -> -500653.8635 | L39: -1440981.95 | M39: =N39/N11 -> -5532551.244 | N39: -17748424.39 | O39: =P39/P11 -> -5869220.671 | P39: -17570099 | Q39: =R39/R11 -> -5247094.517 | R39: -16679464.05 | S39: =T39/T11 -> -11890645.94 | T39: -36891918.08 | U39: =V39/V11 -> -11366583.1 | V39: -38578183.04 | W39: =X39/X11 -> -9509298.593 | X39: -34677559.18 | Y39: =Z39/Z11 -> -9891188.452 | Z39: -39296702.6 | AA39: =AB39/AB11 -> -10687301.49 | AB39: -41241227.73 | AC39: =AD39/AD11 -> -25996057.42 | AD39: -100100418.7 | AE39: =AF39/AF11 -> -7728747.114 | AF39: -30179211.73
B40: 23 (-) Ativo Regulatório - Tesouro | C40: -135500669.8 | D40: -419317438.6 | E40: -71005740 | F40: -273475057.3 | G40: -206506409.8 | H40: -692792496 | I40: -14496029.85 | J40: -38045313.54 | K40: -14496029.99 | L40: -41168725.17 | M40: -17751435 | N40: -56756663.13 | O40: -17751435 | P40: -53482115.09 | Q40: -17751435 | R40: -54460219.16 | S40: -17751435 | T40: -55129448.26 | U40: -17751435 | V40: -57659725.88 | W40: -17751435 | X40: -62615228.39 | Y40: -17751435 | Z40: -69859589.01 | AA40: -17751435 | AB40: -68478527.38 | AC40: -17751435 | AD40: -67010483.7 | AE40: -17751435 | AF40: -68126457.24
B41: 24 (-) Ativo Regulatório - Eletrobrás | C41: -117384923.5 | D41: -360613445.2 | E41: -57689391.12 | F41: -222187805.4 | G41: -175074314.6 | H41: -582801250.6 | I41: =-3*5141806.12 -> -15425418.36 | J41: =-(13668463.21+13467932.77+13348128.69) -> -40484524.67 | K41: =-(5141806.12+5141806.12+5141806.24) -> -15425418.48 | L41: =-(14331756.2+14677285.57+14799146.72) -> -43808188.49 | M41: =-3*4807449.26 -> -14422347.78 | N41: =-(14911746.11+15692475.87+15508350.57) -> -46112572.55 | O41: =-4807449.26*3 -> -14422347.78 | P41: =-(14646374.92+14683873.02+14121882.2) -> -43452130.14 | Q41: =-3*4807449.26 -> -14422347.78 | R41: =-14406002.45-14558879.34-15281919.71 -> -44246801.5 | S41: =-3*4807449.26 -> -14422347.78 | T41: =-14898766-14801174.78-15090583.23 -> -44790524.01 | U41: =-4807449.26*2-4519741.71-287707.55 -> -14422347.78 | V41: =-15462199.05-15303072.48-15104524.83-976479.42 -> -46846275.78 | W41: =-3*4807449.26 -> -14422347.78 | X41: =-16913087.24-16753479.93-17205860.9 -> -50872428.07 | Y41: =4807449.26*3*-1 -> -14422347.78 | Z41: =(18205810.35+18759147.76+19793230.09)*-1 -> -56758188.2 | AA41: =4807449.26*3*-1 -> -14422347.78 | AB41: =-1*(17973129.8+18756263.29+18906736.45) -> -55636129.54 | AC41: =4807449.26*3*-1 -> -14422347.78 | AD41: =-1*(18233693.55+18230328.34+17979379.49) -> -54443401.38 | AE41: =4807449.26*3*-1 -> -14422347.78 | AF41: =-1*(18066394.32+18778858.3+18504833.69) -> -55350086.31
B42: 25 (-) Custos Administrativos | C42: -624351.3128 | D42: -1940053.44 | E42: -248967.3875 | F42: -970026.72 | G42: -873318.7003 | H42: -2910080.16 | I42: =J42/J11 -> -91089.16351 | J42: -242506.68 | K42: =L42/$L$11 -> -84256.36856 | L42: -242506.68 | M42: =N42/$N$11 -> -75594.35162 | N42: -242506.68 | O42: =P42/$P$11 -> -81008.37787 | P42: -242506.68 | Q42: =R42/R11 -> -76288.75047 | R42: -242506.68 | S42: =T42/T11 -> -78162.40572 | T42: -242506.68 | U42: =V42/V11 -> -71451.58515 | V42: -242506.68 | W42: =X42/X11 -> -66500.30987 | X42: -242506.68 | Y42: =+Z42/Z11 -> -61040.21747 | Z42: -242506.68 | AA42: =AB42/AB11 -> -62843.47353 | AB42: -242506.68 | AC42: =+AD42/AD11 -> -62978.93315 | AD42: -242506.68 | AE42: =+AF42/AF11 -> -62104.76337 | AF42: -242506.68
B43: NATUREZA DAS CONTAS | C43: VALORES REALIZADOS DE JANEIRO A AGOSTO/2015 EM US$ | D43: VALORES REALIZADOS DE JANEIRO A AGOSTO/2015 EM R$ | E43: VALORES PREVISTOS DE SETEMBRO A DEZEMBRO/2015 EM US$ | F43: VALORES PREVISTOS DE SETEMBRO A DEZEMBRO/2015 EM R$ | G43: TOTAIS DE JANEIRO A DEZEMBRO/2015 EM US$ | H43: TOTAIS DE JANEIRO A DEZEMBRO/2015 EM R$ | I43: JANEIRO/2015 EM US$ | J43: JANEIRO/2015 EM R$ | K43: FEVEREIRO/2015 EM US$ | L43: FEVEREIRO/2015 EM R$ | M43: MARÇO/2015 EM US$ | N43: MARÇO/2015 EM R$ | O43: ABRIL/2015 EM US$ | P43: ABRIL/2015 EM R$ | Q43: MAIO/2015 EM US$ | R43: MAIO/2015 EM R$ | S43: JUNHO/2015 EM US$ | T43: JUNHO/2015 EM R$ | U43: JULHO/2015 EM US$ | V43: JULHO/2015 EM R$ | W43: AGOSTO/2015 EM US$ | X43: AGOSTO/2015 EM R$ | Y43: SETEMBRO/2015 EM US$ | Z43: SETEMBRO/2015 EM R$ | AA43: OUTUBRO/2015 EM US$ | AB43: OUTUBRO/2015 EM R$ | AC43: NOVEMBRO/2015 EM US$ | AD43: NOVEMBRO/2015 EM R$ | AE43: DEZEMBRO/2015 EM US$ | AF43: DEZEMBRO/2015 EM R$
B47: 26 (-) Contribuição Anual a CCEE | C47: =+I47+K47+M47+O47+Q47+S47+U47+W47 -> -1348392.457 | D47: =+J47+L47+N47+P47+R47+T47+V47+X47 -> -4185427.07 | E47: =+Y47+AA47+AC47+AE47 -> -521487.5435 | F47: =+Z47+AB47+AD47+AF47 -> -2031907.25 | G47: =+I47+K47+M47+O47+Q47+S47+U47+W47+Y47+AA47+AC47+AE47 -> -1869880 | H47: =+J47+L47+N47+P47+R47+T47+V47+X47+Z47+AB47+AD47+AF47 -> -6217334.32 | I47: =J47/$J$11 -> -200899.2112 | J47: -534853.97 | K47: =L47/$L$11 -> -183439.2919 | L47: -527974.97 | M47: =N47/$N$11 -> -163772.4813 | N47: -525382.12 | O47: =P47/$P$11 -> -174482.8133 | P47: -522331.75 | Q47: =R47/R11 -> -167559.6892 | R47: -532638.74 | S47: =T47/T11 -> -166396.5029 | T47: -516261.79 | U47: =V47/V11 -> -151476.8238 | V47: -514112.34 | W47: =X47/X11 -> -140365.6429 | X47: -511871.39 | Y47: =Z47/Z11 -> -128840.2678 | Z47: -511869.5 | AA47: =AB47/AB11 -> -131999.8963 | AB47: -509374.4 | AC47: =+AD47/AD11 -> -131227.6165 | AD47: -505305.06 | AE47: =+AF47/AF11 -> -129419.7629 | AF47: -505358.29
B48: 27 (-) Contribuição ao O N S | C48: -96389.52531 | D48: -300049.93 | E48: -40337.19617 | F48: -157161.78 | G48: -136726.7215 | H48: -457211.71 | I48: =J48/$J$11 -> -13922.00353 | J48: -37064.55 | K48: =L48/$L$11 -> -12844.66681 | L48: -36969.52 | M48: =N48/$N$11 -> -11494.53865 | N48: -36874.48 | O48: =P48/$P$11 -> -12301.89738 | P48: -36826.96 | Q48: =R48/R11 -> -11585.1768 | R48: -36826.96 | S48: =T48/T11 -> -11854.39954 | T48: -36779.46 | U48: =V48/V11 -> -11595.16794 | V48: -39354 | W48: =X48/X11 -> -10791.67466 | X48: -39354 | Y48: =Z48/Z11 -> -9892.813814 | Z48: -39303.16 | AA48: =AB48/AB11 -> -10198.24302 | AB48: -39354 | AC48: =+AD48/AD11 -> -10193.81655 | AD48: -39252.31 | AE48: =+AF48/AF11 -> -10052.32278 | AF48: -39252.31
B49: 28 (-) Despesas Bancárias | C49: -108.0634223 | D49: -335.84 | E49: -9.857482375 | F49: -38.73 | G49: -117.9209046 | H49: -374.57 | I49: =J49/J11 -> -14.13439507 | J49: -37.63 | K49: =L49/L11 -> -13.07414356 | L49: -37.63 | M49: =N49/N11 -> -11.73004988 | N49: -37.63 | O49: =P49/P11 -> -22.72514698 | P49: -68.03 | Q49: =R49/R11 -> -12.18384296 | R49: -38.73 | S49: =T49/T11 -> -12.48307871 | T49: -38.73 | U49: =V49/V11 -> -7.094873306 | V49: -24.08 | W49: =X49/X11 -> -14.63789179 | X49: -53.38 | Y49: =Z49/Z11 -> -6.061063707 | Z49: -24.08 | AA49: =AB49/AB11 -> -3.796418669 | AB49: -14.65 | AC49: 0 | AD49: 0 | AE49: 0 | AF49: 0
B50: 29 (-) Custeio com Imposto de Renda BB | C50: -20.13023783 | D50: -63.99 | E50: -16.57984501 | F50: -64.41 | G50: -36.71008283 | H50: -128.4 | I50: 0 | J50: 0 | K50: 0 | L50: 0 | M50: 0 | N50: 0 | O50: 0 | P50: 0 | Q50: =R50/R11 -> -20.13023783 | R50: -63.99 | S50: 0 | T50: 0 | U50: 0 | V50: 0 | W50: 0 | X50: 0 | Y50: =Z50/Z11 -> -4.641445795 | Z50: -18.44 | AA50: 0 | AB50: 0 | AC50: =AD50/AD11 -> -11.93839921 | AD50: -45.97 | AE50: 0 | AF50: 0
B51: 30 (-) Custeio com Imposto de Renda Bradesco | C51: =+I51+K51+M51+O51+Q51+S51+U51+W51 -> -643379.6227 | D51: =+J51+L51+N51+P51+R51+T51+V51+X51 -> -2346212.47 | E51: =+Y51+AA51+AC51+AE51 -> 0 | F51: =+Z51+AB51+AD51+AF51 -> 0 | G51: =+I51+K51+M51+O51+Q51+S51+U51+W51+Y51+AA51+AC51+AE51 -> -643379.6227 | H51: =+J51+L51+N51+P51+R51+T51+V51+X51+Z51+AB51+AD51+AF51 -> -2346212.47 | I51: 0 | J51: 0 | K51: 0 | L51: 0 | M51: 0 | N51: 0 | O51: 0 | P51: 0 | Q51: 0 | R51: 0 | S51: 0 | T51: 0 | U51: 0 | V51: 0 | W51: =X51/X11 -> -643379.6227 | X51: -2346212.47 | Y51: 0 | Z51: 0 | AA51: 0 | AB51: 0 | AC51: 0 | AD51: 0 | AE51: 0 | AF51: 0
B52: 31 (-) Custeio com IOF BB | C52: 0 | D52: 0 | E52: 0 | F52: 0 | G52: 0 | H52: 0 | I52: 0 | J52: 0 | K52: 0 | L52: 0 | M52: 0 | N52: 0 | O52: 0 | P52: 0 | Q52: 0 | R52: 0 | S52: 0 | T52: 0 | U52: 0 | V52: 0 | W52: 0 | X52: 0 | Y52: 0 | Z52: 0 | AA52: 0 | AB52: 0 | AC52: 0 | AD52: 0 | AE52: 0 | AF52: 0
B53: 32 (-) Custeio com IOF Bradesco | C53: =+I53+K53+M53+O53+Q53+S53+U53+W53 -> -1874230.803 | D53: =+J53+L53+N53+P53+R53+T53+V53+X53 -> -6834757.47 | E53: =+Y53+AA53+AC53+AE53 -> 0 | F53: =+Z53+AB53+AD53+AF53 -> 0 | G53: =+I53+K53+M53+O53+Q53+S53+U53+W53+Y53+AA53+AC53+AE53 -> -1874230.803 | H53: =+J53+L53+N53+P53+R53+T53+V53+X53+Z53+AB53+AD53+AF53 -> -6834757.47 | I53: 0 | J53: 0 | K53: 0 | L53: 0 | M53: 0 | N53: 0 | O53: 0 | P53: 0 | Q53: 0 | R53: 0 | S53: 0 | T53: 0 | U53: 0 | V53: 0 | W53: =X53/X11 -> -1874230.803 | X53: -6834757.47 | Y53: 0 | Z53: 0 | AA53: 0 | AB53: 0 | AC53: 0 | AD53: 0 | AE53: 0 | AF53: 0
B54: 33 (-) Pagamento de bônus de ITAIPU | C54: 0 | D54: 0 | E54: -6650.747622 | F54: -25664.57 | G54: -6650.747622 | H54: -25664.57 | I54: 0 | J54: 0 | K54: 0 | L54: 0 | M54: 0 | N54: 0 | O54: 0 | P54: 0 | Q54: 0 | R54: 0 | S54: 0 | T54: 0 | U54: 0 | V54: 0 | W54: 0 | X54: 0 | Y54: 0 | Z54: 0 | AA54: =AB54/AB11 -> -6650.747622 | AB54: -25664.57 | AC54: 0 | AD54: 0 | AE54: 0 | AF54: 0
B55: 34 (+) Variação Cambial (Ativa) | C55: 0 | D55: 1276601375 | E55: 0 | F55: 480634787.9 | G55: 0 | H55: 1757236163 | I55: 0 | J55: 44869890.61 | K55: 0 | L55: 230154681.5 | M55: 0 | N55: 381096821.5 | O55: 0 | P55: -81034244.42 | Q55: 0 | R55: 132224640.2 | S55: 0 | T55: -23115757.23 | U55: 0 | V55: 284107298.9 | W55: 0 | X55: 308298044 | Y55: 0 | Z55: 354419813.4 | AA55: 0 | AB55: -44901706.03 | AC55: 0 | AD55: 49942276.53 | AE55: 0 | AF55: 121174404
B56: 35 (-) Variação Cambial (Passiva) | C56: 0 | D56: -644138842.3 | E56: 0 | F56: -343087209.7 | G56: 0 | H56: -987226052.1 | I56: 0 | J56: -15255938.36 | K56: 0 | L56: -121614548.7 | M56: 0 | N56: -192343271 | O56: 0 | P56: -12213381.89 | Q56: 0 | R56: -27130709.48 | S56: 0 | T56: -40761109.6 | U56: 0 | V56: -97654053.78 | W56: 0 | X56: -137165829.6 | Y56: 0 | Z56: -207698650.4 | AA56: 0 | AB56: -59883486.42 | AC56: 0 | AD56: -22902247.53 | AE56: 0 | AF56: -52602825.4
B57: 36 (+ / -) Receitas / Despesas com COFINS | C57: -78833363.52 | D57: -250479660.4 | E57: -52877999.98 | F57: -206342836.9 | G57: -131711363.5 | H57: -456822497.3 | I57: =J57/J11 -> -9047709.244 | J57: -24087716.32 | K57: =L57/L11 -> -9776071.538 | L57: -28137489.1 | M57: =N57/N11 -> -9604744.492 | N57: -30812020.33 | O57: =P57/P11 -> -3634595.4 | P57: -10880524.79 | Q57: =R57/R11 -> -9609634.362 | R57: -30547105.71 | S57: =T57/T11 -> -11332196.14 | T57: -35159271.74 | U57: =V57/V11 -> -13189310.98 | V57: -44764521.46 | W57: =X57/X11 -> -12639101.37 | X57: -46091010.97 | Y57: =+Z57/Z11 -> -14130346.01 | Z57: -56138451.67 | AA57: =AB57/$AB$11 -> -11759976.34 | AB57: -45380572.7 | AC57: =AD57/AD11 -> -10289134.02 | AD57: -39619339.47 | AE57: =AF57/AF11 -> -16698543.6 | AF57: -65204473.06
B58: 37 (+ / -) Receitas / Despesas com PASEP | C58: -17090527.75 | D58: -54294202.81 | E58: -10821062.05 | F58: -42232508.1 | G58: -27911589.8 | H58: -96526710.91 | I58: =J58/J11 -> -1964305.296 | J58: -5229569.99 | K58: =L58/L11 -> -2122436.585 | L58: -6108796.98 | M58: =N58/N11 -> -2085240.58 | N58: -6689451.78 | O58: =P58/P11 -> -789089.7916 | P58: -2362219.2 | Q58: =R58/R11 -> -2086302.196 | R58: -6631937.42 | S58: =T58/T11 -> -2460279.424 | T58: -7633262.94 | U58: =V58/V11 -> -2849630.636 | V58: -9671646.38 | W58: =X58/X11 -> -2733243.239 | X58: -9967318.12 | Y58: =Z58/Z11 -> -3056408.13 | Z58: -12142803.86 | AA58: =AB58/$AB$11 -> -2465140.19 | AB58: -9512729.48 | AC58: =AD58/AD11 -> -2150672.443 | AD58: -8281379.31 | AE58: =AF58/AF11 -> -3148841.285 | AF58: -12295595.45
B59: SALDO DO PERÍODO ( B ) REALIZADO / PREVISTO / TOTAL | C59: =SUM(C18:C42,C47:C58) -> 906231893.3 | D59: 3418155871 | E59: 377895218 | F59: 1660347815 | G59: 1284127111 | H59: 5078503686 | I59: =+I18+I19+I20+I21+I22+I23+I24+I25+I26+I27+I28+I29+I30+I31+I32+I33+I34+I35+I36+I37+I38+I39+I40+I41+I42+I47+I48+I49+I50+I51+I52+I53+I54+I55+I56+I57+I58 -> 107875847.7 | J59: =+J18+J19+J20+J21+J22+J23+J24+J25+J26+J27+J28+J29+J30+J31+J32+J33+J34+J35+J36+J37+J38+J39+J40+J41+J42+J47+J48+J49+J50+J51+J52+J53+J54+J55+J56+J57+J58 -> 286520877.7 | K59: 114907100.3 | L59: 435703683.3 | M59: 105771808.6 | N59: 548772189.5 | O59: 129405436.8 | P59: 268136020.5 | Q59: 127037688.1 | R59: 510304763.3 | S59: 108429421.1 | T59: 299514153.9 | U59: 105935273.5 | V59: 528776488.1 | W59: 106869317.1 | X59: 540427694.6 | Y59: 107846607.8 | Z59: 642918757 | AA59: 101561099.5 | AB59: 323226402 | AC59: 79213602.44 | AD59: 292986848.5 | AE59: 89273908.22 | AF59: 401215807.9
B60: SALDO FINAL ( C ) = ( A + B ) (ANTES DA INADIMPLÊNCIA) | C60: =+C12+C59 -> -134882104 | D60: =+D12+D59 -> 1063028432 | E60: =+E13+E59 -> 243013114 | F60: =+F13+F59 -> 2723376248 | G60: =+G12+G59 -> 243013114 | H60: =+H12+H59 -> 2723376248 | I60: =+I13+I59 -> -933238149.5 | J60: -2068606561 | K60: -818331049.2 | L60: -1632902878 | M60: -712559240.6 | N60: -1084130688 | O60: -583153803.7 | P60: -815994667.6 | Q60: -456116115.6 | R60: -305689904.3 | S60: -347686694.6 | T60: -6175750.43 | U60: -241751421 | V60: 522600737.7 | W60: -134882104 | X60: 1063028432 | Y60: -27035496.13 | Z60: 1705947189 | AA60: 74525603.36 | AB60: 2029173591 | AC60: 153739205.8 | AD60: 2322160440 | AE60: 243013114 | AF60: 2723376248
B62: NATUREZA DAS CONTAS | C62: VALORES REALIZADOS DE JANEIRO A AGOSTO/2015 EM US$ | D62: VALORES REALIZADOS DE JANEIRO A AGOSTO/2015 EM R$ | E62: VALORES PREVISTOS DE SETEMBRO A DEZEMBRO/2015 EM US$ | F62: VALORES PREVISTOS DE SETEMBRO A DEZEMBRO/2015 EM R$ | G62: TOTAIS DE JANEIRO A DEZEMBRO/2015 EM US$ | H62: TOTAIS DE JANEIRO A DEZEMBRO/2015 EM R$ | I62: JANEIRO/2015 EM US$ | J62: JANEIRO/2015 EM R$ | K62: FEVEREIRO/2015 EM US$ | L62: FEVEREIRO/2015 EM R$ | M62: MARÇO/2015 EM US$ | N62: MARÇO/2015 EM R$ | O62: ABRIL/2015 EM US$ | P62: ABRIL/2015 EM R$ | Q62: MAIO/2015 EM US$ | R62: MAIO/2015 EM R$ | S62: JUNHO/2015 EM US$ | T62: JUNHO/2015 EM R$ | U62: JULHO/2015 EM US$ | V62: JULHO/2015 EM R$ | W62: AGOSTO/2015 EM US$ | X62: AGOSTO/2015 EM R$ | Y62: SETEMBRO/2015 EM US$ | Z62: SETEMBRO/2015 EM R$ | AA62: OUTUBRO/2015 EM US$ | AB62: OUTUBRO/2015 EM R$ | AC62: NOVEMBRO/2015 EM US$ | AD62: NOVEMBRO/2015 EM R$ | AE62: DEZEMBRO/2015 EM US$ | AF62: DEZEMBRO/2015 EM R$
B66: 38 (-) RECEITAS NÃO REALIZADAS | C66: =W66 -> -61284383.39 | D66: =X66 -> -217387969 | E66: =AE66 -> -127142590.1 | F66: =AF66 -> -484684278.2 | G66: =E66 -> -127142590.1 | H66: =F66 -> -484684278.2 | I66: -84882042.04 | J66: -219106798.3 | K66: -80534189.09 | L66: -218882831.2 | M66: -100922127.3 | N66: -294771273.7 | O66: -133764333.7 | P66: -384199355.3 | Q66: -91743073.76 | R66: -275102965.7 | S66: -81898474.74 | T66: -242976774.4 | U66: -98819423.94 | V66: -304466998.2 | W66: -61284383.39 | X66: -217387969 | Y66: -116849591.5 | Z66: -472037032.1 | AA66: -188184974.3 | AB66: -748946204.3 | AC66: -84402265.55 | AD66: -316699711.5 | AE66: -127142590.1 | AF66: -484684278.2
B67: 39 (-) VARIAÇÃO CAMBIAL DAS RECEITAS NÃO REALIZADAS | C67: =W67 -> 0 | D67: =X67 -> -6097791.868 | E67: =AE67 -> 0 | F67: =AF67 -> -11782107.55 | G67: =E67 -> 0 | H67: =F67 -> -11782107.55 | J67: =(I66*2.6623)-J66 -> -6874662.223 | L67: =(K66*2.8782)-L66 -> -12910671.86 | N67: =(M66*3.208)-N66 -> -28986910.81 | P67: =(O66*2.9936)-P66 -> -16237554.14 | R67: =(Q66*R11)-R66 -> -16529917.2 | T67: =(S66*T11)-T66 -> -11121433.31 | V67: =(U66*V11)-V66 -> -30926126.69 | X67: =+W66*X11-X66 -> -6097791.868 | Z67: =+Y66*Z11-Z66 -> 7805290.139 | AB67: =+AA66*AB11-AB66 -> 22759206.9 | AD67: =+AC66*$AD$11-AD66 -> -8299652.197 | AF67: =+AE66*$AF$11-AF66 -> -11782107.55
B68: 40 (-) RECEITAS NÃO REALIZADAS DE COFINS E PASEP | C68: =+I68+K68+M68+O68+Q68+S68+U68+W68 -> 0 | D68: 0 | E68: =+Y68+AA68+AC68+AE68 -> 0 | F68: 0 | G68: =+I68+K68+M68+O68+Q68+S68+U68+W68+Y68+AA68+AC68+AE68 -> 0 | H68: 0
B69: 41 (-) REPACTUAÇÃO CELG - DISTRIBUIÇÃO | C69: =W69 -> -349498380.5 | D69: -715877533.1 | E69: =AE69 -> -330931279.1 | F69: -683747273.2 | G69: =E69 -> -330931279.1 | H69: -683747273.2 | I69: -349498380.5 | J69: -715877533.1 | K69: -349498380.5 | L69: -715877533.1 | M69: -349498380.5 | N69: -715877533.1 | O69: -349498380.5 | P69: -715877533.1 | Q69: -349498380.5 | R69: -715877533.1 | S69: -349498380.5 | T69: -715877533.1 | U69: -349498380.5 | V69: -715877533.1 | W69: -349498380.5 | X69: -715877533.1 | Y69: -342217164.3 | Z69: -700963417.8 | AA69: -334935948 | AB69: -686049302.5 | AC69: -338396952.8 | AD69: -698993114.4 | AE69: -330931279.1 | AF69: -683747273.2
B70: 42 (-) VARIAÇÃO CAMBIAL DA REPACTUAÇÃO CELG | C70: 0 | D70: -558638211.2 | E70: 0 | F70: -608473185.3 | G70: 0 | H70: -608473185.3 | J70: =(I69*2.6623)-J69 -> -214592005.4 | L70: =(K69*2.8782)-L69 -> -290048705.8 | N70: =(M69*3.208)-N69 -> -405313271.7 | P70: =(O69*2.9936)-P69 -> -330380818.9 | R70: =(Q69*3.1788)-R69 -> -395107919 | T70: =(S69*3.1026)-T69 -> -368476142.4 | V70: =(U69*3.394)-V69 -> -470319970.5 | X70: =(W69*X11)-X69 -> -558638211.2 | Z70: =(Y69*Z11)-Z69 -> -658631154.2 | AB70: =+AA69*AB11-AB69 -> -606435027.3 | AD70: =+AC69*AD11-AD69 -> -604038192.1 | AF70: =+AE69*AF11-AF69 -> -608473185.3
B71: 43 (-) REPACTUAÇÃO CEMAT | C71: 0 | D71: -351140081.2 | E71: 0 | F71: -351140081.2 | G71: 0 | H71: -351140081.2 | J71: -351140081.2 | L71: -351140081.2 | N71: -351140081.2 | P71: -351140081.2 | R71: -351140081.2 | T71: -351140081.2 | V71: -351140081.2 | X71: -351140081.2 | Z71: -351140081.2 | AB71: -351140081.2 | AD71: -351140081.2 | AF71: -351140081.2
B72: 44 (-) REPACTUAÇÃO EEB | C72: 0 | D72: 0 | E72: 0 | F72: 0 | G72: 0 | H72: 0 | I72: -25189502.73 | J72: -57379168.28 | K72: -21591002.34 | L72: -49182144.24 | M72: -17992501.95 | N72: -40985120.2 | O72: -14394001.56 | P72: -32788096.16 | Q72: -10795501.17 | R72: -24591072.12 | S72: -28671.55 | T72: -90000 | U72: 0 | V72: 0 | W72: 0 | X72: 0 | Y72: 0 | Z72: 0 | AA72: 0 | AB72: 0 | AC72: 0 | AD72: 0 | AE72: 0 | AF72: 0
B73: 45 (-) VARIAÇÃO CAMBIAL DA REPACTUAÇÃO EEB | C73: 0 | D73: 0 | E73: 0 | F73: 0 | G73: 0 | H73: 0 | J73: =(I72*2.6623)-J72 -> -9682844.838 | L73: =(K72*2.8782)-L72 -> -12961078.69 | N73: =(M72*3.208)-N72 -> -16734826.06 | P73: =(O72*2.9936)-P72 -> -10301786.91 | R73: =(Q72*R11)-R72 -> -9725666.999 | T73: =(S72*T11)-T72 -> 1043.64897 | U73: 0 | V73: 0 | W73: 0 | X73: 0 | Y73: 0 | Z73: 0 | AA73: 0 | AB73: 0 | AC73: 0 | AD73: 0 | AE73: 0 | AF73: 0
B74: 46 (-) REPACTUAÇÃO CEB-D | C74: =W74 -> -22160096.46 | D74: =X74 -> -69205981.21 | E74: =AE74 -> -18306166.66 | F74: =AF74 -> -57170158.45 | G74: =E74 -> -18306166.66 | H74: =F74 -> -57170158.45 | U74: -23123578.91 | V74: -72214936.9 | W74: -22160096.46 | X74: -69205981.21 | Y74: -21196614.01 | Z74: -66197025.52 | AA74: -20233131.56 | AB74: -63188069.83 | AC74: -19525923.15 | AD74: -61165922.96 | AE74: -18306166.66 | AF74: -57170158.45
B75: 47 (-) VARIAÇÃO CAMBIAL DA REPACTUAÇÃO CEB-D | C75: 0 | D75: -11605242.55 | E75: 0 | F75: -14311761.12 | G75: 0 | H75: -14311761.12 | V75: =(U74*V11)-V74 -> -6266489.921 | X75: =(W74*X11)-X74 -> -11605242.55 | Z75: =(Y74*Z11)-Z74 -> -18015002.28 | AB75: =+AA74*AB11-AB74 -> -14889561.55 | AD75: =+AC74*$AD$11-AD74 -> -14020596.72 | AF75: =+AE74*$AF$11-AF74 -> -14311761.12
B76: 48 (-) REPACTUAÇÃO CEEE-D | C76: 0 | D76: 0 | E76: -60729974.98 | F76: -233433877.7 | G76: -60729974.98 | H76: -233433877.7 | AA76: -60729974.98 | AB76: -233433877.7 | AC76: -60729974.98 | AD76: -233433877.7 | AE76: -60729974.98 | AF76: -233433877.7
B77: 49 (-) VARIAÇÃO CAMBIAL DA REPACTUAÇÃO CEEE-D | C77: 0 | D77: 0 | E77: 0 | F77: -3704528.582 | G77: 0 | H77: -3704528.582 | AB77: =+AA76*$AB$11-AB76 -> -917022.7303 | AD77: =+AC76*$AD$11-AD76 -> -412963.938 | AF77: =+AE76*$AF$11-AF76 -> -3704528.582
B78: SALDO DA INADIMPLÊNCIA NO PERÍODO ( D ) REALIZADO / PREVISTO | C78: =SUM(C66:C77) -> -432942860.4 | D78: =SUM(D66:D77) -> -1929952810 | E78: -537110010.8 | F78: -2448447251 | G78: -537110010.8 | H78: -2448447251 | I78: -459569925.3 | J78: -1574653093 | K78: -451623572 | L78: -1651003046 | M78: -468413009.8 | N78: -1853809017 | O78: -497656715.8 | P78: -1840925226 | Q78: -452036955.5 | R78: -1788075155 | S78: -431425526.8 | T78: -1689680921 | U78: -471441383.4 | V78: -1951212136 | W78: -432942860.4 | X78: -1929952810 | Y78: -480263369.8 | Z78: -2259178423 | AA78: -604084028.9 | AB78: -2682239940 | AC78: -503055116.5 | AD78: -2288204113 | AE78: -537110010.8 | AF78: -2448447251
B79: SALDO APÓS A INADIMPLÊNCIA ( E ) = ( C + D ) | C79: =+C60+C78 -> -567824964.4 | D79: -866924377.9 | E79: -294096896.8 | F79: 274928996.3 | G79: -294096896.8 | H79: 274928996.3 | I79: -1392808075 | J79: -3643259654 | K79: -1269954621 | L79: -3283905924 | M79: -1180972250 | N79: -2937939705 | O79: -1080810520 | P79: -2656919893 | Q79: -908153071.1 | R79: -2093765060 | S79: -779112221.4 | T79: =+T60+T78 -> -1695856671 | U79: -713192804.4 | V79: -1428611399 | W79: -567824964.4 | X79: -866924377.9 | Y79: -507298865.9 | Z79: -553231233.6 | AA79: -529558425.5 | AB79: -653066348.9 | AC79: -349315910.7 | AD79: 33956327 | AE79: -294096896.8 | AF79: 274928996.3
B80: SALDO DEVEDOR DOS EMPRÉSTIMOS REALIZADOS ( N ) (PRINCIPAL + JUROS) POSIÇÃO EM 31/12/2015 | H80: =H93 -> -486551009.7
B81: SALDO FINAL APÓS QUITAÇÃO DOS EMPRÉSTIMOS REALIZADOS (PRINCIPAL + JUROS) - PÓSIÇÃO EM 31/12/2015 ( F ) = ( E + N ) | H81: =+H79+H80 -> -211622013.4
B85: DÉBITO ACUMULADO DOS EMPRÉTIMOS OBTIDOS POR ITAIPU JUNTO À ELETROBRAS POSIÇÃO EM 31/12/2015
B86: SALDO DEVEDOR DOS EMPRÉSTIMOS REALIZADOS (PRINCIPAL) - POSIÇÃO EM: 31/12/2014 ( G ) | H86: -3587564852
B87: EMPRÉSTIMOS OBTIDOS NO EXERCÍCIO (PRINCIPAL) - POSIÇÃO EM : 31/12/2015 ( H ) | H87: -1703573663
B88: AMORTIZAÇÃO REALIZADA NO EXERCÍCIO (PRINCIPAL) - POSIÇÃO EM: 31/12/2015 ( I ) | H88: 4809841986
B89: SALDO DEVEDOR DO PRINCIPAL DOS EMPRÉSTIMOS OBTIDOS NO EXERCÍCIO DE 2015 POSIÇÃO EM: 31/12/2015 ( J ) = ( G + H + I ) | H89: =SUM(H86:H88) -> -481296529.1
B90: JUROS INCORRIDOS NO EXERCÍCIO DE 2015 - POSIÇÃO EM 31/12/2015 ( K ) | H90: -397874706.4
B91: AMORTIZAÇÃO DOS JUROS INCORRIDOS NO EXERCÍCIO DE 2015 - POSIÇÃO EM 31/12/2015 ( L ) | H91: 392620225.8
B92: SALDO DEVEDOR DOS JUROS INCORRIDOS NO EXERCÍCIO DE 2015 POSIÇÃO EM 31/12/2015 ( M ) = ( K + L ) | H92: =SUM(H90:H91) -> -5254480.6
B93: SALDO DEVEDOR DOS EMPRÉSTIMOS REALIZADOS (PRINCIPAL + JUROS) PÓSIÇÃO EM 31/12/2015 ( N ) = ( J + M ) | H93: =+H89+H92 -> -486551009.7
B94: MONTANTE QUITADO DOS EMPRÉSTIMOS OBTIDOS NO EXERCÍCIO DE 2015 (PRINCIPAL + JUROS) ( O ) = ( I + L ) | H94: =+H88+H91 -> 5202462212

Sheet FLUXO MENSAL
B1: Centrais Elétricas Brasileiras S/A. - ELETROBRÁS
B2: Diretoria Financeira - DF
B3: Departamento de Administração de Capital de Giro - DFG
B4: Demonstrativo de Saldo da Conta de Comercialização da Energia Elétrica de Itaipu
B5: FLUXO DA CONTA DE COMERCIALIZAÇÃO DE ENERGIA ELÉTRICA DE ITAIPU - EXERCÍCIO DE 2015
B7: Data da Emissão:
B8: 2016-04-14
I11: Dólar do último dia do mês: | J11: 2.6623 | K11: Dólar do último dia do mês: | L11: 2.8782 | M11: Dólar do último dia do mês: | N11: 3.208 | O11: Dólar do último dia do mês: | P11: 2.9936 | Q11: Dólar do último dia do mês: | R11: 3.1788 | S11: Dólar do último dia do mês: | T11: 3.1026 | U11: Dólar do último dia do mês: | V11: 3.394 | W11: Dólar do último dia do mês: | X11: 3.6467 | Y11: Dólar do último dia do mês: | Z11: 3.9729 | AA11: Dólar do último dia do mês: | AB11: 3.8589 | AC11: Dólar do último dia do mês: | AD11: 3.8506 | AE11: Dólar do último dia do mês: | AF11: 3.9048
B12: SALDO ANTES DA INADIMPLÊNCIA EM 31/12/2014. ( A ) | C12: ='FLUXO ANUAL'!C12 -> -1041113997 | D12: ='FLUXO ANUAL'!D12 -> -2355127439 | E12: ='FLUXO ANUAL'!E12 -> ---- | F12: ='FLUXO ANUAL'!F12 -> ---- | G12: ='FLUXO ANUAL'!G12 -> -1041113997 | H12: ='FLUXO ANUAL'!H12 -> -2355127439 | I12: ='FLUXO ANUAL'!I12 -> SALDO FINAL MÊS ANTERIOR | J12: ='FLUXO ANUAL'!J12 -> SALDO FINAL MÊS ANTERIOR | K12: ='FLUXO ANUAL'!K12 -> SALDO FINAL MÊS ANTERIOR | L12: ='FLUXO ANUAL'!L12 -> SALDO FINAL MÊS ANTERIOR | M12: ='FLUXO ANUAL'!M12 -> SALDO FINAL MÊS ANTERIOR | N12: ='FLUXO ANUAL'!N12 -> SALDO FINAL MÊS ANTERIOR | O12: ='FLUXO ANUAL'!O12 -> SALDO FINAL MÊS ANTERIOR | P12: ='FLUXO ANUAL'!P12 -> SALDO FINAL MÊS ANTERIOR | Q12: ='FLUXO ANUAL'!Q12 -> SALDO FINAL MÊS ANTERIOR | R12: ='FLUXO ANUAL'!R12 -> SALDO FINAL MÊS ANTERIOR | S12: ='FLUXO ANUAL'!S12 -> SALDO FINAL MÊS ANTERIOR | T12: ='FLUXO ANUAL'!T12 -> SALDO FINAL MÊS ANTERIOR | U12: ='FLUXO ANUAL'!U12 -> SALDO FINAL MÊS ANTERIOR | V12: ='FLUXO ANUAL'!V12 -> SALDO FINAL MÊS ANTERIOR | W12: ='FLUXO ANUAL'!W12 -> SALDO FINAL MÊS ANTERIOR | X12: ='FLUXO ANUAL'!X12 -> SALDO FINAL MÊS ANTERIOR | Y12: ='FLUXO ANUAL'!Y12 -> SALDO FINAL MÊS ANTERIOR | Z12: ='FLUXO ANUAL'!Z12 -> SALDO FINAL MÊS ANTERIOR | AA12: ='FLUXO ANUAL'!AA12 -> SALDO FINAL MÊS ANTERIOR | AB12: ='FLUXO ANUAL'!AB12 -> SALDO FINAL MÊS ANTERIOR | AC12: ='FLUXO ANUAL'!AC12 -> SALDO FINAL MÊS ANTERIOR | AD12: ='FLUXO ANUAL'!AD12 -> SALDO FINAL MÊS ANTERIOR | AE12: ='FLUXO ANUAL'!AE12 -> SALDO FINAL MÊS ANTERIOR | AF12: ='FLUXO ANUAL'!AF12 -> SALDO FINAL MÊS ANTERIOR
B13: SALDO ANTES DA INADIMPLÊNCIA EM: 31/08/2015 ( A ) | C13: ='FLUXO ANUAL'!C13 -> ---- | D13: ='FLUXO ANUAL'!D13 -> ---- | E13: ='FLUXO ANUAL'!E13 -> -134882104 | F13: ='FLUXO ANUAL'!F13 -> 1063028432 | G13: ='FLUXO ANUAL'!G13 -> ---- | H13: ='FLUXO ANUAL'!H13 -> ---- | I13: ='FLUXO ANUAL'!I13 -> -1041113997 | J13: ='FLUXO ANUAL'!J13 -> -2355127439 | K13: ='FLUXO ANUAL'!K13 -> -933238149.5 | L13: ='FLUXO ANUAL'!L13 -> -2068606561 | M13: ='FLUXO ANUAL'!M13 -> -818331049.2 | N13: ='FLUXO ANUAL'!N13 -> -1632902878 | O13: ='FLUXO ANUAL'!O13 -> -712559240.6 | P13: ='FLUXO ANUAL'!P13 -> -1084130688 | Q13: ='FLUXO ANUAL'!Q13 -> -583153803.7 | R13: ='FLUXO ANUAL'!R13 -> -815994667.6 | S13: ='FLUXO ANUAL'!S13 -> -456116115.6 | T13: ='FLUXO ANUAL'!T13 -> -305689904.3 | U13: ='FLUXO ANUAL'!U13 -> -347686694.6 | V13: ='FLUXO ANUAL'!V13 -> -6175750.43 | W13: ='FLUXO ANUAL'!W13 -> -241751421 | X13: ='FLUXO ANUAL'!X13 -> 522600737.7 | Y13: ='FLUXO ANUAL'!Y13 -> -134882104 | Z13: ='FLUXO ANUAL'!Z13 -> 1063028432 | AA13: ='FLUXO ANUAL'!AA13 -> -27035496.13 | AB13: ='FLUXO ANUAL'!AB13 -> 1705947189 | AC13: ='FLUXO ANUAL'!AC13 -> 74525603.36 | AD13: ='FLUXO ANUAL'!AD13 -> 2029173591 | AE13: ='FLUXO ANUAL'!AE13 -> 153739205.8 | AF13: ='FLUXO ANUAL'!AF13 -> 2322160440
B14: NATUREZA DAS CONTAS | C14: ='FLUXO ANUAL'!C14 -> VALORES REALIZADOS DE JANEIRO A AGOSTO/2015 EM US$ | D14: ='FLUXO ANUAL'!D14 -> VALORES REALIZADOS DE JANEIRO A AGOSTO/2015 EM R$ | E14: ='FLUXO ANUAL'!E14 -> VALORES PREVISTOS DE SETEMBRO A DEZEMBRO/2015 EM US$ | F14: ='FLUXO ANUAL'!F14 -> VALORES PREVISTOS DE SETEMBRO A DEZEMBRO/2015 EM R$ | G14: ='FLUXO ANUAL'!G14 -> TOTAIS DE JANEIRO A DEZEMBRO/2015 EM US$ | H14: ='FLUXO ANUAL'!H14 -> TOTAIS DE JANEIRO A DEZEMBRO/2015 EM R$ | I14: ='FLUXO ANUAL'!I14 -> JANEIRO/2015 EM US$ | J14: ='FLUXO ANUAL'!J14 -> JANEIRO/2015 EM R$ | K14: ='FLUXO ANUAL'!K14 -> FEVEREIRO/2015 EM US$ | L14: ='FLUXO ANUAL'!L14 -> FEVEREIRO/2015 EM R$ | M14: ='FLUXO ANUAL'!M14 -> MARÇO/2015 EM US$ | N14: ='FLUXO ANUAL'!N14 -> MARÇO/2015 EM R$ | O14: ='FLUXO ANUAL'!O14 -> ABRIL/2015 EM US$ | P14: ='FLUXO ANUAL'!P14 -> ABRIL/2015 EM R$ | Q14: ='FLUXO ANUAL'!Q14 -> MAIO/2015 EM US$ | R14: ='FLUXO ANUAL'!R14 -> MAIO/2015 EM R$ | S14: ='FLUXO ANUAL'!S14 -> JUNHO/2015 EM US$ | T14: ='FLUXO ANUAL'!T14 -> JUNHO/2015 EM R$ | U14: ='FLUXO ANUAL'!U14 -> JULHO/2015 EM US$ | V14: ='FLUXO ANUAL'!V14 -> JULHO/2015 EM R$ | W14: ='FLUXO ANUAL'!W14 -> AGOSTO/2015 EM US$ | X14: ='FLUXO ANUAL'!X14 -> AGOSTO/2015 EM R$ | Y14: ='FLUXO ANUAL'!Y14 -> SETEMBRO/2015 EM US$ | Z14: ='FLUXO ANUAL'!Z14 -> SETEMBRO/2015 EM R$ | AA14: ='FLUXO ANUAL'!AA14 -> OUTUBRO/2015 EM US$ | AB14: ='FLUXO ANUAL'!AB14 -> OUTUBRO/2015 EM R$ | AC14: ='FLUXO ANUAL'!AC14 -> NOVEMBRO/2015 EM US$ | AD14: ='FLUXO ANUAL'!AD14 -> NOVEMBRO/2015 EM R$ | AE14: ='FLUXO ANUAL'!AE14 -> DEZEMBRO/2015 EM US$ | AF14: ='FLUXO ANUAL'!AF14 -> DEZEMBRO/2015 EM R$
C15: ='FLUXO ANUAL'!C15 -> 0 | D15: ='FLUXO ANUAL'!D15 -> 0 | E15: ='FLUXO ANUAL'!E15 -> 0 | F15: ='FLUXO ANUAL'!F15 -> 0 | G15: ='FLUXO ANUAL'!G15 -> 0 | H15: ='FLUXO ANUAL'!H15 -> 0 | I15: ='FLUXO ANUAL'!I15 -> 0 | J15: ='FLUXO ANUAL'!J15 -> 0 | K15: ='FLUXO ANUAL'!K15 -> 0 | L15: ='FLUXO ANUAL'!L15 -> 0 | M15: ='FLUXO ANUAL'!M15 -> 0 | N15: ='FLUXO ANUAL'!N15 -> 0 | O15: ='FLUXO ANUAL'!O15 -> 0 | P15: ='FLUXO ANUAL'!P15 -> 0 | Q15: ='FLUXO ANUAL'!Q15 -> 0 | R15: ='FLUXO ANUAL'!R15 -> 0 | S15: ='FLUXO ANUAL'!S15 -> 0 | T15: ='FLUXO ANUAL'!T15 -> 0 | U15: ='FLUXO ANUAL'!U15 -> 0 | V15: ='FLUXO ANUAL'!V15 -> 0 | W15: ='FLUXO ANUAL'!W15 -> 0 | X15: ='FLUXO ANUAL'!X15 -> 0 | Y15: ='FLUXO ANUAL'!Y15 -> 0 | Z15: ='FLUXO ANUAL'!Z15 -> 0 | AA15: ='FLUXO ANUAL'!AA15 -> 0 | AB15: ='FLUXO ANUAL'!AB15 -> 0 | AC15: ='FLUXO ANUAL'!AC15 -> 0 | AD15: ='FLUXO ANUAL'!AD15 -> 0 | AE15: ='FLUXO ANUAL'!AE15 -> 0 | AF15: ='FLUXO ANUAL'!AF15 -> 0
C16: ='FLUXO ANUAL'!C16 -> 0 | D16: ='FLUXO ANUAL'!D16 -> 0 | E16: ='FLUXO ANUAL'!E16 -> 0 | F16: ='FLUXO ANUAL'!F16 -> 0 | G16: ='FLUXO ANUAL'!G16 -> 0 | H16: ='FLUXO ANUAL'!H16 -> 0 | I16: ='FLUXO ANUAL'!I16 -> 0 | J16: ='FLUXO ANUAL'!J16 -> 0 | K16: ='FLUXO ANUAL'!K16 -> 0 | L16: ='FLUXO ANUAL'!L16 -> 0 | M16: ='FLUXO ANUAL'!M16 -> 0 | N16: ='FLUXO ANUAL'!N16 -> 0 | O16: ='FLUXO ANUAL'!O16 -> 0 | P16: ='FLUXO ANUAL'!P16 -> 0 | Q16: ='FLUXO ANUAL'!Q16 -> 0 | R16: ='FLUXO ANUAL'!R16 -> 0 | S16: ='FLUXO ANUAL'!S16 -> 0 | T16: ='FLUXO ANUAL'!T16 -> 0 | U16: ='FLUXO ANUAL'!U16 -> 0 | V16: ='FLUXO ANUAL'!V16 -> 0 | W16: ='FLUXO ANUAL'!W16 -> 0 | X16: ='FLUXO ANUAL'!X16 -> 0 | Y16: ='FLUXO ANUAL'!Y16 -> 0 | Z16: ='FLUXO ANUAL'!Z16 -> 0 | AA16: ='FLUXO ANUAL'!AA16 -> 0 | AB16: ='FLUXO ANUAL'!AB16 -> 0 | AC16: ='FLUXO ANUAL'!AC16 -> 0 | AD16: ='FLUXO ANUAL'!AD16 -> 0 | AE16: ='FLUXO ANUAL'!AE16 -> 0 | AF16: ='FLUXO ANUAL'!AF16 -> 0
C17: ='FLUXO ANUAL'!C17 -> 0 | D17: ='FLUXO ANUAL'!D17 -> 0 | E17: ='FLUXO ANUAL'!E17 -> 0 | F17: ='FLUXO ANUAL'!F17 -> 0 | G17: ='FLUXO ANUAL'!G17 -> 0 | H17: ='FLUXO ANUAL'!H17 -> 0 | I17: ='FLUXO ANUAL'!I17 -> 0 | J17: ='FLUXO ANUAL'!J17 -> 0 | K17: ='FLUXO ANUAL'!K17 -> 0 | L17: ='FLUXO ANUAL'!L17 -> 0 | M17: ='FLUXO ANUAL'!M17 -> 0 | N17: ='FLUXO ANUAL'!N17 -> 0 | O17: ='FLUXO ANUAL'!O17 -> 0 | P17: ='FLUXO ANUAL'!P17 -> 0 | Q17: ='FLUXO ANUAL'!Q17 -> 0 | R17: ='FLUXO ANUAL'!R17 -> 0 | S17: ='FLUXO ANUAL'!S17 -> 0 | T17: ='FLUXO ANUAL'!T17 -> 0 | U17: ='FLUXO ANUAL'!U17 -> 0 | V17: ='FLUXO ANUAL'!V17 -> 0 | W17: ='FLUXO ANUAL'!W17 -> 0 | X17: ='FLUXO ANUAL'!X17 -> 0 | Y17: ='FLUXO ANUAL'!Y17 -> 0 | Z17: ='FLUXO ANUAL'!Z17 -> 0 | AA17: ='FLUXO ANUAL'!AA17 -> 0 | AB17: ='FLUXO ANUAL'!AB17 -> 0 | AC17: ='FLUXO ANUAL'!AC17 -> 0 | AD17: ='FLUXO ANUAL'!AD17 -> 0 | AE17: ='FLUXO ANUAL'!AE17 -> 0 | AF17: ='FLUXO ANUAL'!AF17 -> 0
B18: 01 (+) Faturamento do Repasse da Energia | C18: ='FLUXO ANUAL'!C18 -> 3353012828 | D18: ='FLUXO ANUAL'!D18 -> 1.046608912e+10 | E18: ='FLUXO ANUAL'!E18 -> 1643101048 | F18: ='FLUXO ANUAL'!F18 -> 6428169780 | G18: ='FLUXO ANUAL'!G18 -> 4996113876 | H18: ='FLUXO ANUAL'!H18 -> 1.68942589e+10 | I18: ='FLUXO ANUAL'!I18 -> 409062188.1 | J18: ='FLUXO ANUAL'!J18 -> 1061925440 | K18: ='FLUXO ANUAL'!K18 -> 409062188.1 | L18: ='FLUXO ANUAL'!L18 -> 1175153854 | M18: ='FLUXO ANUAL'!M18 -> 418198911.9 | N18: ='FLUXO ANUAL'!N18 -> 1363370273 | O18: ='FLUXO ANUAL'!O18 -> 418198911.9 | P18: ='FLUXO ANUAL'!P18 -> 1228459304 | Q18: ='FLUXO ANUAL'!Q18 -> 422386726.1 | R18: ='FLUXO ANUAL'!R18 -> 1340993378 | S18: ='FLUXO ANUAL'!S18 -> 422193764.2 | T18: ='FLUXO ANUAL'!T18 -> 1337822226 | U18: ='FLUXO ANUAL'!U18 -> 427335788.1 | V18: ='FLUXO ANUAL'!V18 -> 1428144636 | W18: ='FLUXO ANUAL'!W18 -> 426574350 | X18: ='FLUXO ANUAL'!X18 -> 1530220012 | Y18: ='FLUXO ANUAL'!Y18 -> 423909411.9 | Z18: ='FLUXO ANUAL'!Z18 -> 1745319831 | AA18: ='FLUXO ANUAL'!AA18 -> 410965650 | AB18: ='FLUXO ANUAL'!AB18 -> 1616245708 | AC18: ='FLUXO ANUAL'!AC18 -> 406397288.1 | AD18: ='FLUXO ANUAL'!AD18 -> 1519885218 | AE18: ='FLUXO ANUAL'!AE18 -> 401828697.7 | AF18: ='FLUXO ANUAL'!AF18 -> 1546719023
B19: 02 (+) Juros referentes ao Repasse da Energia | C19: ='FLUXO ANUAL'!C19 -> 2344677.244 | D19: ='FLUXO ANUAL'!D19 -> 7300389.91 | E19: ='FLUXO ANUAL'!E19 -> 4457562.16 | F19: ='FLUXO ANUAL'!F19 -> 17194557.52 | G19: ='FLUXO ANUAL'!G19 -> 6802239.404 | H19: ='FLUXO ANUAL'!H19 -> 24494947.43 | I19: ='FLUXO ANUAL'!I19 -> 108459.27 | J19: ='FLUXO ANUAL'!J19 -> 290105.5 | K19: ='FLUXO ANUAL'!K19 -> 64676.74 | L19: ='FLUXO ANUAL'!L19 -> 182012.15 | M19: ='FLUXO ANUAL'!M19 -> 37670.6 | N19: ='FLUXO ANUAL'!N19 -> 117157.29 | O19: ='FLUXO ANUAL'!O19 -> 71380.8 | P19: ='FLUXO ANUAL'!P19 -> 224266.19 | Q19: ='FLUXO ANUAL'!Q19 -> 53358.29 | R19: ='FLUXO ANUAL'!R19 -> 162516.82 | S19: ='FLUXO ANUAL'!S19 -> 220685.271 | T19: ='FLUXO ANUAL'!T19 -> 692122.51 | U19: ='FLUXO ANUAL'!U19 -> 1689052.953 | V19: ='FLUXO ANUAL'!V19 -> 5286367.57 | W19: ='FLUXO ANUAL'!W19 -> 99393.32 | X19: ='FLUXO ANUAL'!X19 -> 345841.88 | Y19: ='FLUXO ANUAL'!Y19 -> 97910.69 | Z19: ='FLUXO ANUAL'!Z19 -> 383157.82 | AA19: ='FLUXO ANUAL'!AA19 -> 3343687.88 | AB19: ='FLUXO ANUAL'!AB19 -> 12860783.36 | AC19: ='FLUXO ANUAL'!AC19 -> 341142.98 | AD19: ='FLUXO ANUAL'!AD19 -> 1277357.76 | AE19: ='FLUXO ANUAL'!AE19 -> 674820.61 | AF19: ='FLUXO ANUAL'!AF19 -> 2673258.58
B20: 03 (+) Juros contratuais do Repasse de ITAIPU sobre créditos renegociados | C20: ='FLUXO ANUAL'!C20 -> 40232026.53 | D20: ='FLUXO ANUAL'!D20 -> 124387082.7 | E20: ='FLUXO ANUAL'!E20 -> 21681721.5 | F20: ='FLUXO ANUAL'!F20 -> 86082912.15 | G20: ='FLUXO ANUAL'!G20 -> 61913748.03 | H20: ='FLUXO ANUAL'!H20 -> 210469994.8 | I20: ='FLUXO ANUAL'!I20 -> 5383348.005 | J20: ='FLUXO ANUAL'!J20 -> 14072923.39 | K20: ='FLUXO ANUAL'!K20 -> 0 | L20: ='FLUXO ANUAL'!L20 -> 0 | M20: ='FLUXO ANUAL'!M20 -> 9609019.382 | N20: ='FLUXO ANUAL'!N20 -> 29691833.24 | O20: ='FLUXO ANUAL'!O20 -> 5139193.49 | P20: ='FLUXO ANUAL'!P20 -> 15171655.17 | Q20: ='FLUXO ANUAL'!Q20 -> 4962006.649 | R20: ='FLUXO ANUAL'!R20 -> 15773226.74 | S20: ='FLUXO ANUAL'!S20 -> 5054641.988 | T20: ='FLUXO ANUAL'!T20 -> 15821942.18 | U20: ='FLUXO ANUAL'!U20 -> 4831624.29 | V20: ='FLUXO ANUAL'!V20 -> 16216444.18 | W20: ='FLUXO ANUAL'!W20 -> 5252192.73 | X20: ='FLUXO ANUAL'!X20 -> 17639057.76 | Y20: ='FLUXO ANUAL'!Y20 -> 4967016.411 | Z20: ='FLUXO ANUAL'!Z20 -> 20287639.45 | AA20: ='FLUXO ANUAL'!AA20 -> 4794185.804 | AB20: ='FLUXO ANUAL'!AB20 -> 20179328.68 | AC20: ='FLUXO ANUAL'!AC20 -> 5418609.707 | AD20: ='FLUXO ANUAL'!AD20 -> 20387645.99 | AE20: ='FLUXO ANUAL'!AE20 -> 6501909.578 | AF20: ='FLUXO ANUAL'!AF20 -> 25228298.03
B21: 04 (+) Rendimento de aplicação financeira B.B. S/A | C21: ='FLUXO ANUAL'!C21 -> 148.116996 | D21: ='FLUXO ANUAL'!D21 -> 463.88 | E21: ='FLUXO ANUAL'!E21 -> 847633.1312 | F21: ='FLUXO ANUAL'!F21 -> 3263898.12 | G21: ='FLUXO ANUAL'!G21 -> 847781.2482 | H21: ='FLUXO ANUAL'!H21 -> 3264362 | I21: ='FLUXO ANUAL'!I21 -> 21.46264508 | J21: ='FLUXO ANUAL'!J21 -> 57.14 | K21: ='FLUXO ANUAL'!K21 -> 15.56875825 | L21: ='FLUXO ANUAL'!L21 -> 44.81 | M21: ='FLUXO ANUAL'!M21 -> 17.21321696 | N21: ='FLUXO ANUAL'!N21 -> 55.22 | O21: ='FLUXO ANUAL'!O21 -> 17.66435061 | P21: ='FLUXO ANUAL'!P21 -> 52.88 | Q21: ='FLUXO ANUAL'!Q21 -> 18.14206619 | R21: ='FLUXO ANUAL'!R21 -> 57.67 | S21: ='FLUXO ANUAL'!S21 -> 18.13640173 | T21: ='FLUXO ANUAL'!T21 -> 56.27 | U21: ='FLUXO ANUAL'!U21 -> 22.63995286 | V21: ='FLUXO ANUAL'!V21 -> 76.84 | W21: ='FLUXO ANUAL'!W21 -> 17.2896043 | X21: ='FLUXO ANUAL'!X21 -> 63.05 | Y21: ='FLUXO ANUAL'!Y21 -> 10.50869642 | Z21: ='FLUXO ANUAL'!Z21 -> 41.75 | AA21: ='FLUXO ANUAL'!AA21 -> 11.63284874 | AB21: ='FLUXO ANUAL'!AB21 -> 44.89 | AC21: ='FLUXO ANUAL'!AC21 -> 847599.8624 | AD21: ='FLUXO ANUAL'!AD21 -> 3263768.03 | AE21: ='FLUXO ANUAL'!AE21 -> 11.12733047 | AF21: ='FLUXO ANUAL'!AF21 -> 43.45
B22: 05 (+) Devolução do bônus de ITAIPU | C22: ='FLUXO ANUAL'!C22 -> 135.6298572 | D22: ='FLUXO ANUAL'!D22 -> 400.52 | E22: ='FLUXO ANUAL'!E22 -> 3.58403939 | F22: ='FLUXO ANUAL'!F22 -> 13.91 | G22: ='FLUXO ANUAL'!G22 -> 139.2138966 | H22: ='FLUXO ANUAL'!H22 -> 414.43 | I22: ='FLUXO ANUAL'!I22 -> 33.90301619 | J22: ='FLUXO ANUAL'!J22 -> 90.26 | K22: ='FLUXO ANUAL'!K22 -> 46.39705371 | L22: ='FLUXO ANUAL'!L22 -> 133.54 | M22: ='FLUXO ANUAL'!M22 -> 21.52743142 | N22: ='FLUXO ANUAL'!N22 -> 69.06 | O22: ='FLUXO ANUAL'!O22 -> 18.11531267 | P22: ='FLUXO ANUAL'!P22 -> 54.23 | Q22: ='FLUXO ANUAL'!Q22 -> 2.617339877 | R22: ='FLUXO ANUAL'!R22 -> 8.32 | S22: ='FLUXO ANUAL'!S22 -> 2.771868755 | T22: ='FLUXO ANUAL'!T22 -> 8.6 | U22: ='FLUXO ANUAL'!U22 -> 4.127872717 | V22: ='FLUXO ANUAL'!V22 -> 14.01 | W22: ='FLUXO ANUAL'!W22 -> 6.169961883 | X22: ='FLUXO ANUAL'!X22 -> 22.5 | Y22: ='FLUXO ANUAL'!Y22 -> 0.8432127665 | Z22: ='FLUXO ANUAL'!Z22 -> 3.35 | AA22: ='FLUXO ANUAL'!AA22 -> 0.7437352613 | AB22: ='FLUXO ANUAL'!AB22 -> 2.87 | AC22: ='FLUXO ANUAL'!AC22 -> 1.997091362 | AD22: ='FLUXO ANUAL'!AD22 -> 7.69 | AE22: ='FLUXO ANUAL'!AE22 -> 0 | AF22: ='FLUXO ANUAL'!AF22 -> 0
B23: 06 (+) Liquidação CCEE - Venda de Energia | C23: ='FLUXO ANUAL'!C23 -> 26011556.58 | D23: ='FLUXO ANUAL'!D23 -> 80045903.52 | E23: ='FLUXO ANUAL'!E23 -> 2235148.604 | F23: ='FLUXO ANUAL'!F23 -> 8880021.89 | G23: ='FLUXO ANUAL'!G23 -> 28246705.19 | H23: ='FLUXO ANUAL'!H23 -> 88925925.41 | I23: ='FLUXO ANUAL'!I23 -> 0 | J23: ='FLUXO ANUAL'!J23 -> 0 | K23: ='FLUXO ANUAL'!K23 -> 2721816.403 | L23: ='FLUXO ANUAL'!L23 -> 7833931.97 | M23: ='FLUXO ANUAL'!M23 -> 0 | N23: ='FLUXO ANUAL'!N23 -> 0 | O23: ='FLUXO ANUAL'!O23 -> 8535993.289 | P23: ='FLUXO ANUAL'!P23 -> 25553349.51 | Q23: ='FLUXO ANUAL'!Q23 -> 11596416.53 | R23: ='FLUXO ANUAL'!R23 -> 36862688.88 | S23: ='FLUXO ANUAL'!S23 -> 3157330.355 | T23: ='FLUXO ANUAL'!T23 -> 9795933.16 | U23: ='FLUXO ANUAL'!U23 -> 0 | V23: ='FLUXO ANUAL'!V23 -> 0 | W23: ='FLUXO ANUAL'!W23 -> 0 | X23: ='FLUXO ANUAL'!X23 -> 0 | Y23: ='FLUXO ANUAL'!Y23 -> 2235148.604 | Z23: ='FLUXO ANUAL'!Z23 -> 8880021.89 | AA23: ='FLUXO ANUAL'!AA23 -> 0 | AB23: ='FLUXO ANUAL'!AB23 -> 0 | AC23: ='FLUXO ANUAL'!AC23 -> 0 | AD23: ='FLUXO ANUAL'!AD23 -> 0 | AE23: ='FLUXO ANUAL'!AE23 -> 0 | AF23: ='FLUXO ANUAL'!AF23 -> 0
B24: 07 (+) Rendimento Aplic. Financ.do Aporte de Garantias Liq.CCEE | C24: ='FLUXO ANUAL'!C24 -> 1257270.014 | D24: ='FLUXO ANUAL'!D24 -> 3461516.07 | E24: ='FLUXO ANUAL'!E24 -> 0 | F24: ='FLUXO ANUAL'!F24 -> 0 | G24: ='FLUXO ANUAL'!G24 -> 1257270.014 | H24: ='FLUXO ANUAL'!H24 -> 3461516.07 | I24: ='FLUXO ANUAL'!I24 -> 790420.3546 | J24: ='FLUXO ANUAL'!J24 -> 2104336.11 | K24: ='FLUXO ANUAL'!K24 -> 406054.6731 | L24: ='FLUXO ANUAL'!L24 -> 1168706.56 | M24: ='FLUXO ANUAL'!M24 -> 12246.81421 | N24: ='FLUXO ANUAL'!N24 -> 39287.78 | O24: ='FLUXO ANUAL'!O24 -> 27750.05679 | P24: ='FLUXO ANUAL'!P24 -> 83072.57 | Q24: ='FLUXO ANUAL'!Q24 -> 20798.11564 | R24: ='FLUXO ANUAL'!R24 -> 66113.05 | S24: ='FLUXO ANUAL'!S24 -> 0 | T24: ='FLUXO ANUAL'!T24 -> 0 | U24: ='FLUXO ANUAL'!U24 -> 0 | V24: ='FLUXO ANUAL'!V24 -> 0 | W24: ='FLUXO ANUAL'!W24 -> 0 | X24: ='FLUXO ANUAL'!X24 -> 0 | Y24: ='FLUXO ANUAL'!Y24 -> 0 | Z24: ='FLUXO ANUAL'!Z24 -> 0 | AA24: ='FLUXO ANUAL'!AA24 -> 0 | AB24: ='FLUXO ANUAL'!AB24 -> 0 | AC24: ='FLUXO ANUAL'!AC24 -> 0 | AD24: ='FLUXO ANUAL'!AD24 -> 0 | AE24: ='FLUXO ANUAL'!AE24 -> 0 | AF24: ='FLUXO ANUAL'!AF24 -> 0
B25: 08 (+) Liq. CCEE - Recuperação Inadimplência do Mês Anterior | C25: ='FLUXO ANUAL'!C25 -> 0 | D25: ='FLUXO ANUAL'!D25 -> 0 | E25: ='FLUXO ANUAL'!E25 -> 1135407.144 | F25: ='FLUXO ANUAL'!F25 -> 4371998.75 | G25: ='FLUXO ANUAL'!G25 -> 1135407.144 | H25: ='FLUXO ANUAL'!H25 -> 4371998.75 | I25: ='FLUXO ANUAL'!I25 -> 0 | J25: ='FLUXO ANUAL'!J25 -> 0 | K25: ='FLUXO ANUAL'!K25 -> 0 | L25: ='FLUXO ANUAL'!L25 -> 0 | M25: ='FLUXO ANUAL'!M25 -> 0 | N25: ='FLUXO ANUAL'!N25 -> 0 | O25: ='FLUXO ANUAL'!O25 -> 0 | P25: ='FLUXO ANUAL'!P25 -> 0 | Q25: ='FLUXO ANUAL'!Q25 -> 0 | R25: ='FLUXO ANUAL'!R25 -> 0 | S25: ='FLUXO ANUAL'!S25 -> 0 | T25: ='FLUXO ANUAL'!T25 -> 0 | U25: ='FLUXO ANUAL'!U25 -> 0 | V25: ='FLUXO ANUAL'!V25 -> 0 | W25: ='FLUXO ANUAL'!W25 -> 0 | X25: ='FLUXO ANUAL'!X25 -> 0 | Y25: ='FLUXO ANUAL'!Y25 -> 0 | Z25: ='FLUXO ANUAL'!Z25 -> 0 | AA25: ='FLUXO ANUAL'!AA25 -> 0 | AB25: ='FLUXO ANUAL'!AB25 -> 0 | AC25: ='FLUXO ANUAL'!AC25 -> 1135407.144 | AD25: ='FLUXO ANUAL'!AD25 -> 4371998.75 | AE25: ='FLUXO ANUAL'!AE25 -> 0 | AF25: ='FLUXO ANUAL'!AF25 -> 0
B26: 09 (-) Liq. CCEE - Inadimplência do Mês | C26: ='FLUXO ANUAL'!C26 -> 0 | D26: ='FLUXO ANUAL'!D26 -> 0 | E26: ='FLUXO ANUAL'!E26 -> -1100455.272 | F26: ='FLUXO ANUAL'!F26 -> -4371998.75 | G26: ='FLUXO ANUAL'!G26 -> -1100455.272 | H26: ='FLUXO ANUAL'!H26 -> -4371998.75 | I26: ='FLUXO ANUAL'!I26 -> 0 | J26: ='FLUXO ANUAL'!J26 -> 0 | K26: ='FLUXO ANUAL'!K26 -> 0 | L26: ='FLUXO ANUAL'!L26 -> 0 | M26: ='FLUXO ANUAL'!M26 -> 0 | N26: ='FLUXO ANUAL'!N26 -> 0 | O26: ='FLUXO ANUAL'!O26 -> 0 | P26: ='FLUXO ANUAL'!P26 -> 0 | Q26: ='FLUXO ANUAL'!Q26 -> 0 | R26: ='FLUXO ANUAL'!R26 -> 0 | S26: ='FLUXO ANUAL'!S26 -> 0 | T26: ='FLUXO ANUAL'!T26 -> 0 | U26: ='FLUXO ANUAL'!U26 -> 0 | V26: ='FLUXO ANUAL'!V26 -> 0 | W26: ='FLUXO ANUAL'!W26 -> 0 | X26: ='FLUXO ANUAL'!X26 -> 0 | Y26: ='FLUXO ANUAL'!Y26 -> -1100455.272 | Z26: ='FLUXO ANUAL'!Z26 -> -4371998.75 | AA26: ='FLUXO ANUAL'!AA26 -> 0 | AB26: ='FLUXO ANUAL'!AB26 -> 0 | AC26: ='FLUXO ANUAL'!AC26 -> 0 | AD26: ='FLUXO ANUAL'!AD26 -> 0 | AE26: ='FLUXO ANUAL'!AE26 -> 0 | AF26: ='FLUXO ANUAL'!AF26 -> 0
B27: 10 (-) Liquidação CCEE - Compra de Energia | C27: ='FLUXO ANUAL'!C27 -> -11231189.35 | D27: ='FLUXO ANUAL'!D27 -> -33609565.73 | E27: ='FLUXO ANUAL'!E27 -> -13490629.71 | F27: ='FLUXO ANUAL'!F27 -> -52289533.11 | G27: ='FLUXO ANUAL'!G27 -> -24721819.05 | H27: ='FLUXO ANUAL'!H27 -> -85899098.84 | I27: ='FLUXO ANUAL'!I27 -> -4434835.421 | J27: ='FLUXO ANUAL'!J27 -> -11806862.34 | K27: ='FLUXO ANUAL'!K27 -> 0 | L27: ='FLUXO ANUAL'!L27 -> 0 | M27: ='FLUXO ANUAL'!M27 -> -6796353.925 | N27: ='FLUXO ANUAL'!N27 -> -21802703.39 | O27: ='FLUXO ANUAL'!O27 -> 0 | P27: ='FLUXO ANUAL'!P27 -> 0 | Q27: ='FLUXO ANUAL'!Q27 -> 0 | R27: ='FLUXO ANUAL'!R27 -> 0 | S27: ='FLUXO ANUAL'!S27 -> 0 | T27: ='FLUXO ANUAL'!T27 -> 0 | U27: ='FLUXO ANUAL'!U27 -> 0 | V27: ='FLUXO ANUAL'!V27 -> 0 | W27: ='FLUXO ANUAL'!W27 -> 0 | X27: ='FLUXO ANUAL'!X27 -> 0 | Y27: ='FLUXO ANUAL'!Y27 -> 0 | Z27: ='FLUXO ANUAL'!Z27 -> 0 | AA27: ='FLUXO ANUAL'!AA27 -> 0 | AB27: ='FLUXO ANUAL'!AB27 -> 0 | AC27: ='FLUXO ANUAL'!AC27 -> -7171176.453 | AD27: ='FLUXO ANUAL'!AD27 -> -27613332.05 | AE27: ='FLUXO ANUAL'!AE27 -> -6319453.252 | AF27: ='FLUXO ANUAL'!AF27 -> -24676201.06
B28: 11 (-) Multa de 2% Pelo Não Aporte das Garantias | C28: ='FLUXO ANUAL'!C28 -> -3127200.736 | D28: ='FLUXO ANUAL'!D28 -> -10032059.96 | E28: ='FLUXO ANUAL'!E28 -> 0 | F28: ='FLUXO ANUAL'!F28 -> 0 | G28: ='FLUXO ANUAL'!G28 -> -3127200.736 | H28: ='FLUXO ANUAL'!H28 -> -10032059.96 | I28: ='FLUXO ANUAL'!I28 -> 0 | J28: ='FLUXO ANUAL'!J28 -> 0 | K28: ='FLUXO ANUAL'!K28 -> 0 | L28: ='FLUXO ANUAL'!L28 -> 0 | M28: ='FLUXO ANUAL'!M28 -> -3127200.736 | N28: ='FLUXO ANUAL'!N28 -> -10032059.96 | O28: ='FLUXO ANUAL'!O28 -> 0 | P28: ='FLUXO ANUAL'!P28 -> 0 | Q28: ='FLUXO ANUAL'!Q28 -> 0 | R28: ='FLUXO ANUAL'!R28 -> 0 | S28: ='FLUXO ANUAL'!S28 -> 0 | T28: ='FLUXO ANUAL'!T28 -> 0 | U28: ='FLUXO ANUAL'!U28 -> 0 | V28: ='FLUXO ANUAL'!V28 -> 0 | W28: ='FLUXO ANUAL'!W28 -> 0 | X28: ='FLUXO ANUAL'!X28 -> 0 | Y28: ='FLUXO ANUAL'!Y28 -> 0 | Z28: ='FLUXO ANUAL'!Z28 -> 0 | AA28: ='FLUXO ANUAL'!AA28 -> 0 | AB28: ='FLUXO ANUAL'!AB28 -> 0 | AC28: ='FLUXO ANUAL'!AC28 -> 0 | AD28: ='FLUXO ANUAL'!AD28 -> 0 | AE28: ='FLUXO ANUAL'!AE28 -> 0 | AF28: ='FLUXO ANUAL'!AF28 -> 0
B29: 12 (-) Potência Contratada | C29: ='FLUXO ANUAL'!C29 -> -1990695778 | D29: ='FLUXO ANUAL'!D29 -> -6245005670 | E29: ='FLUXO ANUAL'!E29 -> -974841575.8 | F29: ='FLUXO ANUAL'!F29 -> -3799404526 | G29: ='FLUXO ANUAL'!G29 -> -2965537354 | H29: ='FLUXO ANUAL'!H29 -> -1.00444102e+10 | I29: ='FLUXO ANUAL'!I29 -> -242091448.6 | J29: ='FLUXO ANUAL'!J29 -> -644520063.6 | K29: ='FLUXO ANUAL'!K29 -> -242556308 | L29: ='FLUXO ANUAL'!L29 -> -698125565.7 | M29: ='FLUXO ANUAL'!M29 -> -247710192.8 | N29: ='FLUXO ANUAL'!N29 -> -794654298.5 | O29: ='FLUXO ANUAL'!O29 -> -248244931.4 | P29: ='FLUXO ANUAL'!P29 -> -743146026.6 | Q29: ='FLUXO ANUAL'!Q29 -> -250747000 | R29: ='FLUXO ANUAL'!R29 -> -797074563.6 | S29: ='FLUXO ANUAL'!S29 -> -252993236.6 | T29: ='FLUXO ANUAL'!T29 -> -784936815.9 | U29: ='FLUXO ANUAL'!U29 -> -253137763.6 | V29: ='FLUXO ANUAL'!V29 -> -859149569.7 | W29: ='FLUXO ANUAL'!W29 -> -253214897.4 | X29: ='FLUXO ANUAL'!X29 -> -923398766.4 | Y29: ='FLUXO ANUAL'!Y29 -> -251236516 | Z29: ='FLUXO ANUAL'!Z29 -> -998137554.4 | AA29: ='FLUXO ANUAL'!AA29 -> -243964694.8 | AB29: ='FLUXO ANUAL'!AB29 -> -941435360.8 | AC29: ='FLUXO ANUAL'!AC29 -> -241108597.2 | AD29: ='FLUXO ANUAL'!AD29 -> -928412764.4 | AE29: ='FLUXO ANUAL'!AE29 -> -238531767.8 | AF29: ='FLUXO ANUAL'!AF29 -> -931418846.9
B30: 13 (-) Energia Cedida Vinculada | C30: ='FLUXO ANUAL'!C30 -> -31194446.12 | D30: ='FLUXO ANUAL'!D30 -> -98130195.33 | E30: ='FLUXO ANUAL'!E30 -> -14947090.2 | F30: ='FLUXO ANUAL'!F30 -> -58265071.15 | G30: ='FLUXO ANUAL'!G30 -> -46141536.32 | H30: ='FLUXO ANUAL'!H30 -> -156395266.5 | I30: ='FLUXO ANUAL'!I30 -> -3763342.91 | J30: ='FLUXO ANUAL'!J30 -> -10019147.83 | K30: ='FLUXO ANUAL'!K30 -> -3399148.44 | L30: ='FLUXO ANUAL'!L30 -> -9783429.04 | M30: ='FLUXO ANUAL'!M30 -> -3956438 | N30: ='FLUXO ANUAL'!N30 -> -12692253.1 | O30: ='FLUXO ANUAL'!O30 -> -3828810.97 | P30: ='FLUXO ANUAL'!P30 -> -11461928.52 | Q30: ='FLUXO ANUAL'!Q30 -> -4044939.92 | R30: ='FLUXO ANUAL'!R30 -> -12858055.02 | S30: ='FLUXO ANUAL'!S30 -> -3918784.79 | T30: ='FLUXO ANUAL'!T30 -> -12158421.69 | U30: ='FLUXO ANUAL'!U30 -> -4149533.09 | V30: ='FLUXO ANUAL'!V30 -> -14083515.31 | W30: ='FLUXO ANUAL'!W30 -> -4133448 | X30: ='FLUXO ANUAL'!X30 -> -15073444.82 | Y30: ='FLUXO ANUAL'!Y30 -> -3945609.9 | Z30: ='FLUXO ANUAL'!Z30 -> -15675513.57 | AA30: ='FLUXO ANUAL'!AA30 -> -3803564.7 | AB30: ='FLUXO ANUAL'!AB30 -> -14677575.82 | AC30: ='FLUXO ANUAL'!AC30 -> -3587436.9 | AD30: ='FLUXO ANUAL'!AD30 -> -13813784.53 | AE30: ='FLUXO ANUAL'!AE30 -> -3610478.7 | AF30: ='FLUXO ANUAL'!AF30 -> -14098197.23
B31: 14 (-) Ajuste do dólar - Energia Cedida Vinculada | C31: ='FLUXO ANUAL'!C31 -> -33638210.24 | D31: ='FLUXO ANUAL'!D31 -> -109447806.3 | E31: ='FLUXO ANUAL'!E31 -> -18445751.95 | F31: ='FLUXO ANUAL'!F31 -> -59981896.2 | G31: ='FLUXO ANUAL'!G31 -> -52083962.19 | H31: ='FLUXO ANUAL'!H31 -> -169429702.5 | I31: ='FLUXO ANUAL'!I31 -> -3822678.26 | J31: ='FLUXO ANUAL'!J31 -> -12493659.36 | K31: ='FLUXO ANUAL'!K31 -> -3822678.26 | L31: ='FLUXO ANUAL'!L31 -> -12430585.17 | M31: ='FLUXO ANUAL'!M31 -> -4273047.4 | N31: ='FLUXO ANUAL'!N31 -> -13895095.54 | O31: ='FLUXO ANUAL'!O31 -> -4273047.4 | P31: ='FLUXO ANUAL'!P31 -> -13895095.54 | Q31: ='FLUXO ANUAL'!Q31 -> -4273047.4 | R31: ='FLUXO ANUAL'!R31 -> -13895095.54 | S31: ='FLUXO ANUAL'!S31 -> -4273047.4 | T31: ='FLUXO ANUAL'!T31 -> -13895095.54 | U31: ='FLUXO ANUAL'!U31 -> -4273047.4 | V31: ='FLUXO ANUAL'!V31 -> -13895095.54 | W31: ='FLUXO ANUAL'!W31 -> -4627616.72 | X31: ='FLUXO ANUAL'!X31 -> -15048084.05 | Y31: ='FLUXO ANUAL'!Y31 -> -4627616.72 | Z31: ='FLUXO ANUAL'!Z31 -> -15048084.05 | AA31: ='FLUXO ANUAL'!AA31 -> -4562901.73 | AB31: ='FLUXO ANUAL'!AB31 -> -14837643.85 | AC31: ='FLUXO ANUAL'!AC31 -> -4627616.72 | AD31: ='FLUXO ANUAL'!AD31 -> -15048084.05 | AE31: ='FLUXO ANUAL'!AE31 -> -4627616.78 | AF31: ='FLUXO ANUAL'!AF31 -> -15048084.25
B32: 15 (-) Energia Cedida Não Vinculada | C32: ='FLUXO ANUAL'!C32 -> -2107951.06 | D32: ='FLUXO ANUAL'!D32 -> -6668209.51 | E32: ='FLUXO ANUAL'!E32 -> -3236825.38 | F32: ='FLUXO ANUAL'!F32 -> -12527511.67 | G32: ='FLUXO ANUAL'!G32 -> -5344776.44 | H32: ='FLUXO ANUAL'!H32 -> -19195721.18 | I32: ='FLUXO ANUAL'!I32 -> -262909.19 | J32: ='FLUXO ANUAL'!J32 -> -699943.14 | K32: ='FLUXO ANUAL'!K32 -> -244491.87 | L32: ='FLUXO ANUAL'!L32 -> -703696.5 | M32: ='FLUXO ANUAL'!M32 -> -628500.58 | N32: ='FLUXO ANUAL'!N32 -> -2016229.86 | O32: ='FLUXO ANUAL'!O32 -> -91381.56 | P32: ='FLUXO ANUAL'!P32 -> -273559.84 | Q32: ='FLUXO ANUAL'!Q32 -> -125808.16 | R32: ='FLUXO ANUAL'!R32 -> -399918.98 | S32: ='FLUXO ANUAL'!S32 -> 0 | T32: ='FLUXO ANUAL'!T32 -> 0 | U32: ='FLUXO ANUAL'!U32 -> -703940.16 | V32: ='FLUXO ANUAL'!V32 -> -2389172.9 | W32: ='FLUXO ANUAL'!W32 -> -50919.54 | X32: ='FLUXO ANUAL'!X32 -> -185688.29 | Y32: ='FLUXO ANUAL'!Y32 -> -22756.06 | Z32: ='FLUXO ANUAL'!Z32 -> -90407.55 | AA32: ='FLUXO ANUAL'!AA32 -> -1139571.29 | AB32: ='FLUXO ANUAL'!AB32 -> -4397491.651 | AC32: ='FLUXO ANUAL'!AC32 -> -1123384.44 | AD32: ='FLUXO ANUAL'!AD32 -> -4325704.12 | AE32: ='FLUXO ANUAL'!AE32 -> -951113.59 | AF32: ='FLUXO ANUAL'!AF32 -> -3713908.35
B33: 16 (-) Royalties Energia Cedida Não Vinculada | C33: ='FLUXO ANUAL'!C33 -> -13661577.64 | D33: ='FLUXO ANUAL'!D33 -> -42983131.69 | E33: ='FLUXO ANUAL'!E33 -> -12768741.59 | F33: ='FLUXO ANUAL'!F33 -> -49495625.51 | G33: ='FLUXO ANUAL'!G33 -> -26430319.23 | H33: ='FLUXO ANUAL'!H33 -> -92478757.2 | I33: ='FLUXO ANUAL'!I33 -> -1971193.61 | J33: ='FLUXO ANUAL'!J33 -> -5247908.75 | K33: ='FLUXO ANUAL'!K33 -> -1742353.24 | L33: ='FLUXO ANUAL'!L33 -> -5014841.1 | M33: ='FLUXO ANUAL'!M33 -> -3296424.49 | N33: ='FLUXO ANUAL'!N33 -> -10574929.76 | O33: ='FLUXO ANUAL'!O33 -> -926709.8 | P33: ='FLUXO ANUAL'!P33 -> -2774198.46 | Q33: ='FLUXO ANUAL'!Q33 -> -948447.99 | R33: ='FLUXO ANUAL'!R33 -> -3014926.47 | S33: ='FLUXO ANUAL'!S33 -> -465646.29 | T33: ='FLUXO ANUAL'!T33 -> -1444714.18 | U33: ='FLUXO ANUAL'!U33 -> -3199800.08 | V33: ='FLUXO ANUAL'!V33 -> -10860121.47 | W33: ='FLUXO ANUAL'!W33 -> -1111002.14 | X33: ='FLUXO ANUAL'!X33 -> -4051491.5 | Y33: ='FLUXO ANUAL'!Y33 -> -868993.88 | Z33: ='FLUXO ANUAL'!Z33 -> -3452425.79 | AA33: ='FLUXO ANUAL'!AA33 -> -4333182.14 | AB33: ='FLUXO ANUAL'!AB33 -> -16721316.56 | AC33: ='FLUXO ANUAL'!AC33 -> -4133617.77 | AD33: ='FLUXO ANUAL'!AD33 -> -15916908.59 | AE33: ='FLUXO ANUAL'!AE33 -> -3432947.8 | AF33: ='FLUXO ANUAL'!AF33 -> -13404974.57
B34: 17 (-) Ressarcimento Encargos Supervisão Não Vinculado | C34: ='FLUXO ANUAL'!C34 -> -1050890.59 | D34: ='FLUXO ANUAL'!D34 -> -3306394.74 | E34: ='FLUXO ANUAL'!E34 -> -982210.89 | F34: ='FLUXO ANUAL'!F34 -> -3807355.798 | G34: ='FLUXO ANUAL'!G34 -> -2033101.48 | H34: ='FLUXO ANUAL'!H34 -> -7113750.538 | I34: ='FLUXO ANUAL'!I34 -> -151630.28 | J34: ='FLUXO ANUAL'!J34 -> -403685.29 | K34: ='FLUXO ANUAL'!K34 -> -134027.17 | L34: ='FLUXO ANUAL'!L34 -> -385757 | M34: ='FLUXO ANUAL'!M34 -> -253571.11 | N34: ='FLUXO ANUAL'!N34 -> -813456.12 | O34: ='FLUXO ANUAL'!O34 -> -71285.37 | P34: ='FLUXO ANUAL'!P34 -> -213399.88 | Q34: ='FLUXO ANUAL'!Q34 -> -72957.54 | R34: ='FLUXO ANUAL'!R34 -> -231917.43 | S34: ='FLUXO ANUAL'!S34 -> -35818.95 | T34: ='FLUXO ANUAL'!T34 -> -111131.87 | U34: ='FLUXO ANUAL'!U34 -> -246138.47 | V34: ='FLUXO ANUAL'!V34 -> -835393.97 | W34: ='FLUXO ANUAL'!W34 -> -85461.7 | X34: ='FLUXO ANUAL'!X34 -> -311653.18 | Y34: ='FLUXO ANUAL'!Y34 -> -66845.68 | Z34: ='FLUXO ANUAL'!Z34 -> -265571.2 | AA34: ='FLUXO ANUAL'!AA34 -> -333321.7 | AB34: ='FLUXO ANUAL'!AB34 -> -1286255.108 | AC34: ='FLUXO ANUAL'!AC34 -> -317970.6 | AD34: ='FLUXO ANUAL'!AD34 -> -1224377.59 | AE34: ='FLUXO ANUAL'!AE34 -> -264072.91 | AF34: ='FLUXO ANUAL'!AF34 -> -1031151.9
B35: 18 (-) Ajuste do dólar Energia Cedida Não Vinculada | C35: ='FLUXO ANUAL'!C35 -> -3382723.52 | D35: ='FLUXO ANUAL'!D35 -> -11013221.8 | E35: ='FLUXO ANUAL'!E35 -> -64714.99 | F35: ='FLUXO ANUAL'!F35 -> -210440.2 | G35: ='FLUXO ANUAL'!G35 -> -3447438.51 | H35: ='FLUXO ANUAL'!H35 -> -11223662 | I35: ='FLUXO ANUAL'!I35 -> -804938.46 | J35: ='FLUXO ANUAL'!J35 -> -2630780.37 | K35: ='FLUXO ANUAL'!K35 -> -804938.46 | L35: ='FLUXO ANUAL'!L35 -> -2617498.88 | M35: ='FLUXO ANUAL'!M35 -> -354569.32 | N35: ='FLUXO ANUAL'!N35 -> -1152988.51 | O35: ='FLUXO ANUAL'!O35 -> -354569.32 | P35: ='FLUXO ANUAL'!P35 -> -1152988.51 | Q35: ='FLUXO ANUAL'!Q35 -> -354569.32 | R35: ='FLUXO ANUAL'!R35 -> -1152988.51 | S35: ='FLUXO ANUAL'!S35 -> -354569.32 | T35: ='FLUXO ANUAL'!T35 -> -1152988.51 | U35: ='FLUXO ANUAL'!U35 -> -354569.32 | V35: ='FLUXO ANUAL'!V35 -> -1152988.51 | W35: ='FLUXO ANUAL'!W35 -> 0 | X35: ='FLUXO ANUAL'!X35 -> 0 | Y35: ='FLUXO ANUAL'!Y35 -> 0 | Z35: ='FLUXO ANUAL'!Z35 -> 0 | AA35: ='FLUXO ANUAL'!AA35 -> -64714.99 | AB35: ='FLUXO ANUAL'!AB35 -> -210440.2 | AC35: ='FLUXO ANUAL'!AC35 -> 0 | AD35: ='FLUXO ANUAL'!AD35 -> 0 | AE35: ='FLUXO ANUAL'!AE35 -> 0 | AF35: ='FLUXO ANUAL'!AF35 -> 0
B36: 19 (-) Ajuste do dólar - Royalties | C36: ='FLUXO ANUAL'!C36 -> -15173512.8 | D36: ='FLUXO ANUAL'!D36 -> -49372524.33 | E36: ='FLUXO ANUAL'!E36 -> -7586756.47 | F36: ='FLUXO ANUAL'!F36 -> -24670614.7 | G36: ='FLUXO ANUAL'!G36 -> -22760269.27 | H36: ='FLUXO ANUAL'!H36 -> -74043139.03 | I36: ='FLUXO ANUAL'!I36 -> -1896689.1 | J36: ='FLUXO ANUAL'!J36 -> -6198948.99 | K36: ='FLUXO ANUAL'!K36 -> -1896689.1 | L36: ='FLUXO ANUAL'!L36 -> -6167653.62 | M36: ='FLUXO ANUAL'!M36 -> -1896689.1 | N36: ='FLUXO ANUAL'!N36 -> -6167653.62 | O36: ='FLUXO ANUAL'!O36 -> -1896689.1 | P36: ='FLUXO ANUAL'!P36 -> -6167653.62 | Q36: ='FLUXO ANUAL'!Q36 -> -1896689.1 | R36: ='FLUXO ANUAL'!R36 -> -6167653.62 | S36: ='FLUXO ANUAL'!S36 -> -1896689.1 | T36: ='FLUXO ANUAL'!T36 -> -6167653.62 | U36: ='FLUXO ANUAL'!U36 -> -1896689.1 | V36: ='FLUXO ANUAL'!V36 -> -6167653.62 | W36: ='FLUXO ANUAL'!W36 -> -1896689.1 | X36: ='FLUXO ANUAL'!X36 -> -6167653.62 | Y36: ='FLUXO ANUAL'!Y36 -> -1896689.1 | Z36: ='FLUXO ANUAL'!Z36 -> -6167653.62 | AA36: ='FLUXO ANUAL'!AA36 -> -1896689.1 | AB36: ='FLUXO ANUAL'!AB36 -> -6167653.62 | AC36: ='FLUXO ANUAL'!AC36 -> -1896689.1 | AD36: ='FLUXO ANUAL'!AD36 -> -6167653.62 | AE36: ='FLUXO ANUAL'!AE36 -> -1896689.17 | AF36: ='FLUXO ANUAL'!AF36 -> -6167653.84
B37: 20 (-) Ajuste do dólar - Ressarcimento de Encargos | C37: ='FLUXO ANUAL'!C37 -> -1167193.28 | D37: ='FLUXO ANUAL'!D37 -> -3797886.45 | E37: ='FLUXO ANUAL'!E37 -> -583596.66 | F37: ='FLUXO ANUAL'!F37 -> -1897739.62 | G37: ='FLUXO ANUAL'!G37 -> -1750789.94 | H37: ='FLUXO ANUAL'!H37 -> -5695626.07 | I37: ='FLUXO ANUAL'!I37 -> -145899.16 | J37: ='FLUXO ANUAL'!J37 -> -476842.22 | K37: ='FLUXO ANUAL'!K37 -> -145899.16 | L37: ='FLUXO ANUAL'!L37 -> -474434.89 | M37: ='FLUXO ANUAL'!M37 -> -145899.16 | N37: ='FLUXO ANUAL'!N37 -> -474434.89 | O37: ='FLUXO ANUAL'!O37 -> -145899.16 | P37: ='FLUXO ANUAL'!P37 -> -474434.89 | Q37: ='FLUXO ANUAL'!Q37 -> -145899.16 | R37: ='FLUXO ANUAL'!R37 -> -474434.89 | S37: ='FLUXO ANUAL'!S37 -> -145899.16 | T37: ='FLUXO ANUAL'!T37 -> -474434.89 | U37: ='FLUXO ANUAL'!U37 -> -145899.16 | V37: ='FLUXO ANUAL'!V37 -> -474434.89 | W37: ='FLUXO ANUAL'!W37 -> -145899.16 | X37: ='FLUXO ANUAL'!X37 -> -474434.89 | Y37: ='FLUXO ANUAL'!Y37 -> -145899.16 | Z37: ='FLUXO ANUAL'!Z37 -> -474434.89 | AA37: ='FLUXO ANUAL'!AA37 -> -145899.16 | AB37: ='FLUXO ANUAL'!AB37 -> -474434.89 | AC37: ='FLUXO ANUAL'!AC37 -> -145899.16 | AD37: ='FLUXO ANUAL'!AD37 -> -474434.89 | AE37: ='FLUXO ANUAL'!AE37 -> -145899.18 | AF37: ='FLUXO ANUAL'!AF37 -> -474434.95
B38: 21 (-) Juros da Potência Contratada, Energias Cedidas, Royalties, Ressarcimento e dos Ajustes do Dólar | C38: ='FLUXO ANUAL'!C38 -> -6772.95 | D38: ='FLUXO ANUAL'!D38 -> -18232.11 | E38: ='FLUXO ANUAL'!E38 -> 0 | F38: ='FLUXO ANUAL'!F38 -> 0 | G38: ='FLUXO ANUAL'!G38 -> -6772.95 | H38: ='FLUXO ANUAL'!H38 -> -18232.11 | I38: ='FLUXO ANUAL'!I38 -> -6772.95 | J38: ='FLUXO ANUAL'!J38 -> -18232.11 | K38: ='FLUXO ANUAL'!K38 -> 0 | L38: ='FLUXO ANUAL'!L38 -> 0 | M38: ='FLUXO ANUAL'!M38 -> 0 | N38: ='FLUXO ANUAL'!N38 -> 0 | O38: ='FLUXO ANUAL'!O38 -> 0 | P38: ='FLUXO ANUAL'!P38 -> 0 | Q38: ='FLUXO ANUAL'!Q38 -> 0 | R38: ='FLUXO ANUAL'!R38 -> 0 | S38: ='FLUXO ANUAL'!S38 -> 0 | T38: ='FLUXO ANUAL'!T38 -> 0 | U38: ='FLUXO ANUAL'!U38 -> 0 | V38: ='FLUXO ANUAL'!V38 -> 0 | W38: ='FLUXO ANUAL'!W38 -> 0 | X38: ='FLUXO ANUAL'!X38 -> 0 | Y38: ='FLUXO ANUAL'!Y38 -> 0 | Z38: ='FLUXO ANUAL'!Z38 -> 0 | AA38: ='FLUXO ANUAL'!AA38 -> 0 | AB38: ='FLUXO ANUAL'!AB38 -> 0 | AC38: ='FLUXO ANUAL'!AC38 -> 0 | AD38: ='FLUXO ANUAL'!AD38 -> 0 | AE38: ='FLUXO ANUAL'!AE38 -> 0 | AF38: ='FLUXO ANUAL'!AF38 -> 0
B39: 22 (+/-) Juros Pagos dos Empréstimos Obtidos por ITAIPU Junto à ELETROBRAS e juros por atraso de transferência da CCEE | C39: ='FLUXO ANUAL'!C39 -> -56792946.04 | D39: ='FLUXO ANUAL'!D39 -> -181894995.5 | E39: ='FLUXO ANUAL'!E39 -> -54303294.48 | F39: ='FLUXO ANUAL'!F39 -> -210817560.8 | G39: ='FLUXO ANUAL'!G39 -> -111096240.5 | H39: ='FLUXO ANUAL'!H39 -> -392712556.3 | I39: ='FLUXO ANUAL'!I39 -> -6876898.114 | J39: ='FLUXO ANUAL'!J39 -> -18308365.85 | K39: ='FLUXO ANUAL'!K39 -> -500653.8635 | L39: ='FLUXO ANUAL'!L39 -> -1440981.95 | M39: ='FLUXO ANUAL'!M39 -> -5532551.244 | N39: ='FLUXO ANUAL'!N39 -> -17748424.39 | O39: ='FLUXO ANUAL'!O39 -> -5869220.671 | P39: ='FLUXO ANUAL'!P39 -> -17570099 | Q39: ='FLUXO ANUAL'!Q39 -> -5247094.517 | R39: ='FLUXO ANUAL'!R39 -> -16679464.05 | S39: ='FLUXO ANUAL'!S39 -> -11890645.94 | T39: ='FLUXO ANUAL'!T39 -> -36891918.08 | U39: ='FLUXO ANUAL'!U39 -> -11366583.1 | V39: ='FLUXO ANUAL'!V39 -> -38578183.04 | W39: ='FLUXO ANUAL'!W39 -> -9509298.593 | X39: ='FLUXO ANUAL'!X39 -> -34677559.18 | Y39: ='FLUXO ANUAL'!Y39 -> -9891188.452 | Z39: ='FLUXO ANUAL'!Z39 -> -39296702.6 | AA39: ='FLUXO ANUAL'!AA39 -> -10687301.49 | AB39: ='FLUXO ANUAL'!AB39 -> -41241227.73 | AC39: ='FLUXO ANUAL'!AC39 -> -25996057.42 | AD39: ='FLUXO ANUAL'!AD39 -> -100100418.7 | AE39: ='FLUXO ANUAL'!AE39 -> -7728747.114 | AF39: ='FLUXO ANUAL'!AF39 -> -30179211.73
B40: 23 (-) Ativo Regulatório - Tesouro | C40: ='FLUXO ANUAL'!C40 -> -135500669.8 | D40: ='FLUXO ANUAL'!D40 -> -419317438.6 | E40: ='FLUXO ANUAL'!E40 -> -71005740 | F40: ='FLUXO ANUAL'!F40 -> -273475057.3 | G40: ='FLUXO ANUAL'!G40 -> -206506409.8 | H40: ='FLUXO ANUAL'!H40 -> -692792496 | I40: ='FLUXO ANUAL'!I40 -> -14496029.85 | J40: ='FLUXO ANUAL'!J40 -> -38045313.54 | K40: ='FLUXO ANUAL'!K40 -> -14496029.99 | L40: ='FLUXO ANUAL'!L40 -> -41168725.17 | M40: ='FLUXO ANUAL'!M40 -> -17751435 | N40: ='FLUXO ANUAL'!N40 -> -56756663.13 | O40: ='FLUXO ANUAL'!O40 -> -17751435 | P40: ='FLUXO ANUAL'!P40 -> -53482115.09 | Q40: ='FLUXO ANUAL'!Q40 -> -17751435 | R40: ='FLUXO ANUAL'!R40 -> -54460219.16 | S40: ='FLUXO ANUAL'!S40 -> -17751435 | T40: ='FLUXO ANUAL'!T40 -> -55129448.26 | U40: ='FLUXO ANUAL'!U40 -> -17751435 | V40: ='FLUXO ANUAL'!V40 -> -57659725.88 | W40: ='FLUXO ANUAL'!W40 -> -17751435 | X40: ='FLUXO ANUAL'!X40 -> -62615228.39 | Y40: ='FLUXO ANUAL'!Y40 -> -17751435 | Z40: ='FLUXO ANUAL'!Z40 -> -69859589.01 | AA40: ='FLUXO ANUAL'!AA40 -> -17751435 | AB40: ='FLUXO ANUAL'!AB40 -> -68478527.38 | AC40: ='FLUXO ANUAL'!AC40 -> -17751435 | AD40: ='FLUXO ANUAL'!AD40 -> -67010483.7 | AE40: ='FLUXO ANUAL'!AE40 -> -17751435 | AF40: ='FLUXO ANUAL'!AF40 -> -68126457.24
B41: 24 (-) Ativo Regulatório - Eletrobrás | C41: ='FLUXO ANUAL'!C41 -> -117384923.5 | D41: ='FLUXO ANUAL'!D41 -> -360613445.2 | E41: ='FLUXO ANUAL'!E41 -> -57689391.12 | F41: ='FLUXO ANUAL'!F41 -> -222187805.4 | G41: ='FLUXO ANUAL'!G41 -> -175074314.6 | H41: ='FLUXO ANUAL'!H41 -> -582801250.6 | I41: ='FLUXO ANUAL'!I41 -> -15425418.36 | J41: ='FLUXO ANUAL'!J41 -> -40484524.67 | K41: ='FLUXO ANUAL'!K41 -> -15425418.48 | L41: ='FLUXO ANUAL'!L41 -> -43808188.49 | M41: ='FLUXO ANUAL'!M41 -> -14422347.78 | N41: ='FLUXO ANUAL'!N41 -> -46112572.55 | O41: ='FLUXO ANUAL'!O41 -> -14422347.78 | P41: ='FLUXO ANUAL'!P41 -> -43452130.14 | Q41: ='FLUXO ANUAL'!Q41 -> -14422347.78 | R41: ='FLUXO ANUAL'!R41 -> -44246801.5 | S41: ='FLUXO ANUAL'!S41 -> -14422347.78 | T41: ='FLUXO ANUAL'!T41 -> -44790524.01 | U41: ='FLUXO ANUAL'!U41 -> -14422347.78 | V41: ='FLUXO ANUAL'!V41 -> -46846275.78 | W41: ='FLUXO ANUAL'!W41 -> -14422347.78 | X41: ='FLUXO ANUAL'!X41 -> -50872428.07 | Y41: ='FLUXO ANUAL'!Y41 -> -14422347.78 | Z41: ='FLUXO ANUAL'!Z41 -> -56758188.2 | AA41: ='FLUXO ANUAL'!AA41 -> -14422347.78 | AB41: ='FLUXO ANUAL'!AB41 -> -55636129.54 | AC41: ='FLUXO ANUAL'!AC41 -> -14422347.78 | AD41: ='FLUXO ANUAL'!AD41 -> -54443401.38 | AE41: ='FLUXO ANUAL'!AE41 -> -14422347.78 | AF41: ='FLUXO ANUAL'!AF41 -> -55350086.31
B42: 25 (-) Custos Administrativos | C42: ='FLUXO ANUAL'!C42 -> -624351.3128 | D42: ='FLUXO ANUAL'!D42 -> -1940053.44 | E42: ='FLUXO ANUAL'!E42 -> -248967.3875 | F42: ='FLUXO ANUAL'!F42 -> -970026.72 | G42: ='FLUXO ANUAL'!G42 -> -873318.7003 | H42: ='FLUXO ANUAL'!H42 -> -2910080.16 | I42: ='FLUXO ANUAL'!I42 -> -91089.16351 | J42: ='FLUXO ANUAL'!J42 -> -242506.68 | K42: ='FLUXO ANUAL'!K42 -> -84256.36856 | L42: ='FLUXO ANUAL'!L42 -> -242506.68 | M42: ='FLUXO ANUAL'!M42 -> -75594.35162 | N42: ='FLUXO ANUAL'!N42 -> -242506.68 | O42: ='FLUXO ANUAL'!O42 -> -81008.37787 | P42: ='FLUXO ANUAL'!P42 -> -242506.68 | Q42: ='FLUXO ANUAL'!Q42 -> -76288.75047 | R42: ='FLUXO ANUAL'!R42 -> -242506.68 | S42: ='FLUXO ANUAL'!S42 -> -78162.40572 | T42: ='FLUXO ANUAL'!T42 -> -242506.68 | U42: ='FLUXO ANUAL'!U42 -> -71451.58515 | V42: ='FLUXO ANUAL'!V42 -> -242506.68 | W42: ='FLUXO ANUAL'!W42 -> -66500.30987 | X42: ='FLUXO ANUAL'!X42 -> -242506.68 | Y42: ='FLUXO ANUAL'!Y42 -> -61040.21747 | Z42: ='FLUXO ANUAL'!Z42 -> -242506.68 | AA42: ='FLUXO ANUAL'!AA42 -> -62843.47353 | AB42: ='FLUXO ANUAL'!AB42 -> -242506.68 | AC42: ='FLUXO ANUAL'!AC42 -> -62978.93315 | AD42: ='FLUXO ANUAL'!AD42 -> -242506.68 | AE42: ='FLUXO ANUAL'!AE42 -> -62104.76337 | AF42: ='FLUXO ANUAL'!AF42 -> -242506.68
B43: NATUREZA DAS CONTAS | C43: ='FLUXO ANUAL'!C43 -> VALORES REALIZADOS DE JANEIRO A AGOSTO/2015 EM US$ | D43: ='FLUXO ANUAL'!D43 -> VALORES REALIZADOS DE JANEIRO A AGOSTO/2015 EM R$ | E43: ='FLUXO ANUAL'!E43 -> VALORES PREVISTOS DE SETEMBRO A DEZEMBRO/2015 EM US$ | F43: ='FLUXO ANUAL'!F43 -> VALORES PREVISTOS DE SETEMBRO A DEZEMBRO/2015 EM R$ | G43: ='FLUXO ANUAL'!G43 -> TOTAIS DE JANEIRO A DEZEMBRO/2015 EM US$ | H43: ='FLUXO ANUAL'!H43 -> TOTAIS DE JANEIRO A DEZEMBRO/2015 EM R$ | I43: ='FLUXO ANUAL'!I43 -> JANEIRO/2015 EM US$ | J43: ='FLUXO ANUAL'!J43 -> JANEIRO/2015 EM R$ | K43: ='FLUXO ANUAL'!K43 -> FEVEREIRO/2015 EM US$ | L43: ='FLUXO ANUAL'!L43 -> FEVEREIRO/2015 EM R$ | M43: ='FLUXO ANUAL'!M43 -> MARÇO/2015 EM US$ | N43: ='FLUXO ANUAL'!N43 -> MARÇO/2015 EM R$ | O43: ='FLUXO ANUAL'!O43 -> ABRIL/2015 EM US$ | P43: ='FLUXO ANUAL'!P43 -> ABRIL/2015 EM R$ | Q43: ='FLUXO ANUAL'!Q43 -> MAIO/2015 EM US$ | R43: ='FLUXO ANUAL'!R43 -> MAIO/2015 EM R$ | S43: ='FLUXO ANUAL'!S43 -> JUNHO/2015 EM US$ | T43: ='FLUXO ANUAL'!T43 -> JUNHO/2015 EM R$ | U43: ='FLUXO ANUAL'!U43 -> JULHO/2015 EM US$ | V43: ='FLUXO ANUAL'!V43 -> JULHO/2015 EM R$ | W43: ='FLUXO ANUAL'!W43 -> AGOSTO/2015 EM US$ | X43: ='FLUXO ANUAL'!X43 -> AGOSTO/2015 EM R$ | Y43: ='FLUXO ANUAL'!Y43 -> SETEMBRO/2015 EM US$ | Z43: ='FLUXO ANUAL'!Z43 -> SETEMBRO/2015 EM R$ | AA43: ='FLUXO ANUAL'!AA43 -> OUTUBRO/2015 EM US$ | AB43: ='FLUXO ANUAL'!AB43 -> OUTUBRO/2015 EM R$ | AC43: ='FLUXO ANUAL'!AC43 -> NOVEMBRO/2015 EM US$ | AD43: ='FLUXO ANUAL'!AD43 -> NOVEMBRO/2015 EM R$ | AE43: ='FLUXO ANUAL'!AE43 -> DEZEMBRO/2015 EM US$ | AF43: ='FLUXO ANUAL'!AF43 -> DEZEMBRO/2015 EM R$
C44: ='FLUXO ANUAL'!C44 -> 0 | D44: ='FLUXO ANUAL'!D44 -> 0 | E44: ='FLUXO ANUAL'!E44 -> 0 | F44: ='FLUXO ANUAL'!F44 -> 0 | G44: ='FLUXO ANUAL'!G44 -> 0 | H44: ='FLUXO ANUAL'!H44 -> 0 | I44: ='FLUXO ANUAL'!I44 -> 0 | J44: ='FLUXO ANUAL'!J44 -> 0 | K44: ='FLUXO ANUAL'!K44 -> 0 | L44: ='FLUXO ANUAL'!L44 -> 0 | M44: ='FLUXO ANUAL'!M44 -> 0 | N44: ='FLUXO ANUAL'!N44 -> 0 | O44: ='FLUXO ANUAL'!O44 -> 0 | P44: ='FLUXO ANUAL'!P44 -> 0 | Q44: ='FLUXO ANUAL'!Q44 -> 0 | R44: ='FLUXO ANUAL'!R44 -> 0 | S44: ='FLUXO ANUAL'!S44 -> 0 | T44: ='FLUXO ANUAL'!T44 -> 0 | U44: ='FLUXO ANUAL'!U44 -> 0 | V44: ='FLUXO ANUAL'!V44 -> 0 | W44: ='FLUXO ANUAL'!W44 -> 0 | X44: ='FLUXO ANUAL'!X44 -> 0 | Y44: ='FLUXO ANUAL'!Y44 -> 0 | Z44: ='FLUXO ANUAL'!Z44 -> 0 | AA44: ='FLUXO ANUAL'!AA44 -> 0 | AB44: ='FLUXO ANUAL'!AB44 -> 0 | AC44: ='FLUXO ANUAL'!AC44 -> 0 | AD44: ='FLUXO ANUAL'!AD44 -> 0 | AE44: ='FLUXO ANUAL'!AE44 -> 0 | AF44: ='FLUXO ANUAL'!AF44 -> 0
C45: ='FLUXO ANUAL'!C45 -> 0 | D45: ='FLUXO ANUAL'!D45 -> 0 | E45: ='FLUXO ANUAL'!E45 -> 0 | F45: ='FLUXO ANUAL'!F45 -> 0 | G45: ='FLUXO ANUAL'!G45 -> 0 | H45: ='FLUXO ANUAL'!H45 -> 0 | I45: ='FLUXO ANUAL'!I45 -> 0 | J45: ='FLUXO ANUAL'!J45 -> 0 | K45: ='FLUXO ANUAL'!K45 -> 0 | L45: ='FLUXO ANUAL'!L45 -> 0 | M45: ='FLUXO ANUAL'!M45 -> 0 | N45: ='FLUXO ANUAL'!N45 -> 0 | O45: ='FLUXO ANUAL'!O45 -> 0 | P45: ='FLUXO ANUAL'!P45 -> 0 | Q45: ='FLUXO ANUAL'!Q45 -> 0 | R45: ='FLUXO ANUAL'!R45 -> 0 | S45: ='FLUXO ANUAL'!S45 -> 0 | T45: ='FLUXO ANUAL'!T45 -> 0 | U45: ='FLUXO ANUAL'!U45 -> 0 | V45: ='FLUXO ANUAL'!V45 -> 0 | W45: ='FLUXO ANUAL'!W45 -> 0 | X45: ='FLUXO ANUAL'!X45 -> 0 | Y45: ='FLUXO ANUAL'!Y45 -> 0 | Z45: ='FLUXO ANUAL'!Z45 -> 0 | AA45: ='FLUXO ANUAL'!AA45 -> 0 | AB45: ='FLUXO ANUAL'!AB45 -> 0 | AC45: ='FLUXO ANUAL'!AC45 -> 0 | AD45: ='FLUXO ANUAL'!AD45 -> 0 | AE45: ='FLUXO ANUAL'!AE45 -> 0 | AF45: ='FLUXO ANUAL'!AF45 -> 0
C46: ='FLUXO ANUAL'!C46 -> 0 | D46: ='FLUXO ANUAL'!D46 -> 0 | E46: ='FLUXO ANUAL'!E46 -> 0 | F46: ='FLUXO ANUAL'!F46 -> 0 | G46: ='FLUXO ANUAL'!G46 -> 0 | H46: ='FLUXO ANUAL'!H46 -> 0 | I46: ='FLUXO ANUAL'!I46 -> 0 | J46: ='FLUXO ANUAL'!J46 -> 0 | K46: ='FLUXO ANUAL'!K46 -> 0 | L46: ='FLUXO ANUAL'!L46 -> 0 | M46: ='FLUXO ANUAL'!M46 -> 0 | N46: ='FLUXO ANUAL'!N46 -> 0 | O46: ='FLUXO ANUAL'!O46 -> 0 | P46: ='FLUXO ANUAL'!P46 -> 0 | Q46: ='FLUXO ANUAL'!Q46 -> 0 | R46: ='FLUXO ANUAL'!R46 -> 0 | S46: ='FLUXO ANUAL'!S46 -> 0 | T46: ='FLUXO ANUAL'!T46 -> 0 | U46: ='FLUXO ANUAL'!U46 -> 0 | V46: ='FLUXO ANUAL'!V46 -> 0 | W46: ='FLUXO ANUAL'!W46 -> 0 | X46: ='FLUXO ANUAL'!X46 -> 0 | Y46: ='FLUXO ANUAL'!Y46 -> 0 | Z46: ='FLUXO ANUAL'!Z46 -> 0 | AA46: ='FLUXO ANUAL'!AA46 -> 0 | AB46: ='FLUXO ANUAL'!AB46 -> 0 | AC46: ='FLUXO ANUAL'!AC46 -> 0 | AD46: ='FLUXO ANUAL'!AD46 -> 0 | AE46: ='FLUXO ANUAL'!AE46 -> 0 | AF46: ='FLUXO ANUAL'!AF46 -> 0
B47: 26 (-) Contribuição Anual a CCEE | C47: ='FLUXO ANUAL'!C47 -> -1348392.457 | D47: ='FLUXO ANUAL'!D47 -> -4185427.07 | E47: ='FLUXO ANUAL'!E47 -> -521487.5435 | F47: ='FLUXO ANUAL'!F47 -> -2031907.25 | G47: ='FLUXO ANUAL'!G47 -> -1869880 | H47: ='FLUXO ANUAL'!H47 -> -6217334.32 | I47: ='FLUXO ANUAL'!I47 -> -200899.2112 | J47: ='FLUXO ANUAL'!J47 -> -534853.97 | K47: ='FLUXO ANUAL'!K47 -> -183439.2919 | L47: ='FLUXO ANUAL'!L47 -> -527974.97 | M47: ='FLUXO ANUAL'!M47 -> -163772.4813 | N47: ='FLUXO ANUAL'!N47 -> -525382.12 | O47: ='FLUXO ANUAL'!O47 -> -174482.8133 | P47: ='FLUXO ANUAL'!P47 -> -522331.75 | Q47: ='FLUXO ANUAL'!Q47 -> -167559.6892 | R47: ='FLUXO ANUAL'!R47 -> -532638.74 | S47: ='FLUXO ANUAL'!S47 -> -166396.5029 | T47: ='FLUXO ANUAL'!T47 -> -516261.79 | U47: ='FLUXO ANUAL'!U47 -> -151476.8238 | V47: ='FLUXO ANUAL'!V47 -> -514112.34 | W47: ='FLUXO ANUAL'!W47 -> -140365.6429 | X47: ='FLUXO ANUAL'!X47 -> -511871.39 | Y47: ='FLUXO ANUAL'!Y47 -> -128840.2678 | Z47: ='FLUXO ANUAL'!Z47 -> -511869.5 | AA47: ='FLUXO ANUAL'!AA47 -> -131999.8963 | AB47: ='FLUXO ANUAL'!AB47 -> -509374.4 | AC47: ='FLUXO ANUAL'!AC47 -> -131227.6165 | AD47: ='FLUXO ANUAL'!AD47 -> -505305.06 | AE47: ='FLUXO ANUAL'!AE47 -> -129419.7629 | AF47: ='FLUXO ANUAL'!AF47 -> -505358.29
B48: 27 (-) Contribuição ao O N S | C48: ='FLUXO ANUAL'!C48 -> -96389.52531 | D48: ='FLUXO ANUAL'!D48 -> -300049.93 | E48: ='FLUXO ANUAL'!E48 -> -40337.19617 | F48: ='FLUXO ANUAL'!F48 -> -157161.78 | G48: ='FLUXO ANUAL'!G48 -> -136726.7215 | H48: ='FLUXO ANUAL'!H48 -> -457211.71 | I48: ='FLUXO ANUAL'!I48 -> -13922.00353 | J48: ='FLUXO ANUAL'!J48 -> -37064.55 | K48: ='FLUXO ANUAL'!K48 -> -12844.66681 | L48: ='FLUXO ANUAL'!L48 -> -36969.52 | M48: ='FLUXO ANUAL'!M48 -> -11494.53865 | N48: ='FLUXO ANUAL'!N48 -> -36874.48 | O48: ='FLUXO ANUAL'!O48 -> -12301.89738 | P48: ='FLUXO ANUAL'!P48 -> -36826.96 | Q48: ='FLUXO ANUAL'!Q48 -> -11585.1768 | R48: ='FLUXO ANUAL'!R48 -> -36826.96 | S48: ='FLUXO ANUAL'!S48 -> -11854.39954 | T48: ='FLUXO ANUAL'!T48 -> -36779.46 | U48: ='FLUXO ANUAL'!U48 -> -11595.16794 | V48: ='FLUXO ANUAL'!V48 -> -39354 | W48: ='FLUXO ANUAL'!W48 -> -10791.67466 | X48: ='FLUXO ANUAL'!X48 -> -39354 | Y48: ='FLUXO ANUAL'!Y48 -> -9892.813814 | Z48: ='FLUXO ANUAL'!Z48 -> -39303.16 | AA48: ='FLUXO ANUAL'!AA48 -> -10198.24302 | AB48: ='FLUXO ANUAL'!AB48 -> -39354 | AC48: ='FLUXO ANUAL'!AC48 -> -10193.81655 | AD48: ='FLUXO ANUAL'!AD48 -> -39252.31 | AE48: ='FLUXO ANUAL'!AE48 -> -10052.32278 | AF48: ='FLUXO ANUAL'!AF48 -> -39252.31
B49: 28 (-) Despesas Bancárias | C49: ='FLUXO ANUAL'!C49 -> -108.0634223 | D49: ='FLUXO ANUAL'!D49 -> -335.84 | E49: ='FLUXO ANUAL'!E49 -> -9.857482375 | F49: ='FLUXO ANUAL'!F49 -> -38.73 | G49: ='FLUXO ANUAL'!G49 -> -117.9209046 | H49: ='FLUXO ANUAL'!H49 -> -374.57 | I49: ='FLUXO ANUAL'!I49 -> -14.13439507 | J49: ='FLUXO ANUAL'!J49 -> -37.63 | K49: ='FLUXO ANUAL'!K49 -> -13.07414356 | L49: ='FLUXO ANUAL'!L49 -> -37.63 | M49: ='FLUXO ANUAL'!M49 -> -11.73004988 | N49: ='FLUXO ANUAL'!N49 -> -37.63 | O49: ='FLUXO ANUAL'!O49 -> -22.72514698 | P49: ='FLUXO ANUAL'!P49 -> -68.03 | Q49: ='FLUXO ANUAL'!Q49 -> -12.18384296 | R49: ='FLUXO ANUAL'!R49 -> -38.73 | S49: ='FLUXO ANUAL'!S49 -> -12.48307871 | T49: ='FLUXO ANUAL'!T49 -> -38.73 | U49: ='FLUXO ANUAL'!U49 -> -7.094873306 | V49: ='FLUXO ANUAL'!V49 -> -24.08 | W49: ='FLUXO ANUAL'!W49 -> -14.63789179 | X49: ='FLUXO ANUAL'!X49 -> -53.38 | Y49: ='FLUXO ANUAL'!Y49 -> -6.061063707 | Z49: ='FLUXO ANUAL'!Z49 -> -24.08 | AA49: ='FLUXO ANUAL'!AA49 -> -3.796418669 | AB49: ='FLUXO ANUAL'!AB49 -> -14.65 | AC49: ='FLUXO ANUAL'!AC49 -> 0 | AD49: ='FLUXO ANUAL'!AD49 -> 0 | AE49: ='FLUXO ANUAL'!AE49 -> 0 | AF49: ='FLUXO ANUAL'!AF49 -> 0
B50: 29 (-) Custeio com Imposto de Renda BB | C50: ='FLUXO ANUAL'!C50 -> -20.13023783 | D50: ='FLUXO ANUAL'!D50 -> -63.99 | E50: ='FLUXO ANUAL'!E50 -> -16.57984501 | F50: ='FLUXO ANUAL'!F50 -> -64.41 | G50: ='FLUXO ANUAL'!G50 -> -36.71008283 | H50: ='FLUXO ANUAL'!H50 -> -128.4 | I50: ='FLUXO ANUAL'!I50 -> 0 | J50: ='FLUXO ANUAL'!J50 -> 0 | K50: ='FLUXO ANUAL'!K50 -> 0 | L50: ='FLUXO ANUAL'!L50 -> 0 | M50: ='FLUXO ANUAL'!M50 -> 0 | N50: ='FLUXO ANUAL'!N50 -> 0 | O50: ='FLUXO ANUAL'!O50 -> 0 | P50: ='FLUXO ANUAL'!P50 -> 0 | Q50: ='FLUXO ANUAL'!Q50 -> -20.13023783 | R50: ='FLUXO ANUAL'!R50 -> -63.99 | S50: ='FLUXO ANUAL'!S50 -> 0 | T50: ='FLUXO ANUAL'!T50 -> 0 | U50: ='FLUXO ANUAL'!U50 -> 0 | V50: ='FLUXO ANUAL'!V50 -> 0 | W50: ='FLUXO ANUAL'!W50 -> 0 | X50: ='FLUXO ANUAL'!X50 -> 0 | Y50: ='FLUXO ANUAL'!Y50 -> -4.641445795 | Z50: ='FLUXO ANUAL'!Z50 -> -18.44 | AA50: ='FLUXO ANUAL'!AA50 -> 0 | AB50: ='FLUXO ANUAL'!AB50 -> 0 | AC50: ='FLUXO ANUAL'!AC50 -> -11.93839921 | AD50: ='FLUXO ANUAL'!AD50 -> -45.97 | AE50: ='FLUXO ANUAL'!AE50 -> 0 | AF50: ='FLUXO ANUAL'!AF50 -> 0
B51: 30 (-) Custeio com Imposto de Renda Bradesco | C51: ='FLUXO ANUAL'!C51 -> -643379.6227 | D51: ='FLUXO ANUAL'!D51 -> -2346212.47 | E51: ='FLUXO ANUAL'!E51 -> 0 | F51: ='FLUXO ANUAL'!F51 -> 0 | G51: ='FLUXO ANUAL'!G51 -> -643379.6227 | H51: ='FLUXO ANUAL'!H51 -> -2346212.47 | I51: ='FLUXO ANUAL'!I51 -> 0 | J51: ='FLUXO ANUAL'!J51 -> 0 | K51: ='FLUXO ANUAL'!K51 -> 0 | L51: ='FLUXO ANUAL'!L51 -> 0 | M51: ='FLUXO ANUAL'!M51 -> 0 | N51: ='FLUXO ANUAL'!N51 -> 0 | O51: ='FLUXO ANUAL'!O51 -> 0 | P51: ='FLUXO ANUAL'!P51 -> 0 | Q51: ='FLUXO ANUAL'!Q51 -> 0 | R51: ='FLUXO ANUAL'!R51 -> 0 | S51: ='FLUXO ANUAL'!S51 -> 0 | T51: ='FLUXO ANUAL'!T51 -> 0 | U51: ='FLUXO ANUAL'!U51 -> 0 | V51: ='FLUXO ANUAL'!V51 -> 0 | W51: ='FLUXO ANUAL'!W51 -> -643379.6227 | X51: ='FLUXO ANUAL'!X51 -> -2346212.47 | Y51: ='FLUXO ANUAL'!Y51 -> 0 | Z51: ='FLUXO ANUAL'!Z51 -> 0 | AA51: ='FLUXO ANUAL'!AA51 -> 0 | AB51: ='FLUXO ANUAL'!AB51 -> 0 | AC51: ='FLUXO ANUAL'!AC51 -> 0 | AD51: ='FLUXO ANUAL'!AD51 -> 0 | AE51: ='FLUXO ANUAL'!AE51 -> 0 | AF51: ='FLUXO ANUAL'!AF51 -> 0
B52: 31 (-) Custeio com IOF BB | C52: ='FLUXO ANUAL'!C52 -> 0 | D52: ='FLUXO ANUAL'!D52 -> 0 | E52: ='FLUXO ANUAL'!E52 -> 0 | F52: ='FLUXO ANUAL'!F52 -> 0 | G52: ='FLUXO ANUAL'!G52 -> 0 | H52: ='FLUXO ANUAL'!H52 -> 0 | I52: ='FLUXO ANUAL'!I52 -> 0 | J52: ='FLUXO ANUAL'!J52 -> 0 | K52: ='FLUXO ANUAL'!K52 -> 0 | L52: ='FLUXO ANUAL'!L52 -> 0 | M52: ='FLUXO ANUAL'!M52 -> 0 | N52: ='FLUXO ANUAL'!N52 -> 0 | O52: ='FLUXO ANUAL'!O52 -> 0 | P52: ='FLUXO ANUAL'!P52 -> 0 | Q52: ='FLUXO ANUAL'!Q52 -> 0 | R52: ='FLUXO ANUAL'!R52 -> 0 | S52: ='FLUXO ANUAL'!S52 -> 0 | T52: ='FLUXO ANUAL'!T52 -> 0 | U52: ='FLUXO ANUAL'!U52 -> 0 | V52: ='FLUXO ANUAL'!V52 -> 0 | W52: ='FLUXO ANUAL'!W52 -> 0 | X52: ='FLUXO ANUAL'!X52 -> 0 | Y52: ='FLUXO ANUAL'!Y52 -> 0 | Z52: ='FLUXO ANUAL'!Z52 -> 0 | AA52: ='FLUXO ANUAL'!AA52 -> 0 | AB52: ='FLUXO ANUAL'!AB52 -> 0 | AC52: ='FLUXO ANUAL'!AC52 -> 0 | AD52: ='FLUXO ANUAL'!AD52 -> 0 | AE52: ='FLUXO ANUAL'!AE52 -> 0 | AF52: ='FLUXO ANUAL'!AF52 -> 0
B53: 32 (-) Custeio com IOF Bradesco | C53: ='FLUXO ANUAL'!C53 -> -1874230.803 | D53: ='FLUXO ANUAL'!D53 -> -6834757.47 | E53: ='FLUXO ANUAL'!E53 -> 0 | F53: ='FLUXO ANUAL'!F53 -> 0 | G53: ='FLUXO ANUAL'!G53 -> -1874230.803 | H53: ='FLUXO ANUAL'!H53 -> -6834757.47 | I53: ='FLUXO ANUAL'!I53 -> 0 | J53: ='FLUXO ANUAL'!J53 -> 0 | K53: ='FLUXO ANUAL'!K53 -> 0 | L53: ='FLUXO ANUAL'!L53 -> 0 | M53: ='FLUXO ANUAL'!M53 -> 0 | N53: ='FLUXO ANUAL'!N53 -> 0 | O53: ='FLUXO ANUAL'!O53 -> 0 | P53: ='FLUXO ANUAL'!P53 -> 0 | Q53: ='FLUXO ANUAL'!Q53 -> 0 | R53: ='FLUXO ANUAL'!R53 -> 0 | S53: ='FLUXO ANUAL'!S53 -> 0 | T53: ='FLUXO ANUAL'!T53 -> 0 | U53: ='FLUXO ANUAL'!U53 -> 0 | V53: ='FLUXO ANUAL'!V53 -> 0 | W53: ='FLUXO ANUAL'!W53 -> -1874230.803 | X53: ='FLUXO ANUAL'!X53 -> -6834757.47 | Y53: ='FLUXO ANUAL'!Y53 -> 0 | Z53: ='FLUXO ANUAL'!Z53 -> 0 | AA53: ='FLUXO ANUAL'!AA53 -> 0 | AB53: ='FLUXO ANUAL'!AB53 -> 0 | AC53: ='FLUXO ANUAL'!AC53 -> 0 | AD53: ='FLUXO ANUAL'!AD53 -> 0 | AE53: ='FLUXO ANUAL'!AE53 -> 0 | AF53: ='FLUXO ANUAL'!AF53 -> 0
B54: 33 (-) Pagamento de bônus de ITAIPU | C54: ='FLUXO ANUAL'!C54 -> 0 | D54: ='FLUXO ANUAL'!D54 -> 0 | E54: ='FLUXO ANUAL'!E54 -> -6650.747622 | F54: ='FLUXO ANUAL'!F54 -> -25664.57 | G54: ='FLUXO ANUAL'!G54 -> -6650.747622 | H54: ='FLUXO ANUAL'!H54 -> -25664.57 | I54: ='FLUXO ANUAL'!I54 -> 0 | J54: ='FLUXO ANUAL'!J54 -> 0 | K54: ='FLUXO ANUAL'!K54 -> 0 | L54: ='FLUXO ANUAL'!L54 -> 0 | M54: ='FLUXO ANUAL'!M54 -> 0 | N54: ='FLUXO ANUAL'!N54 -> 0 | O54: ='FLUXO ANUAL'!O54 -> 0 | P54: ='FLUXO ANUAL'!P54 -> 0 | Q54: ='FLUXO ANUAL'!Q54 -> 0 | R54: ='FLUXO ANUAL'!R54 -> 0 | S54: ='FLUXO ANUAL'!S54 -> 0 | T54: ='FLUXO ANUAL'!T54 -> 0 | U54: ='FLUXO ANUAL'!U54 -> 0 | V54: ='FLUXO ANUAL'!V54 -> 0 | W54: ='FLUXO ANUAL'!W54 -> 0 | X54: ='FLUXO ANUAL'!X54 -> 0 | Y54: ='FLUXO ANUAL'!Y54 -> 0 | Z54: ='FLUXO ANUAL'!Z54 -> 0 | AA54: ='FLUXO ANUAL'!AA54 -> -6650.747622 | AB54: ='FLUXO ANUAL'!AB54 -> -25664.57 | AC54: ='FLUXO ANUAL'!AC54 -> 0 | AD54: ='FLUXO ANUAL'!AD54 -> 0 | AE54: ='FLUXO ANUAL'!AE54 -> 0 | AF54: ='FLUXO ANUAL'!AF54 -> 0
B55: 34 (+) Variação Cambial (Ativa) | C55: ='FLUXO ANUAL'!C55 -> 0 | D55: ='FLUXO ANUAL'!D55 -> 1276601375 | E55: ='FLUXO ANUAL'!E55 -> 0 | F55: ='FLUXO ANUAL'!F55 -> 480634787.9 | G55: ='FLUXO ANUAL'!G55 -> 0 | H55: ='FLUXO ANUAL'!H55 -> 1757236163 | I55: ='FLUXO ANUAL'!I55 -> 0 | J55: ='FLUXO ANUAL'!J55 -> 44869890.61 | K55: ='FLUXO ANUAL'!K55 -> 0 | L55: ='FLUXO ANUAL'!L55 -> 230154681.5 | M55: ='FLUXO ANUAL'!M55 -> 0 | N55: ='FLUXO ANUAL'!N55 -> 381096821.5 | O55: ='FLUXO ANUAL'!O55 -> 0 | P55: ='FLUXO ANUAL'!P55 -> -81034244.42 | Q55: ='FLUXO ANUAL'!Q55 -> 0 | R55: ='FLUXO ANUAL'!R55 -> 132224640.2 | S55: ='FLUXO ANUAL'!S55 -> 0 | T55: ='FLUXO ANUAL'!T55 -> -23115757.23 | U55: ='FLUXO ANUAL'!U55 -> 0 | V55: ='FLUXO ANUAL'!V55 -> 284107298.9 | W55: ='FLUXO ANUAL'!W55 -> 0 | X55: ='FLUXO ANUAL'!X55 -> 308298044 | Y55: ='FLUXO ANUAL'!Y55 -> 0 | Z55: ='FLUXO ANUAL'!Z55 -> 354419813.4 | AA55: ='FLUXO ANUAL'!AA55 -> 0 | AB55: ='FLUXO ANUAL'!AB55 -> -44901706.03 | AC55: ='FLUXO ANUAL'!AC55 -> 0 | AD55: ='FLUXO ANUAL'!AD55 -> 49942276.53 | AE55: ='FLUXO ANUAL'!AE55 -> 0 | AF55: ='FLUXO ANUAL'!AF55 -> 121174404
B56: 35 (-) Variação Cambial (Passiva) | C56: ='FLUXO ANUAL'!C56 -> 0 | D56: ='FLUXO ANUAL'!D56 -> -644138842.3 | E56: ='FLUXO ANUAL'!E56 -> 0 | F56: ='FLUXO ANUAL'!F56 -> -343087209.7 | G56: ='FLUXO ANUAL'!G56 -> 0 | H56: ='FLUXO ANUAL'!H56 -> -987226052.1 | I56: ='FLUXO ANUAL'!I56 -> 0 | J56: ='FLUXO ANUAL'!J56 -> -15255938.36 | K56: ='FLUXO ANUAL'!K56 -> 0 | L56: ='FLUXO ANUAL'!L56 -> -121614548.7 | M56: ='FLUXO ANUAL'!M56 -> 0 | N56: ='FLUXO ANUAL'!N56 -> -192343271 | O56: ='FLUXO ANUAL'!O56 -> 0 | P56: ='FLUXO ANUAL'!P56 -> -12213381.89 | Q56: ='FLUXO ANUAL'!Q56 -> 0 | R56: ='FLUXO ANUAL'!R56 -> -27130709.48 | S56: ='FLUXO ANUAL'!S56 -> 0 | T56: ='FLUXO ANUAL'!T56 -> -40761109.6 | U56: ='FLUXO ANUAL'!U56 -> 0 | V56: ='FLUXO ANUAL'!V56 -> -97654053.78 | W56: ='FLUXO ANUAL'!W56 -> 0 | X56: ='FLUXO ANUAL'!X56 -> -137165829.6 | Y56: ='FLUXO ANUAL'!Y56 -> 0 | Z56: ='FLUXO ANUAL'!Z56 -> -207698650.4 | AA56: ='FLUXO ANUAL'!AA56 -> 0 | AB56: ='FLUXO ANUAL'!AB56 -> -59883486.42 | AC56: ='FLUXO ANUAL'!AC56 -> 0 | AD56: ='FLUXO ANUAL'!AD56 -> -22902247.53 | AE56: ='FLUXO ANUAL'!AE56 -> 0 | AF56: ='FLUXO ANUAL'!AF56 -> -52602825.4
B57: 36 (+ / -) Receitas / Despesas com COFINS | C57: ='FLUXO ANUAL'!C57 -> -78833363.52 | D57: ='FLUXO ANUAL'!D57 -> -250479660.4 | E57: ='FLUXO ANUAL'!E57 -> -52877999.98 | F57: ='FLUXO ANUAL'!F57 -> -206342836.9 | G57: ='FLUXO ANUAL'!G57 -> -131711363.5 | H57: ='FLUXO ANUAL'!H57 -> -456822497.3 | I57: ='FLUXO ANUAL'!I57 -> -9047709.244 | J57: ='FLUXO ANUAL'!J57 -> -24087716.32 | K57: ='FLUXO ANUAL'!K57 -> -9776071.538 | L57: ='FLUXO ANUAL'!L57 -> -28137489.1 | M57: ='FLUXO ANUAL'!M57 -> -9604744.492 | N57: ='FLUXO ANUAL'!N57 -> -30812020.33 | O57: ='FLUXO ANUAL'!O57 -> -3634595.4 | P57: ='FLUXO ANUAL'!P57 -> -10880524.79 | Q57: ='FLUXO ANUAL'!Q57 -> -9609634.362 | R57: ='FLUXO ANUAL'!R57 -> -30547105.71 | S57: ='FLUXO ANUAL'!S57 -> -11332196.14 | T57: ='FLUXO ANUAL'!T57 -> -35159271.74 | U57: ='FLUXO ANUAL'!U57 -> -13189310.98 | V57: ='FLUXO ANUAL'!V57 -> -44764521.46 | W57: ='FLUXO ANUAL'!W57 -> -12639101.37 | X57: ='FLUXO ANUAL'!X57 -> -46091010.97 | Y57: ='FLUXO ANUAL'!Y57 -> -14130346.01 | Z57: ='FLUXO ANUAL'!Z57 -> -56138451.67 | AA57: ='FLUXO ANUAL'!AA57 -> -11759976.34 | AB57: ='FLUXO ANUAL'!AB57 -> -45380572.7 | AC57: ='FLUXO ANUAL'!AC57 -> -10289134.02 | AD57: ='FLUXO ANUAL'!AD57 -> -39619339.47 | AE57: ='FLUXO ANUAL'!AE57 -> -16698543.6 | AF57: ='FLUXO ANUAL'!AF57 -> -65204473.06
B58: 37 (+ / -) Receitas / Despesas com PASEP | C58: ='FLUXO ANUAL'!C58 -> -17090527.75 | D58: ='FLUXO ANUAL'!D58 -> -54294202.81 | E58: ='FLUXO ANUAL'!E58 -> -10821062.05 | F58: ='FLUXO ANUAL'!F58 -> -42232508.1 | G58: ='FLUXO ANUAL'!G58 -> -27911589.8 | H58: ='FLUXO ANUAL'!H58 -> -96526710.91 | I58: ='FLUXO ANUAL'!I58 -> -1964305.296 | J58: ='FLUXO ANUAL'!J58 -> -5229569.99 | K58: ='FLUXO ANUAL'!K58 -> -2122436.585 | L58: ='FLUXO ANUAL'!L58 -> -6108796.98 | M58: ='FLUXO ANUAL'!M58 -> -2085240.58 | N58: ='FLUXO ANUAL'!N58 -> -6689451.78 | O58: ='FLUXO ANUAL'!O58 -> -789089.7916 | P58: ='FLUXO ANUAL'!P58 -> -2362219.2 | Q58: ='FLUXO ANUAL'!Q58 -> -2086302.196 | R58: ='FLUXO ANUAL'!R58 -> -6631937.42 | S58: ='FLUXO ANUAL'!S58 -> -2460279.424 | T58: ='FLUXO ANUAL'!T58 -> -7633262.94 | U58: ='FLUXO ANUAL'!U58 -> -2849630.636 | V58: ='FLUXO ANUAL'!V58 -> -9671646.38 | W58: ='FLUXO ANUAL'!W58 -> -2733243.239 | X58: ='FLUXO ANUAL'!X58 -> -9967318.12 | Y58: ='FLUXO ANUAL'!Y58 -> -3056408.13 | Z58: ='FLUXO ANUAL'!Z58 -> -12142803.86 | AA58: ='FLUXO ANUAL'!AA58 -> -2465140.19 | AB58: ='FLUXO ANUAL'!AB58 -> -9512729.48 | AC58: ='FLUXO ANUAL'!AC58 -> -2150672.443 | AD58: ='FLUXO ANUAL'!AD58 -> -8281379.31 | AE58: ='FLUXO ANUAL'!AE58 -> -3148841.285 | AF58: ='FLUXO ANUAL'!AF58 -> -12295595.45
B59: SALDO DO PERÍODO ( B ) REALIZADO / PREVISTO / TOTAL | C59: ='FLUXO ANUAL'!C59 -> 906231893.3 | D59: ='FLUXO ANUAL'!D59 -> 3418155871 | E59: ='FLUXO ANUAL'!E59 -> 377895218 | F59: ='FLUXO ANUAL'!F59 -> 1660347815 | G59: ='FLUXO ANUAL'!G59 -> 1284127111 | H59: ='FLUXO ANUAL'!H59 -> 5078503686 | I59: ='FLUXO ANUAL'!I59 -> 107875847.7 | J59: ='FLUXO ANUAL'!J59 -> 286520877.7 | K59: ='FLUXO ANUAL'!K59 -> 114907100.3 | L59: ='FLUXO ANUAL'!L59 -> 435703683.3 | M59: ='FLUXO ANUAL'!M59 -> 105771808.6 | N59: ='FLUXO ANUAL'!N59 -> 548772189.5 | O59: ='FLUXO ANUAL'!O59 -> 129405436.8 | P59: ='FLUXO ANUAL'!P59 -> 268136020.5 | Q59: ='FLUXO ANUAL'!Q59 -> 127037688.1 | R59: ='FLUXO ANUAL'!R59 -> 510304763.3 | S59: ='FLUXO ANUAL'!S59 -> 108429421.1 | T59: ='FLUXO ANUAL'!T59 -> 299514153.9 | U59: ='FLUXO ANUAL'!U59 -> 105935273.5 | V59: ='FLUXO ANUAL'!V59 -> 528776488.1 | W59: ='FLUXO ANUAL'!W59 -> 106869317.1 | X59: ='FLUXO ANUAL'!X59 -> 540427694.6 | Y59: ='FLUXO ANUAL'!Y59 -> 107846607.8 | Z59: ='FLUXO ANUAL'!Z59 -> 642918757 | AA59: ='FLUXO ANUAL'!AA59 -> 101561099.5 | AB59: ='FLUXO ANUAL'!AB59 -> 323226402 | AC59: ='FLUXO ANUAL'!AC59 -> 79213602.44 | AD59: ='FLUXO ANUAL'!AD59 -> 292986848.5 | AE59: ='FLUXO ANUAL'!AE59 -> 89273908.22 | AF59: ='FLUXO ANUAL'!AF59 -> 401215807.9
B60: SALDO FINAL ( C ) = ( A + B ) (ANTES DA INADIMPLÊNCIA) | C60: ='FLUXO ANUAL'!C60 -> -134882104 | D60: ='FLUXO ANUAL'!D60 -> 1063028432 | E60: ='FLUXO ANUAL'!E60 -> 243013114 | F60: ='FLUXO ANUAL'!F60 -> 2723376248 | G60: ='FLUXO ANUAL'!G60 -> 243013114 | H60: ='FLUXO ANUAL'!H60 -> 2723376248 | I60: ='FLUXO ANUAL'!I60 -> -933238149.5 | J60: ='FLUXO ANUAL'!J60 -> -2068606561 | K60: ='FLUXO ANUAL'!K60 -> -818331049.2 | L60: ='FLUXO ANUAL'!L60 -> -1632902878 | M60: ='FLUXO ANUAL'!M60 -> -712559240.6 | N60: ='FLUXO ANUAL'!N60 -> -1084130688 | O60: ='FLUXO ANUAL'!O60 -> -583153803.7 | P60: ='FLUXO ANUAL'!P60 -> -815994667.6 | Q60: ='FLUXO ANUAL'!Q60 -> -456116115.6 | R60: ='FLUXO ANUAL'!R60 -> -305689904.3 | S60: ='FLUXO ANUAL'!S60 -> -347686694.6 | T60: ='FLUXO ANUAL'!T60 -> -6175750.43 | U60: ='FLUXO ANUAL'!U60 -> -241751421 | V60: ='FLUXO ANUAL'!V60 -> 522600737.7 | W60: ='FLUXO ANUAL'!W60 -> -134882104 | X60: ='FLUXO ANUAL'!X60 -> 1063028432 | Y60: ='FLUXO ANUAL'!Y60 -> -27035496.13 | Z60: ='FLUXO ANUAL'!Z60 -> 1705947189 | AA60: ='FLUXO ANUAL'!AA60 -> 74525603.36 | AB60: ='FLUXO ANUAL'!AB60 -> 2029173591 | AC60: ='FLUXO ANUAL'!AC60 -> 153739205.8 | AD60: ='FLUXO ANUAL'!AD60 -> 2322160440 | AE60: ='FLUXO ANUAL'!AE60 -> 243013114 | AF60: ='FLUXO ANUAL'!AF60 -> 2723376248
B62: NATUREZA DAS CONTAS | C62: ='FLUXO ANUAL'!C62 -> VALORES REALIZADOS DE JANEIRO A AGOSTO/2015 EM US$ | D62: ='FLUXO ANUAL'!D62 -> VALORES REALIZADOS DE JANEIRO A AGOSTO/2015 EM R$ | E62: ='FLUXO ANUAL'!E62 -> VALORES PREVISTOS DE SETEMBRO A DEZEMBRO/2015 EM US$ | F62: ='FLUXO ANUAL'!F62 -> VALORES PREVISTOS DE SETEMBRO A DEZEMBRO/2015 EM R$ | G62: ='FLUXO ANUAL'!G62 -> TOTAIS DE JANEIRO A DEZEMBRO/2015 EM US$ | H62: ='FLUXO ANUAL'!H62 -> TOTAIS DE JANEIRO A DEZEMBRO/2015 EM R$ | I62: ='FLUXO ANUAL'!I62 -> JANEIRO/2015 EM US$ | J62: ='FLUXO ANUAL'!J62 -> JANEIRO/2015 EM R$ | K62: ='FLUXO ANUAL'!K62 -> FEVEREIRO/2015 EM US$ | L62: ='FLUXO ANUAL'!L62 -> FEVEREIRO/2015 EM R$ | M62: ='FLUXO ANUAL'!M62 -> MARÇO/2015 EM US$ | N62: ='FLUXO ANUAL'!N62 -> MARÇO/2015 EM R$ | O62: ='FLUXO ANUAL'!O62 -> ABRIL/2015 EM US$ | P62: ='FLUXO ANUAL'!P62 -> ABRIL/2015 EM R$ | Q62: ='FLUXO ANUAL'!Q62 -> MAIO/2015 EM US$ | R62: ='FLUXO ANUAL'!R62 -> MAIO/2015 EM R$ | S62: ='FLUXO ANUAL'!S62 -> JUNHO/2015 EM US$ | T62: ='FLUXO ANUAL'!T62 -> JUNHO/2015 EM R$ | U62: ='FLUXO ANUAL'!U62 -> JULHO/2015 EM US$ | V62: ='FLUXO ANUAL'!V62 -> JULHO/2015 EM R$ | W62: ='FLUXO ANUAL'!W62 -> AGOSTO/2015 EM US$ | X62: ='FLUXO ANUAL'!X62 -> AGOSTO/2015 EM R$ | Y62: ='FLUXO ANUAL'!Y62 -> SETEMBRO/2015 EM US$ | Z62: ='FLUXO ANUAL'!Z62 -> SETEMBRO/2015 EM R$ | AA62: ='FLUXO ANUAL'!AA62 -> OUTUBRO/2015 EM US$ | AB62: ='FLUXO ANUAL'!AB62 -> OUTUBRO/2015 EM R$ | AC62: ='FLUXO ANUAL'!AC62 -> NOVEMBRO/2015 EM US$ | AD62: ='FLUXO ANUAL'!AD62 -> NOVEMBRO/2015 EM R$ | AE62: ='FLUXO ANUAL'!AE62 -> DEZEMBRO/2015 EM US$ | AF62: ='FLUXO ANUAL'!AF62 -> DEZEMBRO/2015 EM R$
C63: ='FLUXO ANUAL'!C63 -> 0 | D63: ='FLUXO ANUAL'!D63 -> 0 | E63: ='FLUXO ANUAL'!E63 -> 0 | F63: ='FLUXO ANUAL'!F63 -> 0 | G63: ='FLUXO ANUAL'!G63 -> 0 | H63: ='FLUXO ANUAL'!H63 -> 0 | I63: ='FLUXO ANUAL'!I63 -> 0 | J63: ='FLUXO ANUAL'!J63 -> 0 | K63: ='FLUXO ANUAL'!K63 -> 0 | L63: ='FLUXO ANUAL'!L63 -> 0 | M63: ='FLUXO ANUAL'!M63 -> 0 | N63: ='FLUXO ANUAL'!N63 -> 0 | O63: ='FLUXO ANUAL'!O63 -> 0 | P63: ='FLUXO ANUAL'!P63 -> 0 | Q63: ='FLUXO ANUAL'!Q63 -> 0 | R63: ='FLUXO ANUAL'!R63 -> 0 | S63: ='FLUXO ANUAL'!S63 -> 0 | T63: ='FLUXO ANUAL'!T63 -> 0 | U63: ='FLUXO ANUAL'!U63 -> 0 | V63: ='FLUXO ANUAL'!V63 -> 0 | W63: ='FLUXO ANUAL'!W63 -> 0 | X63: ='FLUXO ANUAL'!X63 -> 0 | Y63: ='FLUXO ANUAL'!Y63 -> 0 | Z63: ='FLUXO ANUAL'!Z63 -> 0 | AA63: ='FLUXO ANUAL'!AA63 -> 0 | AB63: ='FLUXO ANUAL'!AB63 -> 0 | AC63: ='FLUXO ANUAL'!AC63 -> 0 | AD63: ='FLUXO ANUAL'!AD63 -> 0 | AE63: ='FLUXO ANUAL'!AE63 -> 0 | AF63: ='FLUXO ANUAL'!AF63 -> 0
C64: ='FLUXO ANUAL'!C64 -> 0 | D64: ='FLUXO ANUAL'!D64 -> 0 | E64: ='FLUXO ANUAL'!E64 -> 0 | F64: ='FLUXO ANUAL'!F64 -> 0 | G64: ='FLUXO ANUAL'!G64 -> 0 | H64: ='FLUXO ANUAL'!H64 -> 0 | I64: ='FLUXO ANUAL'!I64 -> 0 | J64: ='FLUXO ANUAL'!J64 -> 0 | K64: ='FLUXO ANUAL'!K64 -> 0 | L64: ='FLUXO ANUAL'!L64 -> 0 | M64: ='FLUXO ANUAL'!M64 -> 0 | N64: ='FLUXO ANUAL'!N64 -> 0 | O64: ='FLUXO ANUAL'!O64 -> 0 | P64: ='FLUXO ANUAL'!P64 -> 0 | Q64: ='FLUXO ANUAL'!Q64 -> 0 | R64: ='FLUXO ANUAL'!R64 -> 0 | S64: ='FLUXO ANUAL'!S64 -> 0 | T64: ='FLUXO ANUAL'!T64 -> 0 | U64: ='FLUXO ANUAL'!U64 -> 0 | V64: ='FLUXO ANUAL'!V64 -> 0 | W64: ='FLUXO ANUAL'!W64 -> 0 | X64: ='FLUXO ANUAL'!X64 -> 0 | Y64: ='FLUXO ANUAL'!Y64 -> 0 | Z64: ='FLUXO ANUAL'!Z64 -> 0 | AA64: ='FLUXO ANUAL'!AA64 -> 0 | AB64: ='FLUXO ANUAL'!AB64 -> 0 | AC64: ='FLUXO ANUAL'!AC64 -> 0 | AD64: ='FLUXO ANUAL'!AD64 -> 0 | AE64: ='FLUXO ANUAL'!AE64 -> 0 | AF64: ='FLUXO ANUAL'!AF64 -> 0
C65: ='FLUXO ANUAL'!C65 -> 0 | D65: ='FLUXO ANUAL'!D65 -> 0 | E65: ='FLUXO ANUAL'!E65 -> 0 | F65: ='FLUXO ANUAL'!F65 -> 0 | G65: ='FLUXO ANUAL'!G65 -> 0 | H65: ='FLUXO ANUAL'!H65 -> 0 | I65: ='FLUXO ANUAL'!I65 -> 0 | J65: ='FLUXO ANUAL'!J65 -> 0 | K65: ='FLUXO ANUAL'!K65 -> 0 | L65: ='FLUXO ANUAL'!L65 -> 0 | M65: ='FLUXO ANUAL'!M65 -> 0 | N65: ='FLUXO ANUAL'!N65 -> 0 | O65: ='FLUXO ANUAL'!O65 -> 0 | P65: ='FLUXO ANUAL'!P65 -> 0 | Q65: ='FLUXO ANUAL'!Q65 -> 0 | R65: ='FLUXO ANUAL'!R65 -> 0 | S65: ='FLUXO ANUAL'!S65 -> 0 | T65: ='FLUXO ANUAL'!T65 -> 0 | U65: ='FLUXO ANUAL'!U65 -> 0 | V65: ='FLUXO ANUAL'!V65 -> 0 | W65: ='FLUXO ANUAL'!W65 -> 0 | X65: ='FLUXO ANUAL'!X65 -> 0 | Y65: ='FLUXO ANUAL'!Y65 -> 0 | Z65: ='FLUXO ANUAL'!Z65 -> 0 | AA65: ='FLUXO ANUAL'!AA65 -> 0 | AB65: ='FLUXO ANUAL'!AB65 -> 0 | AC65: ='FLUXO ANUAL'!AC65 -> 0 | AD65: ='FLUXO ANUAL'!AD65 -> 0 | AE65: ='FLUXO ANUAL'!AE65 -> 0 | AF65: ='FLUXO ANUAL'!AF65 -> 0
B66: 38 (-) RECEITAS NÃO REALIZADAS | C66: ='FLUXO ANUAL'!C66 -> -61284383.39 | D66: ='FLUXO ANUAL'!D66 -> -217387969 | E66: ='FLUXO ANUAL'!E66 -> -127142590.1 | F66: ='FLUXO ANUAL'!F66 -> -484684278.2 | G66: ='FLUXO ANUAL'!G66 -> -127142590.1 | H66: ='FLUXO ANUAL'!H66 -> -484684278.2 | I66: ='FLUXO ANUAL'!I66 -> -84882042.04 | J66: ='FLUXO ANUAL'!J66 -> -219106798.3 | K66: ='FLUXO ANUAL'!K66 -> -80534189.09 | L66: ='FLUXO ANUAL'!L66 -> -218882831.2 | M66: ='FLUXO ANUAL'!M66 -> -100922127.3 | N66: ='FLUXO ANUAL'!N66 -> -294771273.7 | O66: ='FLUXO ANUAL'!O66 -> -133764333.7 | P66: ='FLUXO ANUAL'!P66 -> -384199355.3 | Q66: ='FLUXO ANUAL'!Q66 -> -91743073.76 | R66: ='FLUXO ANUAL'!R66 -> -275102965.7 | S66: ='FLUXO ANUAL'!S66 -> -81898474.74 | T66: ='FLUXO ANUAL'!T66 -> -242976774.4 | U66: ='FLUXO ANUAL'!U66 -> -98819423.94 | V66: ='FLUXO ANUAL'!V66 -> -304466998.2 | W66: ='FLUXO ANUAL'!W66 -> -61284383.39 | X66: ='FLUXO ANUAL'!X66 -> -217387969 | Y66: ='FLUXO ANUAL'!Y66 -> -116849591.5 | Z66: ='FLUXO ANUAL'!Z66 -> -472037032.1 | AA66: ='FLUXO ANUAL'!AA66 -> -188184974.3 | AB66: ='FLUXO ANUAL'!AB66 -> -748946204.3 | AC66: ='FLUXO ANUAL'!AC66 -> -84402265.55 | AD66: ='FLUXO ANUAL'!AD66 -> -316699711.5 | AE66: ='FLUXO ANUAL'!AE66 -> -127142590.1 | AF66: ='FLUXO ANUAL'!AF66 -> -484684278.2
B67: 39 (-) VARIAÇÃO CAMBIAL DAS RECEITAS NÃO REALIZADAS | C67: ='FLUXO ANUAL'!C67 -> 0 | D67: ='FLUXO ANUAL'!D67 -> -6097791.868 | E67: ='FLUXO ANUAL'!E67 -> 0 | F67: ='FLUXO ANUAL'!F67 -> -11782107.55 | G67: ='FLUXO ANUAL'!G67 -> 0 | H67: ='FLUXO ANUAL'!H67 -> -11782107.55 | I67: ='FLUXO ANUAL'!I67 -> 0 | J67: ='FLUXO ANUAL'!J67 -> -6874662.223 | K67: ='FLUXO ANUAL'!K67 -> 0 | L67: ='FLUXO ANUAL'!L67 -> -12910671.86 | M67: ='FLUXO ANUAL'!M67 -> 0 | N67: ='FLUXO ANUAL'!N67 -> -28986910.81 | O67: ='FLUXO ANUAL'!O67 -> 0 | P67: ='FLUXO ANUAL'!P67 -> -16237554.14 | Q67: ='FLUXO ANUAL'!Q67 -> 0 | R67: ='FLUXO ANUAL'!R67 -> -16529917.2 | S67: ='FLUXO ANUAL'!S67 -> 0 | T67: ='FLUXO ANUAL'!T67 -> -11121433.31 | U67: ='FLUXO ANUAL'!U67 -> 0 | V67: ='FLUXO ANUAL'!V67 -> -30926126.69 | W67: ='FLUXO ANUAL'!W67 -> 0 | X67: ='FLUXO ANUAL'!X67 -> -6097791.868 | Y67: ='FLUXO ANUAL'!Y67 -> 0 | Z67: ='FLUXO ANUAL'!Z67 -> 7805290.139 | AA67: ='FLUXO ANUAL'!AA67 -> 0 | AB67: ='FLUXO ANUAL'!AB67 -> 22759206.9 | AC67: ='FLUXO ANUAL'!AC67 -> 0 | AD67: ='FLUXO ANUAL'!AD67 -> -8299652.197 | AE67: ='FLUXO ANUAL'!AE67 -> 0 | AF67: ='FLUXO ANUAL'!AF67 -> -11782107.55
B68: 40 (-) RECEITAS NÃO REALIZADAS DE COFINS E PASEP | C68: ='FLUXO ANUAL'!C68 -> 0 | D68: ='FLUXO ANUAL'!D68 -> 0 | E68: ='FLUXO ANUAL'!E68 -> 0 | F68: ='FLUXO ANUAL'!F68 -> 0 | G68: ='FLUXO ANUAL'!G68 -> 0 | H68: ='FLUXO ANUAL'!H68 -> 0 | I68: ='FLUXO ANUAL'!I68 -> 0 | J68: ='FLUXO ANUAL'!J68 -> 0 | K68: ='FLUXO ANUAL'!K68 -> 0 | L68: ='FLUXO ANUAL'!L68 -> 0 | M68: ='FLUXO ANUAL'!M68 -> 0 | N68: ='FLUXO ANUAL'!N68 -> 0 | O68: ='FLUXO ANUAL'!O68 -> 0 | P68: ='FLUXO ANUAL'!P68 -> 0 | Q68: ='FLUXO ANUAL'!Q68 -> 0 | R68: ='FLUXO ANUAL'!R68 -> 0 | S68: ='FLUXO ANUAL'!S68 -> 0 | T68: ='FLUXO ANUAL'!T68 -> 0 | U68: ='FLUXO ANUAL'!U68 -> 0 | V68: ='FLUXO ANUAL'!V68 -> 0 | W68: ='FLUXO ANUAL'!W68 -> 0 | X68: ='FLUXO ANUAL'!X68 -> 0 | Y68: ='FLUXO ANUAL'!Y68 -> 0 | Z68: ='FLUXO ANUAL'!Z68 -> 0 | AA68: ='FLUXO ANUAL'!AA68 -> 0 | AB68: ='FLUXO ANUAL'!AB68 -> 0 | AC68: ='FLUXO ANUAL'!AC68 -> 0 | AD68: ='FLUXO ANUAL'!AD68 -> 0 | AE68: ='FLUXO ANUAL'!AE68 -> 0 | AF68: ='FLUXO ANUAL'!AF68 -> 0
B69: 41 (-) REPACTUAÇÃO CELG - DISTRIBUIÇÃO | C69: ='FLUXO ANUAL'!C69 -> -349498380.5 | D69: ='FLUXO ANUAL'!D69 -> -715877533.1 | E69: ='FLUXO ANUAL'!E69 -> -330931279.1 | F69: ='FLUXO ANUAL'!F69 -> -683747273.2 | G69: ='FLUXO ANUAL'!G69 -> -330931279.1 | H69: ='FLUXO ANUAL'!H69 -> -683747273.2 | I69: ='FLUXO ANUAL'!I69 -> -349498380.5 | J69: ='FLUXO ANUAL'!J69 -> -715877533.1 | K69: ='FLUXO ANUAL'!K69 -> -349498380.5 | L69: ='FLUXO ANUAL'!L69 -> -715877533.1 | M69: ='FLUXO ANUAL'!M69 -> -349498380.5 | N69: ='FLUXO ANUAL'!N69 -> -715877533.1 | O69: ='FLUXO ANUAL'!O69 -> -349498380.5 | P69: ='FLUXO ANUAL'!P69 -> -715877533.1 | Q69: ='FLUXO ANUAL'!Q69 -> -349498380.5 | R69: ='FLUXO ANUAL'!R69 -> -715877533.1 | S69: ='FLUXO ANUAL'!S69 -> -349498380.5 | T69: ='FLUXO ANUAL'!T69 -> -715877533.1 | U69: ='FLUXO ANUAL'!U69 -> -349498380.5 | V69: ='FLUXO ANUAL'!V69 -> -715877533.1 | W69: ='FLUXO ANUAL'!W69 -> -349498380.5 | X69: ='FLUXO ANUAL'!X69 -> -715877533.1 | Y69: ='FLUXO ANUAL'!Y69 -> -342217164.3 | Z69: ='FLUXO ANUAL'!Z69 -> -700963417.8 | AA69: ='FLUXO ANUAL'!AA69 -> -334935948 | AB69: ='FLUXO ANUAL'!AB69 -> -686049302.5 | AC69: ='FLUXO ANUAL'!AC69 -> -338396952.8 | AD69: ='FLUXO ANUAL'!AD69 -> -698993114.4 | AE69: ='FLUXO ANUAL'!AE69 -> -330931279.1 | AF69: ='FLUXO ANUAL'!AF69 -> -683747273.2
B70: 42 (-) VARIAÇÃO CAMBIAL DA REPACTUAÇÃO CELG | C70: ='FLUXO ANUAL'!C70 -> 0 | D70: ='FLUXO ANUAL'!D70 -> -558638211.2 | E70: ='FLUXO ANUAL'!E70 -> 0 | F70: ='FLUXO ANUAL'!F70 -> -608473185.3 | G70: ='FLUXO ANUAL'!G70 -> 0 | H70: ='FLUXO ANUAL'!H70 -> -608473185.3 | I70: ='FLUXO ANUAL'!I70 -> 0 | J70: ='FLUXO ANUAL'!J70 -> -214592005.4 | K70: ='FLUXO ANUAL'!K70 -> 0 | L70: ='FLUXO ANUAL'!L70 -> -290048705.8 | M70: ='FLUXO ANUAL'!M70 -> 0 | N70: ='FLUXO ANUAL'!N70 -> -405313271.7 | O70: ='FLUXO ANUAL'!O70 -> 0 | P70: ='FLUXO ANUAL'!P70 -> -330380818.9 | Q70: ='FLUXO ANUAL'!Q70 -> 0 | R70: ='FLUXO ANUAL'!R70 -> -395107919 | S70: ='FLUXO ANUAL'!S70 -> 0 | T70: ='FLUXO ANUAL'!T70 -> -368476142.4 | U70: ='FLUXO ANUAL'!U70 -> 0 | V70: ='FLUXO ANUAL'!V70 -> -470319970.5 | W70: ='FLUXO ANUAL'!W70 -> 0 | X70: ='FLUXO ANUAL'!X70 -> -558638211.2 | Y70: ='FLUXO ANUAL'!Y70 -> 0 | Z70: ='FLUXO ANUAL'!Z70 -> -658631154.2 | AA70: ='FLUXO ANUAL'!AA70 -> 0 | AB70: ='FLUXO ANUAL'!AB70 -> -606435027.3 | AC70: ='FLUXO ANUAL'!AC70 -> 0 | AD70: ='FLUXO ANUAL'!AD70 -> -604038192.1 | AE70: ='FLUXO ANUAL'!AE70 -> 0 | AF70: ='FLUXO ANUAL'!AF70 -> -608473185.3
B71: 43 (-) REPACTUAÇÃO CEMAT | C71: ='FLUXO ANUAL'!C71 -> 0 | D71: ='FLUXO ANUAL'!D71 -> -351140081.2 | E71: ='FLUXO ANUAL'!E71 -> 0 | F71: ='FLUXO ANUAL'!F71 -> -351140081.2 | G71: ='FLUXO ANUAL'!G71 -> 0 | H71: ='FLUXO ANUAL'!H71 -> -351140081.2 | I71: ='FLUXO ANUAL'!I71 -> 0 | J71: ='FLUXO ANUAL'!J71 -> -351140081.2 | K71: ='FLUXO ANUAL'!K71 -> 0 | L71: ='FLUXO ANUAL'!L71 -> -351140081.2 | M71: ='FLUXO ANUAL'!M71 -> 0 | N71: ='FLUXO ANUAL'!N71 -> -351140081.2 | O71: ='FLUXO ANUAL'!O71 -> 0 | P71: ='FLUXO ANUAL'!P71 -> -351140081.2 | Q71: ='FLUXO ANUAL'!Q71 -> 0 | R71: ='FLUXO ANUAL'!R71 -> -351140081.2 | S71: ='FLUXO ANUAL'!S71 -> 0 | T71: ='FLUXO ANUAL'!T71 -> -351140081.2 | U71: ='FLUXO ANUAL'!U71 -> 0 | V71: ='FLUXO ANUAL'!V71 -> -351140081.2 | W71: ='FLUXO ANUAL'!W71 -> 0 | X71: ='FLUXO ANUAL'!X71 -> -351140081.2 | Y71: ='FLUXO ANUAL'!Y71 -> 0 | Z71: ='FLUXO ANUAL'!Z71 -> -351140081.2 | AA71: ='FLUXO ANUAL'!AA71 -> 0 | AB71: ='FLUXO ANUAL'!AB71 -> -351140081.2 | AC71: ='FLUXO ANUAL'!AC71 -> 0 | AD71: ='FLUXO ANUAL'!AD71 -> -351140081.2 | AE71: ='FLUXO ANUAL'!AE71 -> 0 | AF71: ='FLUXO ANUAL'!AF71 -> -351140081.2
B72: 44 (-) REPACTUAÇÃO EEB | C72: ='FLUXO ANUAL'!C72 -> 0 | D72: ='FLUXO ANUAL'!D72 -> 0 | E72: ='FLUXO ANUAL'!E72 -> 0 | F72: ='FLUXO ANUAL'!F72 -> 0 | G72: ='FLUXO ANUAL'!G72 -> 0 | H72: ='FLUXO ANUAL'!H72 -> 0 | I72: ='FLUXO ANUAL'!I72 -> -25189502.73 | J72: ='FLUXO ANUAL'!J72 -> -57379168.28 | K72: ='FLUXO ANUAL'!K72 -> -21591002.34 | L72: ='FLUXO ANUAL'!L72 -> -49182144.24 | M72: ='FLUXO ANUAL'!M72 -> -17992501.95 | N72: ='FLUXO ANUAL'!N72 -> -40985120.2 | O72: ='FLUXO ANUAL'!O72 -> -14394001.56 | P72: ='FLUXO ANUAL'!P72 -> -32788096.16 | Q72: ='FLUXO ANUAL'!Q72 -> -10795501.17 | R72: ='FLUXO ANUAL'!R72 -> -24591072.12 | S72: ='FLUXO ANUAL'!S72 -> -28671.55 | T72: ='FLUXO ANUAL'!T72 -> -90000 | U72: ='FLUXO ANUAL'!U72 -> 0 | V72: ='FLUXO ANUAL'!V72 -> 0 | W72: ='FLUXO ANUAL'!W72 -> 0 | X72: ='FLUXO ANUAL'!X72 -> 0 | Y72: ='FLUXO ANUAL'!Y72 -> 0 | Z72: ='FLUXO ANUAL'!Z72 -> 0 | AA72: ='FLUXO ANUAL'!AA72 -> 0 | AB72: ='FLUXO ANUAL'!AB72 -> 0 | AC72: ='FLUXO ANUAL'!AC72 -> 0 | AD72: ='FLUXO ANUAL'!AD72 -> 0 | AE72: ='FLUXO ANUAL'!AE72 -> 0 | AF72: ='FLUXO ANUAL'!AF72 -> 0
B73: 45 (-) VARIAÇÃO CAMBIAL DA REPACTUAÇÃO EEB | C73: ='FLUXO ANUAL'!C73 -> 0 | D73: ='FLUXO ANUAL'!D73 -> 0 | E73: ='FLUXO ANUAL'!E73 -> 0 | F73: ='FLUXO ANUAL'!F73 -> 0 | G73: ='FLUXO ANUAL'!G73 -> 0 | H73: ='FLUXO ANUAL'!H73 -> 0 | I73: ='FLUXO ANUAL'!I73 -> 0 | J73: ='FLUXO ANUAL'!J73 -> -9682844.838 | K73: ='FLUXO ANUAL'!K73 -> 0 | L73: ='FLUXO ANUAL'!L73 -> -12961078.69 | M73: ='FLUXO ANUAL'!M73 -> 0 | N73: ='FLUXO ANUAL'!N73 -> -16734826.06 | O73: ='FLUXO ANUAL'!O73 -> 0 | P73: ='FLUXO ANUAL'!P73 -> -10301786.91 | Q73: ='FLUXO ANUAL'!Q73 -> 0 | R73: ='FLUXO ANUAL'!R73 -> -9725666.999 | S73: ='FLUXO ANUAL'!S73 -> 0 | T73: ='FLUXO ANUAL'!T73 -> 1043.64897 | U73: ='FLUXO ANUAL'!U73 -> 0 | V73: ='FLUXO ANUAL'!V73 -> 0 | W73: ='FLUXO ANUAL'!W73 -> 0 | X73: ='FLUXO ANUAL'!X73 -> 0 | Y73: ='FLUXO ANUAL'!Y73 -> 0 | Z73: ='FLUXO ANUAL'!Z73 -> 0 | AA73: ='FLUXO ANUAL'!AA73 -> 0 | AB73: ='FLUXO ANUAL'!AB73 -> 0 | AC73: ='FLUXO ANUAL'!AC73 -> 0 | AD73: ='FLUXO ANUAL'!AD73 -> 0 | AE73: ='FLUXO ANUAL'!AE73 -> 0 | AF73: ='FLUXO ANUAL'!AF73 -> 0
B74: 46 (-) REPACTUAÇÃO CEB-D | C74: ='FLUXO ANUAL'!C74 -> -22160096.46 | D74: ='FLUXO ANUAL'!D74 -> -69205981.21 | E74: ='FLUXO ANUAL'!E74 -> -18306166.66 | F74: ='FLUXO ANUAL'!F74 -> -57170158.45 | G74: ='FLUXO ANUAL'!G74 -> -18306166.66 | H74: ='FLUXO ANUAL'!H74 -> -57170158.45 | I74: ='FLUXO ANUAL'!I74 -> 0 | J74: ='FLUXO ANUAL'!J74 -> 0 | K74: ='FLUXO ANUAL'!K74 -> 0 | L74: ='FLUXO ANUAL'!L74 -> 0 | M74: ='FLUXO ANUAL'!M74 -> 0 | N74: ='FLUXO ANUAL'!N74 -> 0 | O74: ='FLUXO ANUAL'!O74 -> 0 | P74: ='FLUXO ANUAL'!P74 -> 0 | Q74: ='FLUXO ANUAL'!Q74 -> 0 | R74: ='FLUXO ANUAL'!R74 -> 0 | S74: ='FLUXO ANUAL'!S74 -> 0 | T74: ='FLUXO ANUAL'!T74 -> 0 | U74: ='FLUXO ANUAL'!U74 -> -23123578.91 | V74: ='FLUXO ANUAL'!V74 -> -72214936.9 | W74: ='FLUXO ANUAL'!W74 -> -22160096.46 | X74: ='FLUXO ANUAL'!X74 -> -69205981.21 | Y74: ='FLUXO ANUAL'!Y74 -> -21196614.01 | Z74: ='FLUXO ANUAL'!Z74 -> -66197025.52 | AA74: ='FLUXO ANUAL'!AA74 -> -20233131.56 | AB74: ='FLUXO ANUAL'!AB74 -> -63188069.83 | AC74: ='FLUXO ANUAL'!AC74 -> -19525923.15 | AD74: ='FLUXO ANUAL'!AD74 -> -61165922.96 | AE74: ='FLUXO ANUAL'!AE74 -> -18306166.66 | AF74: ='FLUXO ANUAL'!AF74 -> -57170158.45
B75: 47 (-) VARIAÇÃO CAMBIAL DA REPACTUAÇÃO CEB-D | C75: ='FLUXO ANUAL'!C75 -> 0 | D75: ='FLUXO ANUAL'!D75 -> -11605242.55 | E75: ='FLUXO ANUAL'!E75 -> 0 | F75: ='FLUXO ANUAL'!F75 -> -14311761.12 | G75: ='FLUXO ANUAL'!G75 -> 0 | H75: ='FLUXO ANUAL'!H75 -> -14311761.12 | I75: ='FLUXO ANUAL'!I75 -> 0 | J75: ='FLUXO ANUAL'!J75 -> 0 | K75: ='FLUXO ANUAL'!K75 -> 0 | L75: ='FLUXO ANUAL'!L75 -> 0 | M75: ='FLUXO ANUAL'!M75 -> 0 | N75: ='FLUXO ANUAL'!N75 -> 0 | O75: ='FLUXO ANUAL'!O75 -> 0 | P75: ='FLUXO ANUAL'!P75 -> 0 | Q75: ='FLUXO ANUAL'!Q75 -> 0 | R75: ='FLUXO ANUAL'!R75 -> 0 | S75: ='FLUXO ANUAL'!S75 -> 0 | T75: ='FLUXO ANUAL'!T75 -> 0 | U75: ='FLUXO ANUAL'!U75 -> 0 | V75: ='FLUXO ANUAL'!V75 -> -6266489.921 | W75: ='FLUXO ANUAL'!W75 -> 0 | X75: ='FLUXO ANUAL'!X75 -> -11605242.55 | Y75: ='FLUXO ANUAL'!Y75 -> 0 | Z75: ='FLUXO ANUAL'!Z75 -> -18015002.28 | AA75: ='FLUXO ANUAL'!AA75 -> 0 | AB75: ='FLUXO ANUAL'!AB75 -> -14889561.55 | AC75: ='FLUXO ANUAL'!AC75 -> 0 | AD75: ='FLUXO ANUAL'!AD75 -> -14020596.72 | AE75: ='FLUXO ANUAL'!AE75 -> 0 | AF75: ='FLUXO ANUAL'!AF75 -> -14311761.12
B76: 48 (-) REPACTUAÇÃO CEEE-D | C76: ='FLUXO ANUAL'!C76 -> 0 | D76: ='FLUXO ANUAL'!D76 -> 0 | E76: ='FLUXO ANUAL'!E76 -> -60729974.98 | F76: ='FLUXO ANUAL'!F76 -> -233433877.7 | G76: ='FLUXO ANUAL'!G76 -> -60729974.98 | H76: ='FLUXO ANUAL'!H76 -> -233433877.7 | I76: ='FLUXO ANUAL'!I76 -> 0 | J76: ='FLUXO ANUAL'!J76 -> 0 | K76: ='FLUXO ANUAL'!K76 -> 0 | L76: ='FLUXO ANUAL'!L76 -> 0 | M76: ='FLUXO ANUAL'!M76 -> 0 | N76: ='FLUXO ANUAL'!N76 -> 0 | O76: ='FLUXO ANUAL'!O76 -> 0 | P76: ='FLUXO ANUAL'!P76 -> 0 | Q76: ='FLUXO ANUAL'!Q76 -> 0 | R76: ='FLUXO ANUAL'!R76 -> 0 | S76: ='FLUXO ANUAL'!S76 -> 0 | T76: ='FLUXO ANUAL'!T76 -> 0 | U76: ='FLUXO ANUAL'!U76 -> 0 | V76: ='FLUXO ANUAL'!V76 -> 0 | W76: ='FLUXO ANUAL'!W76 -> 0 | X76: ='FLUXO ANUAL'!X76 -> 0 | Y76: ='FLUXO ANUAL'!Y76 -> 0 | Z76: ='FLUXO ANUAL'!Z76 -> 0 | AA76: ='FLUXO ANUAL'!AA76 -> -60729974.98 | AB76: ='FLUXO ANUAL'!AB76 -> -233433877.7 | AC76: ='FLUXO ANUAL'!AC76 -> -60729974.98 | AD76: ='FLUXO ANUAL'!AD76 -> -233433877.7 | AE76: ='FLUXO ANUAL'!AE76 -> -60729974.98 | AF76: ='FLUXO ANUAL'!AF76 -> -233433877.7
B77: 49 (-) VARIAÇÃO CAMBIAL DA REPACTUAÇÃO CEEE-D | C77: ='FLUXO ANUAL'!C77 -> 0 | D77: ='FLUXO ANUAL'!D77 -> 0 | E77: ='FLUXO ANUAL'!E77 -> 0 | F77: ='FLUXO ANUAL'!F77 -> -3704528.582 | G77: ='FLUXO ANUAL'!G77 -> 0 | H77: ='FLUXO ANUAL'!H77 -> -3704528.582 | I77: ='FLUXO ANUAL'!I77 -> 0 | J77: ='FLUXO ANUAL'!J77 -> 0 | K77: ='FLUXO ANUAL'!K77 -> 0 | L77: ='FLUXO ANUAL'!L77 -> 0 | M77: ='FLUXO ANUAL'!M77 -> 0 | N77: ='FLUXO ANUAL'!N77 -> 0 | O77: ='FLUXO ANUAL'!O77 -> 0 | P77: ='FLUXO ANUAL'!P77 -> 0 | Q77: ='FLUXO ANUAL'!Q77 -> 0 | R77: ='FLUXO ANUAL'!R77 -> 0 | S77: ='FLUXO ANUAL'!S77 -> 0 | T77: ='FLUXO ANUAL'!T77 -> 0 | U77: ='FLUXO ANUAL'!U77 -> 0 | V77: ='FLUXO ANUAL'!V77 -> 0 | W77: ='FLUXO ANUAL'!W77 -> 0 | X77: ='FLUXO ANUAL'!X77 -> 0 | Y77: ='FLUXO ANUAL'!Y77 -> 0 | Z77: ='FLUXO ANUAL'!Z77 -> 0 | AA77: ='FLUXO ANUAL'!AA77 -> 0 | AB77: ='FLUXO ANUAL'!AB77 -> -917022.7303 | AC77: ='FLUXO ANUAL'!AC77 -> 0 | AD77: ='FLUXO ANUAL'!AD77 -> -412963.938 | AE77: ='FLUXO ANUAL'!AE77 -> 0 | AF77: ='FLUXO ANUAL'!AF77 -> -3704528.582
B78: SALDO DA INADIMPLÊNCIA NO PERÍODO ( D ) REALIZADO / PREVISTO | C78: ='FLUXO ANUAL'!C78 -> -432942860.4 | D78: ='FLUXO ANUAL'!D78 -> -1929952810 | E78: ='FLUXO ANUAL'!E78 -> -537110010.8 | F78: ='FLUXO ANUAL'!F78 -> -2448447251 | G78: ='FLUXO ANUAL'!G78 -> -537110010.8 | H78: ='FLUXO ANUAL'!H78 -> -2448447251 | I78: ='FLUXO ANUAL'!I78 -> -459569925.3 | J78: ='FLUXO ANUAL'!J78 -> -1574653093 | K78: ='FLUXO ANUAL'!K78 -> -451623572 | L78: ='FLUXO ANUAL'!L78 -> -1651003046 | M78: ='FLUXO ANUAL'!M78 -> -468413009.8 | N78: ='FLUXO ANUAL'!N78 -> -1853809017 | O78: ='FLUXO ANUAL'!O78 -> -497656715.8 | P78: ='FLUXO ANUAL'!P78 -> -1840925226 | Q78: ='FLUXO ANUAL'!Q78 -> -452036955.5 | R78: ='FLUXO ANUAL'!R78 -> -1788075155 | S78: ='FLUXO ANUAL'!S78 -> -431425526.8 | T78: ='FLUXO ANUAL'!T78 -> -1689680921 | U78: ='FLUXO ANUAL'!U78 -> -471441383.4 | V78: ='FLUXO ANUAL'!V78 -> -1951212136 | W78: ='FLUXO ANUAL'!W78 -> -432942860.4 | X78: ='FLUXO ANUAL'!X78 -> -1929952810 | Y78: ='FLUXO ANUAL'!Y78 -> -480263369.8 | Z78: ='FLUXO ANUAL'!Z78 -> -2259178423 | AA78: ='FLUXO ANUAL'!AA78 -> -604084028.9 | AB78: ='FLUXO ANUAL'!AB78 -> -2682239940 | AC78: ='FLUXO ANUAL'!AC78 -> -503055116.5 | AD78: ='FLUXO ANUAL'!AD78 -> -2288204113 | AE78: ='FLUXO ANUAL'!AE78 -> -537110010.8 | AF78: ='FLUXO ANUAL'!AF78 -> -2448447251
B79: SALDO APÓS A INADIMPLÊNCIA ( E ) = ( C + D ) | C79: ='FLUXO ANUAL'!C79 -> -567824964.4 | D79: ='FLUXO ANUAL'!D79 -> -866924377.9 | E79: ='FLUXO ANUAL'!E79 -> -294096896.8 | F79: ='FLUXO ANUAL'!F79 -> 274928996.3 | G79: ='FLUXO ANUAL'!G79 -> -294096896.8 | H79: ='FLUXO ANUAL'!H79 -> 274928996.3 | I79: ='FLUXO ANUAL'!I79 -> -1392808075 | J79: ='FLUXO ANUAL'!J79 -> -3643259654 | K79: ='FLUXO ANUAL'!K79 -> -1269954621 | L79: ='FLUXO ANUAL'!L79 -> -3283905924 | M79: ='FLUXO ANUAL'!M79 -> -1180972250 | N79: ='FLUXO ANUAL'!N79 -> -2937939705 | O79: ='FLUXO ANUAL'!O79 -> -1080810520 | P79: ='FLUXO ANUAL'!P79 -> -2656919893 | Q79: ='FLUXO ANUAL'!Q79 -> -908153071.1 | R79: ='FLUXO ANUAL'!R79 -> -2093765060 | S79: ='FLUXO ANUAL'!S79 -> -779112221.4 | T79: ='FLUXO ANUAL'!T79 -> -1695856671 | U79: ='FLUXO ANUAL'!U79 -> -713192804.4 | V79: ='FLUXO ANUAL'!V79 -> -1428611399 | W79: ='FLUXO ANUAL'!W79 -> -567824964.4 | X79: ='FLUXO ANUAL'!X79 -> -866924377.9 | Y79: ='FLUXO ANUAL'!Y79 -> -507298865.9 | Z79: ='FLUXO ANUAL'!Z79 -> -553231233.6 | AA79: ='FLUXO ANUAL'!AA79 -> -529558425.5 | AB79: ='FLUXO ANUAL'!AB79 -> -653066348.9 | AC79: ='FLUXO ANUAL'!AC79 -> -349315910.7 | AD79: ='FLUXO ANUAL'!AD79 -> 33956327 | AE79: ='FLUXO ANUAL'!AE79 -> -294096896.8 | AF79: ='FLUXO ANUAL'!AF79 -> 274928996.3
B80: SALDO DEVEDOR DOS EMPRÉSTIMOS REALIZADOS ( N ) (PRINCIPAL + JUROS) POSIÇÃO EM 31/12/2015 | H80: ='FLUXO ANUAL'!H80 -> -486551009.7
B81: SALDO FINAL APÓS QUITAÇÃO DOS EMPRÉSTIMOS REALIZADOS (PRINCIPAL + JUROS) - PÓSIÇÃO EM 31/12/2015 ( F ) = ( E + N ) | H81: ='FLUXO ANUAL'!H81 -> -211622013.4
B85: DÉBITO ACUMULADO DOS EMPRÉTIMOS OBTIDOS POR ITAIPU JUNTO À ELETROBRAS POSIÇÃO EM 31/12/2015
B86: SALDO DEVEDOR DOS EMPRÉSTIMOS REALIZADOS (PRINCIPAL) - POSIÇÃO EM: 31/12/2014 ( G ) | H86: ='FLUXO ANUAL'!H86 -> -3587564852
B87: EMPRÉSTIMOS OBTIDOS NO EXERCÍCIO (PRINCIPAL) - POSIÇÃO EM : 31/12/2015 ( H ) | H87: ='FLUXO ANUAL'!H87 -> -1703573663
B88: AMORTIZAÇÃO REALIZADA NO EXERCÍCIO (PRINCIPAL) - POSIÇÃO EM: 31/12/2015 ( I ) | H88: ='FLUXO ANUAL'!H88 -> 4809841986
B89: SALDO DEVEDOR DO PRINCIPAL DOS EMPRÉSTIMOS OBTIDOS NO EXERCÍCIO DE 2015 POSIÇÃO EM: 31/12/2015 ( J ) = ( G + H + I ) | H89: ='FLUXO ANUAL'!H89 -> -481296529.1
B90: JUROS INCORRIDOS NO EXERCÍCIO DE 2015 - POSIÇÃO EM 31/12/2015 ( K ) | H90: ='FLUXO ANUAL'!H90 -> -397874706.4
B91: AMORTIZAÇÃO DOS JUROS INCORRIDOS NO EXERCÍCIO DE 2015 - POSIÇÃO EM 31/12/2015 ( L ) | H91: ='FLUXO ANUAL'!H91 -> 392620225.8
B92: SALDO DEVEDOR DOS JUROS INCORRIDOS NO EXERCÍCIO DE 2015 POSIÇÃO EM 31/12/2015 ( M ) = ( K + L ) | H92: ='FLUXO ANUAL'!H92 -> -5254480.6
B93: SALDO DEVEDOR DOS EMPRÉSTIMOS REALIZADOS (PRINCIPAL + JUROS) PÓSIÇÃO EM 31/12/2015 ( N ) = ( J + M ) | H93: ='FLUXO ANUAL'!H93 -> -486551009.7
B94: MONTANTE QUITADO DOS EMPRÉSTIMOS OBTIDOS NO EXERCÍCIO DE 2015 (PRINCIPAL + JUROS) ( O ) = ( I + L ) | H94: ='FLUXO ANUAL'!H94 -> 5202462212

Sheet ITENS RECEITAS E DESPESAS ATUAL (hidden)
B2: ÍNDICE DOS ITENS DAS RECEITAS / DESPESAS DA CONTA DE COMERCIALIZAÇÃO DE ITAIPU
B3: Regime de Competência: Aquele em que apuração do fato é realizada no mês de lançamento do mesmo.
B4: Regime de Caixa: Aquele em que a apuração do fato é realizada pela movimentação bancária.
B5: DESCRIÇÃO | C5: CRITÉRIO DE APROPRIAÇÃO
B6: 01 (+) Liquidação CCEE - Venda de Energia | C6: Regime de Competência
B7: 01.1 (+) Liq. CCEE - Recuperação Inadimplência do Mês Anterior | C7: Regime de Competência
B8: 01.2 (-) Liq. CCEE - Inadimplência do Mês | C8: Regime de Competência
B9: 02 (+) Faturamento do Repasse da Energia | C9: Regime de Competência
B10: 03 (+) Juros referentes ao Repasse da Energia | C10: Regime de Caixa - O registro desses valores é realizado no momento da regularização dos pagamentos em atraso quer por liquidação financeira ou renegociação das dividas.
B11: 04 (+) Juros contratuais do Repasse de ITAIPU sobre créditos renegociados | C11: Regime de Caixa
B12: 05 (+) Rendimento de aplicação financeira B.B. S/A | C12: Regime de Caixa
B13: 06 (+) Rendimento Aplic. Financ.do Aporte de Garantias Liq.CCEE | C13: Regime de Caixa
B14: 07 (+) Devolução do bônus de ITAIPU | C14: Regime de Caixa
B15: 08 (-) Liquidação CCEE - Compra de Energia | C15: Regime de Competência
B16: 09 (-) Multa de 2% Pelo Não Aporte das Garantias | C16: Regime de Competência
B17: 10 (-) Potência Contratada | C17: Regime de Competência
B18: 11 (-) Energia Cedida Vinculada | C18: Regime de Competência
B19: 12 (-) Ajuste do dólar - Energia Cedida Vinculada | C19: Regime de Competência
B20: 13 (-) Energia Cedida Não Vinculada | C20: Regime de Competência
B21: 14 (-) Royalties Energia Cedida Não Vinculada | C21: Regime de Competência
B22: 15 (-) Ressarcimento Encargos Supervisão Não Vinculado | C22: Regime de Competência
B23: 16 (-) Ajuste do dólar Energia Cedida Não Vinculada | C23: Regime de Competência
B24: 17 (-) Ajuste do dólar - Royalties | C24: Regime de Competência
B25: 18 (-) Ajuste do dólar - Ressarcimento de Encargos | C25: Regime de Competência
B26: 19 (-) Juros da Potência Contratada, Energias Cedidas, Royalties, Ressarcimento e dos Ajustes do Dólar | C26: Regime de caixa
B27: 20 (-) Ativo Regulatório - Tesouro | C27: Regime de caixa
B28: 21 (-) Ativo Regulatório - Eletrobrás | C28: Regime de caixa
B29: 22 (-) Custos Administrativos | C29: Regime de caixa
B30: 23 (-) Contribuição Anual a CCEE | C30: Regime de caixa
B31: 24 (-) Contribuição ao O N S | C31: Regime de caixa
B32: 25 (-) Despesas Bancárias | C32: Regime de caixa
B33: 26 (-) Custeio com Imposto de Renda | C33: Regime de caixa
B34: 27 (-) Custeio com IOF | C34: Regime de caixa
B35: 28 (+/-) Juros Pagos dos Empréstimos Obtidos por ITAIPU Junto à ELETROBRAS e juros por atraso de transferência da CCEE | C35: Regime de Competência
B36: 29 (-) Pagamento de bônus de ITAIPU | C36: Esta despesa está registrada pelo regime de competência tendo como fato gerador a emissão de Despacho da ANEEL
B37: 30 (+) Variação Cambial (Ativa) | C37: Regime de Competência
B38: 31 (-) Variação Cambial (Passiva) | C38: Regime de Competência
B39: 32 (+ / -) Receitas / Despesas com COFINS | C39: Valores apropriados pelo regime de competência, reconhecendo-se créditos tributários quando a operação for deficitária.
B40: 33 (+ / -) Receitas / Despesas com PASEP | C40: Valores apropriados pelo regime de competência, reconhecendo-se créditos tributários quando a operação for deficitária.

Sheet contas contábeis (hidden)
B2: Centrais Elétricas Brasileiras S/A. - ELETROBRÁS
B3: Diretoria Financeira - DF
B4: Departamento de Administração de Capital de Giro - DFG
B7: FLUXO ECONÔMICO DA COMERCIALIZAÇÃO DE ENERGIA DE ITAIPU - DEZEMBRO/2014
E9: data base: | F9: data base: | G9: data base: | H9: data base:
B11: Natureza das Contas | E11: CONTA CONTABIL | F11: CLIENTE | G11: FORNECEDOR | H11: FORNECEDOR
B16: (+) Rendimento de aplicação financeira realizada no Banco do Brasil S/A | E16: 6310540000
B17: (+) Faturamento do Repasse da Energia | E17: ----- | F17: TODOS | H17: IS
B18: (+) Juros referentes ao Repasse da Energia | E18: 6310920101 | F18: TODOS | H18: IS
B19: (+) Rendimento de aplicação financeira referente ao aporte de garantias da Liquidação CCEE
B20: (+/-) Liquidação CCEE | E20: -----
B21: (+/-) Atualização Liquidação CCEE | E21: -----
B22: (+/-) Ajuste Liquidação CCEE - Competência | E22: -----
B23: (+) Devolução do bônus de Itaipu Despacho ANEEL nº | E23: 2119410000 | F23: TODOS
B24: (+) Variação Cambial (Ativa) | E24: 6311100001
B25: (-) Variação Cambial (Passiva)
B26: (-) Potência Contratada | E26: ----- | G26: 10407
B27: (-) Juros referentes à Potência Contratada - Acréscimo Moratório de ITAIPU | E27: 6350900101
B28: (-) Energia Cedida Vinc | E28: ----- | G28: 10407
B29: (-) Juros referentes à Energia Cedida Vinc - Acréscimo Moratório de ITAIPU | E29: 6350900101
B30: (-) Energia Cedida Não-Vinc. | E30: ----- | G30: 10407
B31: (-) Juros referentes à Energia Cedida Não-Vinc. - Acréscimo Moratório de ITAIPU | E31: 6350900101
B32: (-) Royalties Ener. Não-Vinc | E32: ----- | G32: 10407
B33: (-) Juros referentes aos Royalties Ener. Não-Vinc - Acréscimo Moratório de ITAIPU | E33: 6350900101
B34: (-) Ressarc. Enc. Supervisão Não-Vinc. | E34: ----- | G34: 10407
B35: (-) Juros referentes aos Ressarc. Enc. Supervisão Não-Vinc. - Acréscimo Moratório de ITAIPU | E35: 6350900101
B36: (-) Ajuste do dólar - Ress Encargos | E36: ----- | G36: 10407
B37: (-) Juros referentes ao Ajuste do dólar - Ress Encargos - Acréscimo Moratório de ITAIPU | E37: 6350900101
B38: (-) Ajuste do dólar - Royalties | E38: ----- | G38: 10407
B39: (-) Juros referentes ao Ajuste do dólar - Royalties - Acréscimo Moratório de ITAIPU | E39: 6350900101
B40: (-) Ajuste do dólar Ener. Vinc. | E40: ----- | G40: 10407
B41: (-) Juros referentes ao Ajuste do dólar Ener. Vinc. - Acréscimo Moratório de ITAIPU | E41: 6350900101
B42: (-) Ajuste do dólar Ener. Não-Vinc. | E42: ----- | G42: 10407
B43: (-) Juros referentes ao Ajuste do dólar Ener. Não-Vinc. - Acréscimo Moratório de ITAIPU | E43: 6350900101
B44: (-)Custeio com Imposto de Renda
B45: (+) Reposição do Custeio com Imposto de Renda | E45: -----
B46: (+) Atualização Monet.da Repos. do Custeio com Imposto de Renda | E46: -----
B47: (-) Custeio com IOF | E47: 6159310301 | H47: SA
B48: (+ / -) Receitas / Despesas com COFINS | E48: -----
B49: (+ / -) Receitas / Despesas com PASEP | E49: -----
B50: (-) Contribuição Anual a CCEE | E50: 6154140100 | G50: 70075
B51: (-) Contribuição ao O N S | E51: 6154140100 | G51: 14715 | H51: KR
B52: (-) Ativo Regulatório - Tesouro | G52: 70035 | H52: 77
B53: (-) Ativo Regulatório - Eletrobrás | E53: CONTABILIDADE
B54: (-) Custos Administrativos | E54: 6154140302
B55: (-) Pagamento bônus Itaipu - Despacho ANEEL nº | E55: ----- | G55: TODOS | H55: 77 RZE R
B56: (-) Despesas Bancárias | E56: 6154140100 | H56: AB
B57: ( + ) Juros de Mora Incorporados ao Contrato da CELG-D | E57: 6310920101 | F57: 10073 | H57: IS
B58: ( + ) Juros contratuais do Repasse de ITAIPU da CELG-D | E58: ----- | F58: 10073 | H58: IS
B59: ( + ) Juros de Mora Incorporados ao Contrato da CEMAT | E59: 6310920101 | F59: 10038 | H59: IS
B60: ( + ) Juros contratuais do Repasse de ITAIPU da CEMAT | E60: ----- | F60: 10038 | H60: IS
B61: ( + ) Juros de Mora Incorporados ao Contrato da EEB | E61: 6310920101 | F61: 10019 | H61: IS
B62: ( + ) Juros contratuais do Repasse de ITAIPU da EEB. | E62: ----- | F62: 10019 | H62: IS
B63: (-/+) Juros Pagos dos Empréstimos Obtidos por ITAIPU Junto à ELETROBRAS | E63: FORNECIDO PELA DFGT
